{"text_format":"1","workbook":"xlsx","n_sheets":33,"sheets":["Main Screen","1","2","3","4","5","6","7","8","9","10","11","12","13","14","15","16","17","18","19","20","21","22","23","24","25","26","27","28","29","30","31","Report"],"not_rendered":{"charts":0,"images":1,"macros":1,"external_links":0,"defined_names":2,"comments":1,"pivot_tables":0},"unopened":[],"bounds":{"document_bytes":16777216,"sheet_cells":100000,"rows_first":2000,"rows_last":500,"rows_between":2000,"halvings":0,"cell_chars":16384,"cell_head_chars":4096},"cells_cut":0,"cells_raw":0,"read":"whole","date_system":"1900"}

{"sheet":"Main Screen","index":0,"n_rows":67,"n_cols":6,"rows_kept":67,"cut":false,"hidden":false,"merged":[]}
["شهر","2020-10-10",null,"تاريخ اليوم",{"$f":"TODAY()","v":"2020-06-18"},{"$f":"IFERROR(HYPERLINK(INDEX(A37:B67,MATCH(E1,A37:A67,0),2),\"       إنتقل إلي شيت اليوم      \"),\"برجاء تغير الشهر\")","v":"برجاء تغير الشهر"}]
[]
["أيام الشهر","التفاصيل",null,null,{"$f":"A18+1","v":"2020-10-25"},{"$f":"HYPERLINK(\"#'\"&ROW(A16)&\"'!a1\",\"               إنتقل إلى الشيت               \")","v":"               إنتقل إلى الشيت               "}]
[{"$f":"B1","v":"2020-10-10"},{"$f":"HYPERLINK(\"#'\"&ROW(A1)&\"'!a1\",\"               إنتقل إلى الشيت               \")","v":"               إنتقل إلى الشيت               "},null,null,{"$f":"E3+1","v":"2020-10-26"},{"$f":"HYPERLINK(\"#'\"&ROW(A17)&\"'!a1\",\"               إنتقل إلى الشيت               \")","v":"               إنتقل إلى الشيت               "}]
[{"$f":"A4+1","v":"2020-10-11"},"               إنتقل إلى الشيت               ",null,null,{"$f":"E4+1","v":"2020-10-27"},"               إنتقل إلى الشيت               "]
[{"$f":"A5+1","v":"2020-10-12"},"               إنتقل إلى الشيت               ",null,null,"2020-10-28","               إنتقل إلى الشيت               "]
["2020-10-13","               إنتقل إلى الشيت               ",null,null,"2020-10-29","               إنتقل إلى الشيت               "]
["2020-10-14","               إنتقل إلى الشيت               ",null,null,"2020-10-30","               إنتقل إلى الشيت               "]
["2020-10-15","               إنتقل إلى الشيت               ",null,null,"2020-10-31","               إنتقل إلى الشيت               "]
["2020-10-16","               إنتقل إلى الشيت               ",null,null,"2020-11-01","               إنتقل إلى الشيت               "]
["2020-10-17","               إنتقل إلى الشيت               ",null,null,"2020-11-02","               إنتقل إلى الشيت               "]
["2020-10-18","               إنتقل إلى الشيت               ",null,null,"2020-11-03","               إنتقل إلى الشيت               "]
["2020-10-19","               إنتقل إلى الشيت               ",null,null,"2020-11-04","               إنتقل إلى الشيت               "]
["2020-10-20","               إنتقل إلى الشيت               ",null,null,"2020-11-05","               إنتقل إلى الشيت               "]
["2020-10-21","               إنتقل إلى الشيت               ",null,null,"2020-11-06","               إنتقل إلى الشيت               "]
["2020-10-22","               إنتقل إلى الشيت               ",null,null,"2020-11-07","               إنتقل إلى الشيت               "]
["2020-10-23","               إنتقل إلى الشيت               ",null,null,"2020-11-08","               إنتقل إلى الشيت               "]
["2020-10-24","               إنتقل إلى الشيت               ",null,null,"2020-11-09","               إنتقل إلى الشيت               "]
[]
[]
[]
[]
[]
[]
[]
[]
[]
[]
[]
[]
[]
[]
[]
[]
[]
[]
[{"$f":"B1","v":"2020-10-10"},"#'1'!a1"]
[{"$f":"A37+1","v":"2020-10-11"},"#'2'!a1"]
[{"$f":"A38+1","v":"2020-10-12"},"#'3'!a1"]
["2020-10-13","#'4'!a1"]
["2020-10-14","#'5'!a1"]
["2020-10-15","#'6'!a1"]
["2020-10-16","#'7'!a1"]
["2020-10-17","#'8'!a1"]
["2020-10-18","#'9'!a1"]
["2020-10-19","#'10'!a1"]
["2020-10-20","#'11'!a1"]
["2020-10-21","#'12'!a1"]
["2020-10-22","#'13'!a1"]
["2020-10-23","#'14'!a1"]
["2020-10-24","#'15'!a1"]
["2020-10-25","#'16'!a1"]
["2020-10-26","#'17'!a1"]
["2020-10-27","#'18'!a1"]
["2020-10-28","#'19'!a1"]
["2020-10-29","#'20'!a1"]
["2020-10-30","#'21'!a1"]
["2020-10-31","#'22'!a1"]
["2020-11-01","#'23'!a1"]
["2020-11-02","#'24'!a1"]
["2020-11-03","#'25'!a1"]
["2020-11-04","#'26'!a1"]
["2020-11-05","#'27'!a1"]
["2020-11-06","#'28'!a1"]
["2020-11-07","#'29'!a1"]
["2020-11-08","#'30'!a1"]
["2020-11-09","#'31'!a1"]

{"sheet":"1","index":1,"n_rows":55,"n_cols":30,"rows_kept":55,"cut":false,"hidden":false,"merged":[[38,1,38,2],[38,7,38,8],[40,7,40,8],[47,7,47,8],[40,1,40,2],[41,1,41,2],[42,1,42,2],[47,1,47,2],[43,7,43,8],[44,7,44,8],[45,7,45,8],[46,7,46,8],[38,9,38,10],[40,9,40,10],[41,9,41,10],[42,9,42,10],[47,9,47,10],[39,9,39,10],[38,11,38,12],[40,11,40,12],[41,11,41,12],[42,11,42,12],[47,11,47,12],[43,11,43,12],[44,11,44,12],[45,11,45,12],[39,11,39,12],[48,1,51,12],[53,1,53,3],[54,9,54,10],[53,5,53,7],[39,1,39,2],[43,1,43,2],[44,1,44,2],[41,7,41,8],[42,7,42,8],[45,1,45,2],[43,9,43,10],[44,9,44,10],[45,9,45,10],[46,9,46,10],[46,11,46,12],[39,7,39,8],[35,1,36,3],[19,1,19,3],[27,1,28,3],[29,1,29,12],[30,7,30,9],[31,7,33,9],[30,10,30,12],[31,10,33,12],[20,7,20,8],[21,7,21,8],[22,7,22,8],[23,7,23,8],[28,7,28,8],[20,11,20,12],[21,11,21,12],[22,11,22,12],[0,4,0,9],[1,4,1,9],[2,1,2,4],[3,1,3,4],[4,4,4,8],[4,9,4,12],[30,5,30,6],[31,5,33,6],[30,1,33,4],[2,11,2,12],[2,9,2,10],[23,11,23,12],[24,11,24,12],[28,11,28,12],[7,1,7,7],[7,9,7,12],[6,1,6,3],[15,1,17,12],[24,7,24,8],[6,9,6,10]]}
[null,null,null,null,{"$f":"HYPERLINK(\"#'Main Screen'!a1\",\"الجمهورية الجزائرية الديمقراطية الشعبية \")","v":"الجمهورية الجزائرية الديمقراطية الشعبية "}]
[null,null,null,null,"وزارة التربية الوطنيـــة "]
[null,"مديرية التربية لولايـــة الاغواط ",null,null,null,null,null,null,null,"السنة الدراسية ",null,"2019/2020"]
[null,"متوسطة سماعيني معمر تاجرونة "]
[null,null,null,null,"التقرير اليومي للاستشارة ",null,null,null,null,"2020-06-16",null,null,null,null,null,null,"2020-06-01"]
[null,null,null,null,null,null,null,null,null,null,null,null,null,null,null,null,"2020-06-02"]
[null,"مواظبـــة الاساتذة ",null,null,null,null,null,null,null,null,null,null,null,null,null,null,"2020-06-03"]
[null,"الفترة الصباحيـــــــــــة ",null,null,null,null,null,null,null,"الفترة المسائيــــة ",null,null,null,null,null,null,"2020-06-04"]
[null,"الرقم","الاسم و اللقب","المادة ","9--8","10--9","11--10","12--11",null,"15--14","16--15","17--16","الملاحظات",null,null,null,"2020-06-05"]
[null,1,"قدور بومقواس",null,null,null,null,null,null,"1م3","1م2","2م1",null,null,null,null,"2020-06-06"]
[null,2,"العربي قرمان ",null,null,null,null,null,null,null,null,null,null,null,null,null,"2020-06-07"]
[null,3,null,null,null,null,null,null,null,null,null,null,null,null,null,null,"2020-06-08",null,null,null,null,null,null,null,null,null,null,null,null,"1م1"]
[null,4,null,null,null,null,null,null,null,null,null,"2م2",null,null,null,null,"2020-06-09",null,null,null,null,null,null,null,null,null,null,null,null,"1م2"]
[null,5,null,null,null,null,null,null,null,null,null,null,null,null,null,null,"2020-06-10",null,null,null,null,null,null,null,null,null,null,null,null,"1م3"]
[null,6,null,null,null,null,null,null,null,null,null,null,null,null,null,null,"2020-06-11",null,null,null,null,null,null,null,null,null,null,"العربية ",null,"2م1"]
[null,"الاجراءات المتخذة :",null,null,null,null,null,null,null,null,null,null,null,null,null,null,"2020-06-12",null,null,null,null,null,null,null,null,null,null,"الفرنسية ",null,"2م2"]
[null,null,null,null,null,null,null,null,null,null,null,null,null,null,null,null,"2020-06-13",null,null,null,null,null,null,null,null,null,null,"الانجليزية ",null,"3م1"]
[null,null,null,null,null,null,null,null,null,null,null,null,null,null,null,null,"2020-06-14",null,null,null,null,null,null,null,null,null,null,"التربية الاسلامية ",null,"4م1"]
[null,null,null,null,null,null,null,null,null,null,null,null,null,null,null,null,"2020-06-15",null,null,null,null,null,null,null,null,null,null,"التربية المدنية ",null,"4م2"]
[null,"مواظبة موظفي الاستشارة ",null,null,null,null,null,null,null,null,null,null,null,null,null,null,"2020-06-16",null,null,null,null,null,null,null,null,null,null,"التاريخ والجغرافيا "]
[null,"الرقم","الاسم و اللقب","مدة التأخير","السبب",null,"الرقم","الاسم و اللقب",null,"صباحا","مساءا","الملاحظات ",null,null,null,null,"2020-06-17",null,null,null,null,null,null,null,null,null,null,"الرياضيات ",null,"دهكل أحمد"]
[null,1,null,null,null,null,1,null,null,null,null,null,null,null,null,null,"2020-06-18",null,null,null,null,null,null,null,null,null,null,"العلوم /ط",null,"طيفوري محمد"]
[null,2,null,null,null,null,2,null,null,null,null,null,null,null,null,null,"2020-06-19",null,null,null,null,null,null,null,null,null,null,"الفيزياء ",null,"قمقام دربالي"]
[null,3,null,null,null,null,3,null,null,null,null,null,null,null,null,null,"2020-06-20",null,null,null,null,null,null,null,null,null,null,"التربية الفنية "]
[null,4,null,null,null,null,4,null,null,null,null,null,null,null,null,null,"2020-06-21",null,null,null,null,null,null,null,null,null,null,"التربية الرياضية "]
[null,null,null,null,null,null,null,null,null,null,null,null,null,null,null,null,"2020-06-22"]
[null,null,null,null,null,null,null,null,null,null,null,null,null,null,null,null,"2020-06-23"]
[null,"وجبة الاطعــــــــــام ",null,null,null,null,null,null,null,null,null,null,null,null,null,null,"2020-06-24"]
[null,null,null,null,null,null,null,null,null,null,null,null,null,null,null,null,"2020-06-25"]
[null,"وجبــة الاطعام اليوميـــــــة ",null,null,null,null,null,null,null,null,null,null,null,null,null,null,"2020-06-26",null,null,null,null,null,null,null,null,null,null,"مباركة العابد"]
[null,"الوجبـــة",null,null,null,"عدد ن/داخلي",null,"الغائبون ",null,null,"الحاضرون",null,null,null,null,null,"2020-06-27",null,null,null,null,null,null,null,null,null,null,"بوعلام سهلي"]
[null,null,null,null,null,182,null,40,null,null,{"$f":"F32-$H$32","v":142},null,null,null,null,null,"2020-06-28",null,null,null,null,null,null,null,null,null,null,"ام الخير تهامي "]
[null,null,null,null,null,null,null,null,null,null,null,null,null,null,null,null,"2020-06-29",null,null,null,null,null,null,null,null,null,null,"خديجة بدراني "]
[null,null,null,null,null,null,null,null,null,null,null,null,null,null,null,null,"2020-06-30",null,null,null,null,null,null,null,null,null,null,"بوشوشة امحمدي"]
[null,null,null,null,null,null,null,null,null,null,null,null,null,null,null,null,null,null,null,null,null,null,null,null,null,null,null,"يعقوب كواهي "]
[null,"مواظبة التلاميذ ",null,null,null,null,null,null,null,null,null,null,null,null,null,null,null,null,null,null,null,null,null,null,null,null,null,"إبراهيم زريفي "]
[null,null,null,null,null,null,null,null,null,null,null,null,null,null,null,null,null,null,null,null,null,null,null,null,null,null,null,"محمد مشارة "]
[null,null,null,null,null,null,null,null,null,null,null,null,null,null,null,null,null,null,null,null,null,null,null,null,null,null,null,"شريف بدراني "]
[null,"المستوى ",null,"المسجلون","ذكــور","إنــاث","الغائبون","نسبة الغياب %",null,"الحاضرون",null,"نسبة الحاضرين %",null,null,null,null,null,null,null,null,null,null,null,null,null,null,null,"عبد القادر حساني "]
[null,"السنة الاولي متوسط 1",null,22,15,7,0,{"$f":"G40/$D$40","v":0},null,{"$f":"D40-$G$40","v":22},null,{"$f":"J40/$D$40","v":1}]
[null,"السنة الاولي متوسط 2",null,21,12,9,0,{"$f":"G41/$D$41","v":0},null,{"$f":"D41-G41","v":21},null,{"$f":"J41/$D$41","v":1},null,null,null,null,null,null,null,null,null,null,null,null,null,null,null,"قدور بومقواس"]
[null,"السنة الاولي متوسط 3",null,23,11,12,0,{"$f":"G42/$D$41","v":0},null,23,null,{"$f":"J42/$D$42","v":1},null,null,null,null,null,null,null,null,null,null,null,null,null,null,null,"العربي قرمان "]
[null,"السنة الثانية متوسط 1",null,31,15,16,0,0,null,{"$f":"D43-G43","v":31},null,{"$f":"J43/$D$43","v":1},null,null,null,null,null,null,null,null,null,null,null,null,null,null,null,"عبد القادر طيبي "]
[null,"السنة الثانية متوسط 2",null,33,17,16,0,0,null,33,null,{"$f":"J44/$D$44","v":1},null,null,null,null,null,null,null,null,null,null,null,null,null,null,null,"ميلود داودي "]
[null,"السنة الثالثة متوسط1",null,28,12,16,0,0,null,28,null,{"$f":"J45/$D$45","v":1},null,null,null,null,null,null,null,null,null,null,null,null,null,null,null,"رشيدة حطاب"]
[null,"السنة الثالثة متوسط 2",null,27,9,18,0,0,null,27,null,{"$f":"J46/$D$46","v":1},null,null,null,null,null,null,null,null,null,null,null,null,null,null,null,"مجدوب طلحة "]
[null,"السنة الرابعة متوسط 1",null,{"$f":"E47+F47","v":20},9,11,0,0,null,20,null,{"$f":"J47/$D$47","v":1},null,null,null,null,null,null,null,null,null,null,null,null,null,null,null,"مليود جليد "]
[null,"السنة الرابعة متوسط 2",null,{"$f":"E48+F48","v":23},11,12,0,0,null,23,null,{"$f":"J48/$D$48","v":1},null,null,null,null,null,null,null,null,null,null,null,null,null,null,null,"البشير قرمان "]
[null,"ملاحظــــات :"]
[null,null,null,null,null,null,null,null,null,null,null,null,null,null,null,null,null,null,null,null,null,null,null,null,null,null,null,"2019/2020"]
[null,null,null,null,null,null,null,null,null,null,null,null,null,null,null,null,null,null,null,null,null,null,null,null,null,null,null,"2020/2021"]
[null,null,null,null,null,null,null,null,null,null,null,null,null,null,null,null,null,null,null,null,null,null,null,null,null,null,null,"2021/2022"]
[]
[null,"منجز من طرف المكلف بالاستشارة ",null,null,"بتاريخ ",{"$f":"NOW()","v":"2020-06-18T19:22:29.630"}]
[null,null,null,null,null,null,null,null,null,"مدير المؤسسة "]

{"sheet":"2","index":2,"n_rows":55,"n_cols":30,"rows_kept":55,"cut":false,"hidden":false,"merged":[[54,9,54,10],[47,1,47,2],[47,7,47,8],[47,9,47,10],[47,11,47,12],[48,1,51,12],[53,1,53,3],[53,5,53,7],[45,1,45,2],[45,7,45,8],[45,9,45,10],[45,11,45,12],[46,7,46,8],[46,9,46,10],[46,11,46,12],[43,1,43,2],[43,7,43,8],[43,9,43,10],[43,11,43,12],[44,1,44,2],[44,7,44,8],[44,9,44,10],[44,11,44,12],[41,1,41,2],[41,7,41,8],[41,9,41,10],[41,11,41,12],[42,1,42,2],[42,7,42,8],[42,9,42,10],[42,11,42,12],[39,1,39,2],[39,7,39,8],[39,9,39,10],[39,11,39,12],[40,1,40,2],[40,7,40,8],[40,9,40,10],[40,11,40,12],[35,1,36,3],[38,1,38,2],[38,7,38,8],[38,9,38,10],[38,11,38,12],[29,1,29,12],[30,1,33,4],[30,5,30,6],[30,7,30,9],[30,10,30,12],[31,5,33,6],[31,7,33,9],[31,10,33,12],[24,7,24,8],[24,11,24,12],[27,1,28,3],[28,7,28,8],[28,11,28,12],[21,7,21,8],[21,11,21,12],[22,7,22,8],[22,11,22,12],[23,7,23,8],[23,11,23,12],[7,1,7,7],[7,9,7,12],[15,1,17,12],[19,1,19,3],[20,7,20,8],[20,11,20,12],[4,4,4,8],[4,9,4,12],[6,1,6,3],[6,9,6,10],[3,1,3,4],[0,4,0,9],[1,4,1,9],[2,1,2,4],[2,9,2,10],[2,11,2,12]]}
[null,null,null,null,{"$f":"HYPERLINK(\"#'Main Screen'!a1\",\"الجمهورية الجزائرية الديمقراطية الشعبية \")","v":"الجمهورية الجزائرية الديمقراطية الشعبية "}]
[null,null,null,null,"وزارة التربية الوطنيـــة "]
[null,"مديرية التربية لولايـــة الاغواط ",null,null,null,null,null,null,null,"السنة الدراسية ",null,"2019/2020"]
[null,"متوسطة سماعيني معمر تاجرونة "]
[null,null,null,null,"التقرير اليومي للاستشارة ",null,null,null,null,"2020-06-26",null,null,null,null,null,null,"2020-06-01"]
[null,null,null,null,null,null,null,null,null,null,null,null,null,null,null,null,"2020-06-02"]
[null,"مواظبـــة الاساتذة ",null,null,null,null,null,null,null,null,null,null,null,null,null,null,"2020-06-03"]
[null,"الفترة الصباحيـــــــــــة ",null,null,null,null,null,null,null,"الفترة المسائيــــة ",null,null,null,null,null,null,"2020-06-04"]
[null,"الرقم","الاسم و اللقب","المادة ","9--8","10--9","11--10","12--11",null,"15--14","16--15","17--16","الملاحظات",null,null,null,"2020-06-05"]
[null,1,"قدور بومقواس",null,null,null,null,null,null,"1م3","1م2","2م1",null,null,null,null,"2020-06-06"]
[null,2,"العربي قرمان ",null,null,null,null,null,null,null,null,null,null,null,null,null,"2020-06-07"]
[null,3,null,null,null,null,null,null,null,null,null,null,null,null,null,null,"2020-06-08",null,null,null,null,null,null,null,null,null,null,null,null,"1م1"]
[null,4,null,null,null,null,null,null,null,null,null,"2م2",null,null,null,null,"2020-06-09",null,null,null,null,null,null,null,null,null,null,null,null,"1م2"]
[null,5,null,null,null,null,null,null,null,null,null,null,null,null,null,null,"2020-06-10",null,null,null,null,null,null,null,null,null,null,null,null,"1م3"]
[null,6,null,null,null,null,null,null,null,null,null,null,null,null,null,null,"2020-06-11",null,null,null,null,null,null,null,null,null,null,"العربية ",null,"2م1"]
[null,"الاجراءات المتخذة :",null,null,null,null,null,null,null,null,null,null,null,null,null,null,"2020-06-12",null,null,null,null,null,null,null,null,null,null,"الفرنسية ",null,"2م2"]
[null,null,null,null,null,null,null,null,null,null,null,null,null,null,null,null,"2020-06-13",null,null,null,null,null,null,null,null,null,null,"الانجليزية ",null,"3م1"]
[null,null,null,null,null,null,null,null,null,null,null,null,null,null,null,null,"2020-06-14",null,null,null,null,null,null,null,null,null,null,"التربية الاسلامية ",null,"4م1"]
[null,null,null,null,null,null,null,null,null,null,null,null,null,null,null,null,"2020-06-15",null,null,null,null,null,null,null,null,null,null,"التربية المدنية ",null,"4م2"]
[null,"مواظبة موظفي الاستشارة ",null,null,null,null,null,null,null,null,null,null,null,null,null,null,"2020-06-16",null,null,null,null,null,null,null,null,null,null,"التاريخ والجغرافيا "]
[null,"الرقم","الاسم و اللقب","مدة التأخير","السبب",null,"الرقم","الاسم و اللقب",null,"صباحا","مساءا","الملاحظات ",null,null,null,null,"2020-06-17",null,null,null,null,null,null,null,null,null,null,"الرياضيات ",null,"دهكل أحمد"]
[null,1,null,null,null,null,1,null,null,null,null,null,null,null,null,null,"2020-06-18",null,null,null,null,null,null,null,null,null,null,"العلوم /ط",null,"طيفوري محمد"]
[null,2,null,null,null,null,2,null,null,null,null,null,null,null,null,null,"2020-06-19",null,null,null,null,null,null,null,null,null,null,"الفيزياء ",null,"قمقام دربالي"]
[null,3,null,null,null,null,3,null,null,null,null,null,null,null,null,null,"2020-06-20",null,null,null,null,null,null,null,null,null,null,"التربية الفنية "]
[null,4,null,null,null,null,4,null,null,null,null,null,null,null,null,null,"2020-06-21",null,null,null,null,null,null,null,null,null,null,"التربية الرياضية "]
[null,null,null,null,null,null,null,null,null,null,null,null,null,null,null,null,"2020-06-22"]
[null,null,null,null,null,null,null,null,null,null,null,null,null,null,null,null,"2020-06-23"]
[null,"وجبة الاطعــــــــــام ",null,null,null,null,null,null,null,null,null,null,null,null,null,null,"2020-06-24"]
[null,null,null,null,null,null,null,null,null,null,null,null,null,null,null,null,"2020-06-25"]
[null,"وجبــة الاطعام اليوميـــــــة ",null,null,null,null,null,null,null,null,null,null,null,null,null,null,"2020-06-26",null,null,null,null,null,null,null,null,null,null,"مباركة العابد"]
[null,"الوجبـــة",null,null,null,"عدد ن/داخلي",null,"الغائبون ",null,null,"الحاضرون",null,null,null,null,null,"2020-06-27",null,null,null,null,null,null,null,null,null,null,"بوعلام سهلي"]
[null,null,null,null,null,182,null,40,null,null,{"$f":"F32-$H$32","v":142},null,null,null,null,null,"2020-06-28",null,null,null,null,null,null,null,null,null,null,"ام الخير تهامي "]
[null,null,null,null,null,null,null,null,null,null,null,null,null,null,null,null,"2020-06-29",null,null,null,null,null,null,null,null,null,null,"خديجة بدراني "]
[null,null,null,null,null,null,null,null,null,null,null,null,null,null,null,null,"2020-06-30",null,null,null,null,null,null,null,null,null,null,"بوشوشة امحمدي"]
[null,null,null,null,null,null,null,null,null,null,null,null,null,null,null,null,null,null,null,null,null,null,null,null,null,null,null,"يعقوب كواهي "]
[null,"مواظبة التلاميذ ",null,null,null,null,null,null,null,null,null,null,null,null,null,null,null,null,null,null,null,null,null,null,null,null,null,"إبراهيم زريفي "]
[null,null,null,null,null,null,null,null,null,null,null,null,null,null,null,null,null,null,null,null,null,null,null,null,null,null,null,"محمد مشارة "]
[null,null,null,null,null,null,null,null,null,null,null,null,null,null,null,null,null,null,null,null,null,null,null,null,null,null,null,"شريف بدراني "]
[null,"المستوى ",null,"المسجلون","ذكــور","إنــاث","الغائبون","نسبة الغياب %",null,"الحاضرون",null,"نسبة الحاضرين %",null,null,null,null,null,null,null,null,null,null,null,null,null,null,null,"عبد القادر حساني "]
[null,"السنة الاولي متوسط 1",null,22,15,7,0,{"$f":"G40/$D$40","v":0},null,{"$f":"D40-$G$40","v":22},null,{"$f":"J40/$D$40","v":1}]
[null,"السنة الاولي متوسط 2",null,21,12,9,0,{"$f":"G41/$D$41","v":0},null,{"$f":"D41-G41","v":21},null,{"$f":"J41/$D$41","v":1},null,null,null,null,null,null,null,null,null,null,null,null,null,null,null,"قدور بومقواس"]
[null,"السنة الاولي متوسط 3",null,23,11,12,0,{"$f":"G42/$D$41","v":0},null,23,null,{"$f":"J42/$D$42","v":1},null,null,null,null,null,null,null,null,null,null,null,null,null,null,null,"العربي قرمان "]
[null,"السنة الثانية متوسط 1",null,31,15,16,0,0,null,31,null,{"$f":"J43/$D$43","v":1},null,null,null,null,null,null,null,null,null,null,null,null,null,null,null,"عبد القادر طيبي "]
[null,"السنة الثانية متوسط 2",null,33,17,16,0,0,null,33,null,{"$f":"J44/$D$44","v":1},null,null,null,null,null,null,null,null,null,null,null,null,null,null,null,"ميلود داودي "]
[null,"السنة الثالثة متوسط1",null,28,12,16,0,0,null,28,null,{"$f":"J45/$D$45","v":1},null,null,null,null,null,null,null,null,null,null,null,null,null,null,null,"رشيدة حطاب"]
[null,"السنة الثالثة متوسط 2",null,27,9,18,0,0,null,27,null,{"$f":"J46/$D$46","v":1},null,null,null,null,null,null,null,null,null,null,null,null,null,null,null,"مجدوب طلحة "]
[null,"السنة الرابعة متوسط 1",null,{"$f":"E47+F47","v":20},9,11,0,0,null,20,null,{"$f":"J47/$D$47","v":1},null,null,null,null,null,null,null,null,null,null,null,null,null,null,null,"مليود جليد "]
[null,"السنة الرابعة متوسط 2",null,{"$f":"E48+F48","v":23},11,12,0,0,null,23,null,{"$f":"J48/$D$48","v":1},null,null,null,null,null,null,null,null,null,null,null,null,null,null,null,"البشير قرمان "]
[null,"ملاحظــــات :"]
[null,null,null,null,null,null,null,null,null,null,null,null,null,null,null,null,null,null,null,null,null,null,null,null,null,null,null,"2019/2020"]
[null,null,null,null,null,null,null,null,null,null,null,null,null,null,null,null,null,null,null,null,null,null,null,null,null,null,null,"2020/2021"]
[null,null,null,null,null,null,null,null,null,null,null,null,null,null,null,null,null,null,null,null,null,null,null,null,null,null,null,"2021/2022"]
[]
[null,"منجز من طرف المكلف بالاستشارة ",null,null,"بتاريخ ",{"$f":"NOW()","v":"2020-06-18T19:22:29.630"}]
[null,null,null,null,null,null,null,null,null,"مدير المؤسسة "]

{"sheet":"3","index":3,"n_rows":55,"n_cols":30,"rows_kept":55,"cut":false,"hidden":false,"merged":[[54,9,54,10],[47,1,47,2],[47,7,47,8],[47,9,47,10],[47,11,47,12],[48,1,51,12],[53,1,53,3],[53,5,53,7],[45,1,45,2],[45,7,45,8],[45,9,45,10],[45,11,45,12],[46,7,46,8],[46,9,46,10],[46,11,46,12],[43,1,43,2],[43,7,43,8],[43,9,43,10],[43,11,43,12],[44,1,44,2],[44,7,44,8],[44,9,44,10],[44,11,44,12],[41,1,41,2],[41,7,41,8],[41,9,41,10],[41,11,41,12],[42,1,42,2],[42,7,42,8],[42,9,42,10],[42,11,42,12],[39,1,39,2],[39,7,39,8],[39,9,39,10],[39,11,39,12],[40,1,40,2],[40,7,40,8],[40,9,40,10],[40,11,40,12],[35,1,36,3],[38,1,38,2],[38,7,38,8],[38,9,38,10],[38,11,38,12],[29,1,29,12],[30,1,33,4],[30,5,30,6],[30,7,30,9],[30,10,30,12],[31,5,33,6],[31,7,33,9],[31,10,33,12],[24,7,24,8],[24,11,24,12],[27,1,28,3],[28,7,28,8],[28,11,28,12],[21,7,21,8],[21,11,21,12],[22,7,22,8],[22,11,22,12],[23,7,23,8],[23,11,23,12],[7,1,7,7],[7,9,7,12],[15,1,17,12],[19,1,19,3],[20,7,20,8],[20,11,20,12],[4,4,4,8],[4,9,4,12],[6,1,6,3],[6,9,6,10],[3,1,3,4],[0,4,0,9],[1,4,1,9],[2,1,2,4],[2,9,2,10],[2,11,2,12]]}
[null,null,null,null,{"$f":"HYPERLINK(\"#'Main Screen'!a1\",\"الجمهورية الجزائرية الديمقراطية الشعبية \")","v":"الجمهورية الجزائرية الديمقراطية الشعبية "}]
[null,null,null,null,"وزارة التربية الوطنيـــة "]
[null,"مديرية التربية لولايـــة الاغواط ",null,null,null,null,null,null,null,"السنة الدراسية ",null,"2019/2020"]
[null,"متوسطة سماعيني معمر تاجرونة "]
[null,null,null,null,"التقرير اليومي للاستشارة ",null,null,null,null,"2020-06-26",null,null,null,null,null,null,"2020-06-01"]
[null,null,null,null,null,null,null,null,null,null,null,null,null,null,null,null,"2020-06-02"]
[null,"مواظبـــة الاساتذة ",null,null,null,null,null,null,null,null,null,null,null,null,null,null,"2020-06-03"]
[null,"الفترة الصباحيـــــــــــة ",null,null,null,null,null,null,null,"الفترة المسائيــــة ",null,null,null,null,null,null,"2020-06-04"]
[null,"الرقم","الاسم و اللقب","المادة ","9--8","10--9","11--10","12--11",null,"15--14","16--15","17--16","الملاحظات",null,null,null,"2020-06-05"]
[null,1,"قدور بومقواس",null,null,null,null,null,null,"1م3","1م2","2م1",null,null,null,null,"2020-06-06"]
[null,2,"العربي قرمان ",null,null,null,null,null,null,null,null,null,null,null,null,null,"2020-06-07"]
[null,3,null,null,null,null,null,null,null,null,null,null,null,null,null,null,"2020-06-08",null,null,null,null,null,null,null,null,null,null,null,null,"1م1"]
[null,4,null,null,null,null,null,null,null,null,null,"2م2",null,null,null,null,"2020-06-09",null,null,null,null,null,null,null,null,null,null,null,null,"1م2"]
[null,5,null,null,null,null,null,null,null,null,null,null,null,null,null,null,"2020-06-10",null,null,null,null,null,null,null,null,null,null,null,null,"1م3"]
[null,6,null,null,null,null,null,null,null,null,null,null,null,null,null,null,"2020-06-11",null,null,null,null,null,null,null,null,null,null,"العربية ",null,"2م1"]
[null,"الاجراءات المتخذة :",null,null,null,null,null,null,null,null,null,null,null,null,null,null,"2020-06-12",null,null,null,null,null,null,null,null,null,null,"الفرنسية ",null,"2م2"]
[null,null,null,null,null,null,null,null,null,null,null,null,null,null,null,null,"2020-06-13",null,null,null,null,null,null,null,null,null,null,"الانجليزية ",null,"3م1"]
[null,null,null,null,null,null,null,null,null,null,null,null,null,null,null,null,"2020-06-14",null,null,null,null,null,null,null,null,null,null,"التربية الاسلامية ",null,"4م1"]
[null,null,null,null,null,null,null,null,null,null,null,null,null,null,null,null,"2020-06-15",null,null,null,null,null,null,null,null,null,null,"التربية المدنية ",null,"4م2"]
[null,"مواظبة موظفي الاستشارة ",null,null,null,null,null,null,null,null,null,null,null,null,null,null,"2020-06-16",null,null,null,null,null,null,null,null,null,null,"التاريخ والجغرافيا "]
[null,"الرقم","الاسم و اللقب","مدة التأخير","السبب",null,"الرقم","الاسم و اللقب",null,"صباحا","مساءا","الملاحظات ",null,null,null,null,"2020-06-17",null,null,null,null,null,null,null,null,null,null,"الرياضيات ",null,"دهكل أحمد"]
[null,1,null,null,null,null,1,null,null,null,null,null,null,null,null,null,"2020-06-18",null,null,null,null,null,null,null,null,null,null,"العلوم /ط",null,"طيفوري محمد"]
[null,2,null,null,null,null,2,null,null,null,null,null,null,null,null,null,"2020-06-19",null,null,null,null,null,null,null,null,null,null,"الفيزياء ",null,"قمقام دربالي"]
[null,3,null,null,null,null,3,null,null,null,null,null,null,null,null,null,"2020-06-20",null,null,null,null,null,null,null,null,null,null,"التربية الفنية "]
[null,4,null,null,null,null,4,null,null,null,null,null,null,null,null,null,"2020-06-21",null,null,null,null,null,null,null,null,null,null,"التربية الرياضية "]
[null,null,null,null,null,null,null,null,null,null,null,null,null,null,null,null,"2020-06-22"]
[null,null,null,null,null,null,null,null,null,null,null,null,null,null,null,null,"2020-06-23"]
[null,"وجبة الاطعــــــــــام ",null,null,null,null,null,null,null,null,null,null,null,null,null,null,"2020-06-24"]
[null,null,null,null,null,null,null,null,null,null,null,null,null,null,null,null,"2020-06-25"]
[null,"وجبــة الاطعام اليوميـــــــة ",null,null,null,null,null,null,null,null,null,null,null,null,null,null,"2020-06-26",null,null,null,null,null,null,null,null,null,null,"مباركة العابد"]
[null,"الوجبـــة",null,null,null,"عدد ن/داخلي",null,"الغائبون ",null,null,"الحاضرون",null,null,null,null,null,"2020-06-27",null,null,null,null,null,null,null,null,null,null,"بوعلام سهلي"]
[null,null,null,null,null,182,null,40,null,null,{"$f":"F32-$H$32","v":142},null,null,null,null,null,"2020-06-28",null,null,null,null,null,null,null,null,null,null,"ام الخير تهامي "]
[null,null,null,null,null,null,null,null,null,null,null,null,null,null,null,null,"2020-06-29",null,null,null,null,null,null,null,null,null,null,"خديجة بدراني "]
[null,null,null,null,null,null,null,null,null,null,null,null,null,null,null,null,"2020-06-30",null,null,null,null,null,null,null,null,null,null,"بوشوشة امحمدي"]
[null,null,null,null,null,null,null,null,null,null,null,null,null,null,null,null,null,null,null,null,null,null,null,null,null,null,null,"يعقوب كواهي "]
[null,"مواظبة التلاميذ ",null,null,null,null,null,null,null,null,null,null,null,null,null,null,null,null,null,null,null,null,null,null,null,null,null,"إبراهيم زريفي "]
[null,null,null,null,null,null,null,null,null,null,null,null,null,null,null,null,null,null,null,null,null,null,null,null,null,null,null,"محمد مشارة "]
[null,null,null,null,null,null,null,null,null,null,null,null,null,null,null,null,null,null,null,null,null,null,null,null,null,null,null,"شريف بدراني "]
[null,"المستوى ",null,"المسجلون","ذكــور","إنــاث","الغائبون","نسبة الغياب %",null,"الحاضرون",null,"نسبة الحاضرين %",null,null,null,null,null,null,null,null,null,null,null,null,null,null,null,"عبد القادر حساني "]
[null,"السنة الاولي متوسط 1",null,22,15,7,0,{"$f":"G40/$D$40","v":0},null,{"$f":"D40-$G$40","v":22},null,{"$f":"J40/$D$40","v":1}]
[null,"السنة الاولي متوسط 2",null,21,12,9,0,{"$f":"G41/$D$41","v":0},null,{"$f":"D41-G41","v":21},null,{"$f":"J41/$D$41","v":1},null,null,null,null,null,null,null,null,null,null,null,null,null,null,null,"قدور بومقواس"]
[null,"السنة الاولي متوسط 3",null,23,11,12,0,{"$f":"G42/$D$41","v":0},null,23,null,{"$f":"J42/$D$42","v":1},null,null,null,null,null,null,null,null,null,null,null,null,null,null,null,"العربي قرمان "]
[null,"السنة الثانية متوسط 1",null,31,15,16,0,0,null,31,null,{"$f":"J43/$D$43","v":1},null,null,null,null,null,null,null,null,null,null,null,null,null,null,null,"عبد القادر طيبي "]
[null,"السنة الثانية متوسط 2",null,33,17,16,0,0,null,33,null,{"$f":"J44/$D$44","v":1},null,null,null,null,null,null,null,null,null,null,null,null,null,null,null,"ميلود داودي "]
[null,"السنة الثالثة متوسط1",null,28,12,16,0,0,null,28,null,{"$f":"J45/$D$45","v":1},null,null,null,null,null,null,null,null,null,null,null,null,null,null,null,"رشيدة حطاب"]
[null,"السنة الثالثة متوسط 2",null,27,9,18,0,0,null,27,null,{"$f":"J46/$D$46","v":1},null,null,null,null,null,null,null,null,null,null,null,null,null,null,null,"مجدوب طلحة "]
[null,"السنة الرابعة متوسط 1",null,{"$f":"E47+F47","v":20},9,11,0,0,null,20,null,{"$f":"J47/$D$47","v":1},null,null,null,null,null,null,null,null,null,null,null,null,null,null,null,"مليود جليد "]
[null,"السنة الرابعة متوسط 2",null,{"$f":"E48+F48","v":23},11,12,0,0,null,23,null,{"$f":"J48/$D$48","v":1},null,null,null,null,null,null,null,null,null,null,null,null,null,null,null,"البشير قرمان "]
[null,"ملاحظــــات :"]
[null,null,null,null,null,null,null,null,null,null,null,null,null,null,null,null,null,null,null,null,null,null,null,null,null,null,null,"2019/2020"]
[null,null,null,null,null,null,null,null,null,null,null,null,null,null,null,null,null,null,null,null,null,null,null,null,null,null,null,"2020/2021"]
[null,null,null,null,null,null,null,null,null,null,null,null,null,null,null,null,null,null,null,null,null,null,null,null,null,null,null,"2021/2022"]
[]
[null,"منجز من طرف المكلف بالاستشارة ",null,null,"بتاريخ ",{"$f":"NOW()","v":"2020-06-18T19:22:29.630"}]
[null,null,null,null,null,null,null,null,null,"مدير المؤسسة "]

{"sheet":"4","index":4,"n_rows":55,"n_cols":30,"rows_kept":55,"cut":false,"hidden":false,"merged":[[54,9,54,10],[47,1,47,2],[47,7,47,8],[47,9,47,10],[47,11,47,12],[48,1,51,12],[53,1,53,3],[53,5,53,7],[45,1,45,2],[45,7,45,8],[45,9,45,10],[45,11,45,12],[46,7,46,8],[46,9,46,10],[46,11,46,12],[43,1,43,2],[43,7,43,8],[43,9,43,10],[43,11,43,12],[44,1,44,2],[44,7,44,8],[44,9,44,10],[44,11,44,12],[41,1,41,2],[41,7,41,8],[41,9,41,10],[41,11,41,12],[42,1,42,2],[42,7,42,8],[42,9,42,10],[42,11,42,12],[39,1,39,2],[39,7,39,8],[39,9,39,10],[39,11,39,12],[40,1,40,2],[40,7,40,8],[40,9,40,10],[40,11,40,12],[35,1,36,3],[38,1,38,2],[38,7,38,8],[38,9,38,10],[38,11,38,12],[29,1,29,12],[30,1,33,4],[30,5,30,6],[30,7,30,9],[30,10,30,12],[31,5,33,6],[31,7,33,9],[31,10,33,12],[24,7,24,8],[24,11,24,12],[27,1,28,3],[28,7,28,8],[28,11,28,12],[21,7,21,8],[21,11,21,12],[22,7,22,8],[22,11,22,12],[23,7,23,8],[23,11,23,12],[7,1,7,7],[7,9,7,12],[15,1,17,12],[19,1,19,3],[20,7,20,8],[20,11,20,12],[4,4,4,8],[4,9,4,12],[6,1,6,3],[6,9,6,10],[3,1,3,4],[0,4,0,9],[1,4,1,9],[2,1,2,4],[2,9,2,10],[2,11,2,12]]}
[null,null,null,null,{"$f":"HYPERLINK(\"#'Main Screen'!a1\",\"الجمهورية الجزائرية الديمقراطية الشعبية \")","v":"الجمهورية الجزائرية الديمقراطية الشعبية "}]
[null,null,null,null,"وزارة التربية الوطنيـــة "]
[null,"مديرية التربية لولايـــة الاغواط ",null,null,null,null,null,null,null,"السنة الدراسية ",null,"2019/2020"]
[null,"متوسطة سماعيني معمر تاجرونة "]
[null,null,null,null,"التقرير اليومي للاستشارة ",null,null,null,null,"2020-06-26",null,null,null,null,null,null,"2020-06-01"]
[null,null,null,null,null,null,null,null,null,null,null,null,null,null,null,null,"2020-06-02"]
[null,"مواظبـــة الاساتذة ",null,null,null,null,null,null,null,null,null,null,null,null,null,null,"2020-06-03"]
[null,"الفترة الصباحيـــــــــــة ",null,null,null,null,null,null,null,"الفترة المسائيــــة ",null,null,null,null,null,null,"2020-06-04"]
[null,"الرقم","الاسم و اللقب","المادة ","9--8","10--9","11--10","12--11",null,"15--14","16--15","17--16","الملاحظات",null,null,null,"2020-06-05"]
[null,1,"قدور بومقواس",null,null,null,null,null,null,"1م3","1م2","2م1",null,null,null,null,"2020-06-06"]
[null,2,"العربي قرمان ",null,null,null,null,null,null,null,null,null,null,null,null,null,"2020-06-07"]
[null,3,null,null,null,null,null,null,null,null,null,null,null,null,null,null,"2020-06-08",null,null,null,null,null,null,null,null,null,null,null,null,"1م1"]
[null,4,null,null,null,null,null,null,null,null,null,"2م2",null,null,null,null,"2020-06-09",null,null,null,null,null,null,null,null,null,null,null,null,"1م2"]
[null,5,null,null,null,null,null,null,null,null,null,null,null,null,null,null,"2020-06-10",null,null,null,null,null,null,null,null,null,null,null,null,"1م3"]
[null,6,null,null,null,null,null,null,null,null,null,null,null,null,null,null,"2020-06-11",null,null,null,null,null,null,null,null,null,null,"العربية ",null,"2م1"]
[null,"الاجراءات المتخذة :",null,null,null,null,null,null,null,null,null,null,null,null,null,null,"2020-06-12",null,null,null,null,null,null,null,null,null,null,"الفرنسية ",null,"2م2"]
[null,null,null,null,null,null,null,null,null,null,null,null,null,null,null,null,"2020-06-13",null,null,null,null,null,null,null,null,null,null,"الانجليزية ",null,"3م1"]
[null,null,null,null,null,null,null,null,null,null,null,null,null,null,null,null,"2020-06-14",null,null,null,null,null,null,null,null,null,null,"التربية الاسلامية ",null,"4م1"]
[null,null,null,null,null,null,null,null,null,null,null,null,null,null,null,null,"2020-06-15",null,null,null,null,null,null,null,null,null,null,"التربية المدنية ",null,"4م2"]
[null,"مواظبة موظفي الاستشارة ",null,null,null,null,null,null,null,null,null,null,null,null,null,null,"2020-06-16",null,null,null,null,null,null,null,null,null,null,"التاريخ والجغرافيا "]
[null,"الرقم","الاسم و اللقب","مدة التأخير","السبب",null,"الرقم","الاسم و اللقب",null,"صباحا","مساءا","الملاحظات ",null,null,null,null,"2020-06-17",null,null,null,null,null,null,null,null,null,null,"الرياضيات ",null,"دهكل أحمد"]
[null,1,null,null,null,null,1,null,null,null,null,null,null,null,null,null,"2020-06-18",null,null,null,null,null,null,null,null,null,null,"العلوم /ط",null,"طيفوري محمد"]
[null,2,null,null,null,null,2,null,null,null,null,null,null,null,null,null,"2020-06-19",null,null,null,null,null,null,null,null,null,null,"الفيزياء ",null,"قمقام دربالي"]
[null,3,null,null,null,null,3,null,null,null,null,null,null,null,null,null,"2020-06-20",null,null,null,null,null,null,null,null,null,null,"التربية الفنية "]
[null,4,null,null,null,null,4,null,null,null,null,null,null,null,null,null,"2020-06-21",null,null,null,null,null,null,null,null,null,null,"التربية الرياضية "]
[null,null,null,null,null,null,null,null,null,null,null,null,null,null,null,null,"2020-06-22"]
[null,null,null,null,null,null,null,null,null,null,null,null,null,null,null,null,"2020-06-23"]
[null,"وجبة الاطعــــــــــام ",null,null,null,null,null,null,null,null,null,null,null,null,null,null,"2020-06-24"]
[null,null,null,null,null,null,null,null,null,null,null,null,null,null,null,null,"2020-06-25"]
[null,"وجبــة الاطعام اليوميـــــــة ",null,null,null,null,null,null,null,null,null,null,null,null,null,null,"2020-06-26",null,null,null,null,null,null,null,null,null,null,"مباركة العابد"]
[null,"الوجبـــة",null,null,null,"عدد ن/داخلي",null,"الغائبون ",null,null,"الحاضرون",null,null,null,null,null,"2020-06-27",null,null,null,null,null,null,null,null,null,null,"بوعلام سهلي"]
[null,null,null,null,null,182,null,40,null,null,{"$f":"F32-$H$32","v":142},null,null,null,null,null,"2020-06-28",null,null,null,null,null,null,null,null,null,null,"ام الخير تهامي "]
[null,null,null,null,null,null,null,null,null,null,null,null,null,null,null,null,"2020-06-29",null,null,null,null,null,null,null,null,null,null,"خديجة بدراني "]
[null,null,null,null,null,null,null,null,null,null,null,null,null,null,null,null,"2020-06-30",null,null,null,null,null,null,null,null,null,null,"بوشوشة امحمدي"]
[null,null,null,null,null,null,null,null,null,null,null,null,null,null,null,null,null,null,null,null,null,null,null,null,null,null,null,"يعقوب كواهي "]
[null,"مواظبة التلاميذ ",null,null,null,null,null,null,null,null,null,null,null,null,null,null,null,null,null,null,null,null,null,null,null,null,null,"إبراهيم زريفي "]
[null,null,null,null,null,null,null,null,null,null,null,null,null,null,null,null,null,null,null,null,null,null,null,null,null,null,null,"محمد مشارة "]
[null,null,null,null,null,null,null,null,null,null,null,null,null,null,null,null,null,null,null,null,null,null,null,null,null,null,null,"شريف بدراني "]
[null,"المستوى ",null,"المسجلون","ذكــور","إنــاث","الغائبون","نسبة الغياب %",null,"الحاضرون",null,"نسبة الحاضرين %",null,null,null,null,null,null,null,null,null,null,null,null,null,null,null,"عبد القادر حساني "]
[null,"السنة الاولي متوسط 1",null,22,15,7,0,{"$f":"G40/$D$40","v":0},null,{"$f":"D40-$G$40","v":22},null,{"$f":"J40/$D$40","v":1}]
[null,"السنة الاولي متوسط 2",null,21,12,9,0,{"$f":"G41/$D$41","v":0},null,{"$f":"D41-G41","v":21},null,{"$f":"J41/$D$41","v":1},null,null,null,null,null,null,null,null,null,null,null,null,null,null,null,"قدور بومقواس"]
[null,"السنة الاولي متوسط 3",null,23,11,12,0,{"$f":"G42/$D$41","v":0},null,23,null,{"$f":"J42/$D$42","v":1},null,null,null,null,null,null,null,null,null,null,null,null,null,null,null,"العربي قرمان "]
[null,"السنة الثانية متوسط 1",null,31,15,16,0,0,null,31,null,{"$f":"J43/$D$43","v":1},null,null,null,null,null,null,null,null,null,null,null,null,null,null,null,"عبد القادر طيبي "]
[null,"السنة الثانية متوسط 2",null,33,17,16,0,0,null,33,null,{"$f":"J44/$D$44","v":1},null,null,null,null,null,null,null,null,null,null,null,null,null,null,null,"ميلود داودي "]
[null,"السنة الثالثة متوسط1",null,28,12,16,0,0,null,28,null,{"$f":"J45/$D$45","v":1},null,null,null,null,null,null,null,null,null,null,null,null,null,null,null,"رشيدة حطاب"]
[null,"السنة الثالثة متوسط 2",null,27,9,18,0,0,null,27,null,{"$f":"J46/$D$46","v":1},null,null,null,null,null,null,null,null,null,null,null,null,null,null,null,"مجدوب طلحة "]
[null,"السنة الرابعة متوسط 1",null,{"$f":"E47+F47","v":20},9,11,0,0,null,20,null,{"$f":"J47/$D$47","v":1},null,null,null,null,null,null,null,null,null,null,null,null,null,null,null,"مليود جليد "]
[null,"السنة الرابعة متوسط 2",null,{"$f":"E48+F48","v":23},11,12,0,0,null,23,null,{"$f":"J48/$D$48","v":1},null,null,null,null,null,null,null,null,null,null,null,null,null,null,null,"البشير قرمان "]
[null,"ملاحظــــات :"]
[null,null,null,null,null,null,null,null,null,null,null,null,null,null,null,null,null,null,null,null,null,null,null,null,null,null,null,"2019/2020"]
[null,null,null,null,null,null,null,null,null,null,null,null,null,null,null,null,null,null,null,null,null,null,null,null,null,null,null,"2020/2021"]
[null,null,null,null,null,null,null,null,null,null,null,null,null,null,null,null,null,null,null,null,null,null,null,null,null,null,null,"2021/2022"]
[]
[null,"منجز من طرف المكلف بالاستشارة ",null,null,"بتاريخ ",{"$f":"NOW()","v":"2020-06-18T19:22:29.630"}]
[null,null,null,null,null,null,null,null,null,"مدير المؤسسة "]

{"sheet":"5","index":5,"n_rows":55,"n_cols":30,"rows_kept":55,"cut":false,"hidden":false,"merged":[[54,9,54,10],[47,1,47,2],[47,7,47,8],[47,9,47,10],[47,11,47,12],[48,1,51,12],[53,1,53,3],[53,5,53,7],[45,1,45,2],[45,7,45,8],[45,9,45,10],[45,11,45,12],[46,7,46,8],[46,9,46,10],[46,11,46,12],[43,1,43,2],[43,7,43,8],[43,9,43,10],[43,11,43,12],[44,1,44,2],[44,7,44,8],[44,9,44,10],[44,11,44,12],[41,1,41,2],[41,7,41,8],[41,9,41,10],[41,11,41,12],[42,1,42,2],[42,7,42,8],[42,9,42,10],[42,11,42,12],[39,1,39,2],[39,7,39,8],[39,9,39,10],[39,11,39,12],[40,1,40,2],[40,7,40,8],[40,9,40,10],[40,11,40,12],[35,1,36,3],[38,1,38,2],[38,7,38,8],[38,9,38,10],[38,11,38,12],[29,1,29,12],[30,1,33,4],[30,5,30,6],[30,7,30,9],[30,10,30,12],[31,5,33,6],[31,7,33,9],[31,10,33,12],[24,7,24,8],[24,11,24,12],[27,1,28,3],[28,7,28,8],[28,11,28,12],[21,7,21,8],[21,11,21,12],[22,7,22,8],[22,11,22,12],[23,7,23,8],[23,11,23,12],[7,1,7,7],[7,9,7,12],[15,1,17,12],[19,1,19,3],[20,7,20,8],[20,11,20,12],[4,4,4,8],[4,9,4,12],[6,1,6,3],[6,9,6,10],[3,1,3,4],[0,4,0,9],[1,4,1,9],[2,1,2,4],[2,9,2,10],[2,11,2,12]]}
[null,null,null,null,{"$f":"HYPERLINK(\"#'Main Screen'!a1\",\"الجمهورية الجزائرية الديمقراطية الشعبية \")","v":"الجمهورية الجزائرية الديمقراطية الشعبية "}]
[null,null,null,null,"وزارة التربية الوطنيـــة "]
[null,"مديرية التربية لولايـــة الاغواط ",null,null,null,null,null,null,null,"السنة الدراسية ",null,"2019/2020"]
[null,"متوسطة سماعيني معمر تاجرونة "]
[null,null,null,null,"التقرير اليومي للاستشارة ",null,null,null,null,"2020-06-26",null,null,null,null,null,null,"2020-06-01"]
[null,null,null,null,null,null,null,null,null,null,null,null,null,null,null,null,"2020-06-02"]
[null,"مواظبـــة الاساتذة ",null,null,null,null,null,null,null,null,null,null,null,null,null,null,"2020-06-03"]
[null,"الفترة الصباحيـــــــــــة ",null,null,null,null,null,null,null,"الفترة المسائيــــة ",null,null,null,null,null,null,"2020-06-04"]
[null,"الرقم","الاسم و اللقب","المادة ","9--8","10--9","11--10","12--11",null,"15--14","16--15","17--16","الملاحظات",null,null,null,"2020-06-05"]
[null,1,"قدور بومقواس",null,null,null,null,null,null,"1م3","1م2","2م1",null,null,null,null,"2020-06-06"]
[null,2,"العربي قرمان ",null,null,null,null,null,null,null,null,null,null,null,null,null,"2020-06-07"]
[null,3,null,null,null,null,null,null,null,null,null,null,null,null,null,null,"2020-06-08",null,null,null,null,null,null,null,null,null,null,null,null,"1م1"]
[null,4,null,null,null,null,null,null,null,null,null,"2م2",null,null,null,null,"2020-06-09",null,null,null,null,null,null,null,null,null,null,null,null,"1م2"]
[null,5,null,null,null,null,null,null,null,null,null,null,null,null,null,null,"2020-06-10",null,null,null,null,null,null,null,null,null,null,null,null,"1م3"]
[null,6,null,null,null,null,null,null,null,null,null,null,null,null,null,null,"2020-06-11",null,null,null,null,null,null,null,null,null,null,"العربية ",null,"2م1"]
[null,"الاجراءات المتخذة :",null,null,null,null,null,null,null,null,null,null,null,null,null,null,"2020-06-12",null,null,null,null,null,null,null,null,null,null,"الفرنسية ",null,"2م2"]
[null,null,null,null,null,null,null,null,null,null,null,null,null,null,null,null,"2020-06-13",null,null,null,null,null,null,null,null,null,null,"الانجليزية ",null,"3م1"]
[null,null,null,null,null,null,null,null,null,null,null,null,null,null,null,null,"2020-06-14",null,null,null,null,null,null,null,null,null,null,"التربية الاسلامية ",null,"4م1"]
[null,null,null,null,null,null,null,null,null,null,null,null,null,null,null,null,"2020-06-15",null,null,null,null,null,null,null,null,null,null,"التربية المدنية ",null,"4م2"]
[null,"مواظبة موظفي الاستشارة ",null,null,null,null,null,null,null,null,null,null,null,null,null,null,"2020-06-16",null,null,null,null,null,null,null,null,null,null,"التاريخ والجغرافيا "]
[null,"الرقم","الاسم و اللقب","مدة التأخير","السبب",null,"الرقم","الاسم و اللقب",null,"صباحا","مساءا","الملاحظات ",null,null,null,null,"2020-06-17",null,null,null,null,null,null,null,null,null,null,"الرياضيات ",null,"دهكل أحمد"]
[null,1,null,null,null,null,1,null,null,null,null,null,null,null,null,null,"2020-06-18",null,null,null,null,null,null,null,null,null,null,"العلوم /ط",null,"طيفوري محمد"]
[null,2,null,null,null,null,2,null,null,null,null,null,null,null,null,null,"2020-06-19",null,null,null,null,null,null,null,null,null,null,"الفيزياء ",null,"قمقام دربالي"]
[null,3,null,null,null,null,3,null,null,null,null,null,null,null,null,null,"2020-06-20",null,null,null,null,null,null,null,null,null,null,"التربية الفنية "]
[null,4,null,null,null,null,4,null,null,null,null,null,null,null,null,null,"2020-06-21",null,null,null,null,null,null,null,null,null,null,"التربية الرياضية "]
[null,null,null,null,null,null,null,null,null,null,null,null,null,null,null,null,"2020-06-22"]
[null,null,null,null,null,null,null,null,null,null,null,null,null,null,null,null,"2020-06-23"]
[null,"وجبة الاطعــــــــــام ",null,null,null,null,null,null,null,null,null,null,null,null,null,null,"2020-06-24"]
[null,null,null,null,null,null,null,null,null,null,null,null,null,null,null,null,"2020-06-25"]
[null,"وجبــة الاطعام اليوميـــــــة ",null,null,null,null,null,null,null,null,null,null,null,null,null,null,"2020-06-26",null,null,null,null,null,null,null,null,null,null,"مباركة العابد"]
[null,"الوجبـــة",null,null,null,"عدد ن/داخلي",null,"الغائبون ",null,null,"الحاضرون",null,null,null,null,null,"2020-06-27",null,null,null,null,null,null,null,null,null,null,"بوعلام سهلي"]
[null,null,null,null,null,182,null,40,null,null,{"$f":"F32-$H$32","v":142},null,null,null,null,null,"2020-06-28",null,null,null,null,null,null,null,null,null,null,"ام الخير تهامي "]
[null,null,null,null,null,null,null,null,null,null,null,null,null,null,null,null,"2020-06-29",null,null,null,null,null,null,null,null,null,null,"خديجة بدراني "]
[null,null,null,null,null,null,null,null,null,null,null,null,null,null,null,null,"2020-06-30",null,null,null,null,null,null,null,null,null,null,"بوشوشة امحمدي"]
[null,null,null,null,null,null,null,null,null,null,null,null,null,null,null,null,null,null,null,null,null,null,null,null,null,null,null,"يعقوب كواهي "]
[null,"مواظبة التلاميذ ",null,null,null,null,null,null,null,null,null,null,null,null,null,null,null,null,null,null,null,null,null,null,null,null,null,"إبراهيم زريفي "]
[null,null,null,null,null,null,null,null,null,null,null,null,null,null,null,null,null,null,null,null,null,null,null,null,null,null,null,"محمد مشارة "]
[null,null,null,null,null,null,null,null,null,null,null,null,null,null,null,null,null,null,null,null,null,null,null,null,null,null,null,"شريف بدراني "]
[null,"المستوى ",null,"المسجلون","ذكــور","إنــاث","الغائبون","نسبة الغياب %",null,"الحاضرون",null,"نسبة الحاضرين %",null,null,null,null,null,null,null,null,null,null,null,null,null,null,null,"عبد القادر حساني "]
[null,"السنة الاولي متوسط 1",null,22,15,7,0,{"$f":"G40/$D$40","v":0},null,{"$f":"D40-$G$40","v":22},null,{"$f":"J40/$D$40","v":1}]
[null,"السنة الاولي متوسط 2",null,21,12,9,0,{"$f":"G41/$D$41","v":0},null,{"$f":"D41-G41","v":21},null,{"$f":"J41/$D$41","v":1},null,null,null,null,null,null,null,null,null,null,null,null,null,null,null,"قدور بومقواس"]
[null,"السنة الاولي متوسط 3",null,23,11,12,0,{"$f":"G42/$D$41","v":0},null,23,null,{"$f":"J42/$D$42","v":1},null,null,null,null,null,null,null,null,null,null,null,null,null,null,null,"العربي قرمان "]
[null,"السنة الثانية متوسط 1",null,31,15,16,0,0,null,31,null,{"$f":"J43/$D$43","v":1},null,null,null,null,null,null,null,null,null,null,null,null,null,null,null,"عبد القادر طيبي "]
[null,"السنة الثانية متوسط 2",null,33,17,16,0,0,null,33,null,{"$f":"J44/$D$44","v":1},null,null,null,null,null,null,null,null,null,null,null,null,null,null,null,"ميلود داودي "]
[null,"السنة الثالثة متوسط1",null,28,12,16,0,0,null,28,null,{"$f":"J45/$D$45","v":1},null,null,null,null,null,null,null,null,null,null,null,null,null,null,null,"رشيدة حطاب"]
[null,"السنة الثالثة متوسط 2",null,27,9,18,0,0,null,27,null,{"$f":"J46/$D$46","v":1},null,null,null,null,null,null,null,null,null,null,null,null,null,null,null,"مجدوب طلحة "]
[null,"السنة الرابعة متوسط 1",null,{"$f":"E47+F47","v":20},9,11,0,0,null,20,null,{"$f":"J47/$D$47","v":1},null,null,null,null,null,null,null,null,null,null,null,null,null,null,null,"مليود جليد "]
[null,"السنة الرابعة متوسط 2",null,{"$f":"E48+F48","v":23},11,12,0,0,null,23,null,{"$f":"J48/$D$48","v":1},null,null,null,null,null,null,null,null,null,null,null,null,null,null,null,"البشير قرمان "]
[null,"ملاحظــــات :"]
[null,null,null,null,null,null,null,null,null,null,null,null,null,null,null,null,null,null,null,null,null,null,null,null,null,null,null,"2019/2020"]
[null,null,null,null,null,null,null,null,null,null,null,null,null,null,null,null,null,null,null,null,null,null,null,null,null,null,null,"2020/2021"]
[null,null,null,null,null,null,null,null,null,null,null,null,null,null,null,null,null,null,null,null,null,null,null,null,null,null,null,"2021/2022"]
[]
[null,"منجز من طرف المكلف بالاستشارة ",null,null,"بتاريخ ",{"$f":"NOW()","v":"2020-06-18T19:22:29.630"}]
[null,null,null,null,null,null,null,null,null,"مدير المؤسسة "]

{"sheet":"6","index":6,"n_rows":55,"n_cols":30,"rows_kept":55,"cut":false,"hidden":false,"merged":[[54,9,54,10],[47,1,47,2],[47,7,47,8],[47,9,47,10],[47,11,47,12],[48,1,51,12],[53,1,53,3],[53,5,53,7],[45,1,45,2],[45,7,45,8],[45,9,45,10],[45,11,45,12],[46,7,46,8],[46,9,46,10],[46,11,46,12],[43,1,43,2],[43,7,43,8],[43,9,43,10],[43,11,43,12],[44,1,44,2],[44,7,44,8],[44,9,44,10],[44,11,44,12],[41,1,41,2],[41,7,41,8],[41,9,41,10],[41,11,41,12],[42,1,42,2],[42,7,42,8],[42,9,42,10],[42,11,42,12],[39,1,39,2],[39,7,39,8],[39,9,39,10],[39,11,39,12],[40,1,40,2],[40,7,40,8],[40,9,40,10],[40,11,40,12],[35,1,36,3],[38,1,38,2],[38,7,38,8],[38,9,38,10],[38,11,38,12],[29,1,29,12],[30,1,33,4],[30,5,30,6],[30,7,30,9],[30,10,30,12],[31,5,33,6],[31,7,33,9],[31,10,33,12],[24,7,24,8],[24,11,24,12],[27,1,28,3],[28,7,28,8],[28,11,28,12],[21,7,21,8],[21,11,21,12],[22,7,22,8],[22,11,22,12],[23,7,23,8],[23,11,23,12],[7,1,7,7],[7,9,7,12],[15,1,17,12],[19,1,19,3],[20,7,20,8],[20,11,20,12],[4,4,4,8],[4,9,4,12],[6,1,6,3],[6,9,6,10],[3,1,3,4],[0,4,0,9],[1,4,1,9],[2,1,2,4],[2,9,2,10],[2,11,2,12]]}
[null,null,null,null,{"$f":"HYPERLINK(\"#'Main Screen'!a1\",\"الجمهورية الجزائرية الديمقراطية الشعبية \")","v":"الجمهورية الجزائرية الديمقراطية الشعبية "}]
[null,null,null,null,"وزارة التربية الوطنيـــة "]
[null,"مديرية التربية لولايـــة الاغواط ",null,null,null,null,null,null,null,"السنة الدراسية ",null,"2019/2020"]
[null,"متوسطة سماعيني معمر تاجرونة "]
[null,null,null,null,"التقرير اليومي للاستشارة ",null,null,null,null,"2020-06-26",null,null,null,null,null,null,"2020-06-01"]
[null,null,null,null,null,null,null,null,null,null,null,null,null,null,null,null,"2020-06-02"]
[null,"مواظبـــة الاساتذة ",null,null,null,null,null,null,null,null,null,null,null,null,null,null,"2020-06-03"]
[null,"الفترة الصباحيـــــــــــة ",null,null,null,null,null,null,null,"الفترة المسائيــــة ",null,null,null,null,null,null,"2020-06-04"]
[null,"الرقم","الاسم و اللقب","المادة ","9--8","10--9","11--10","12--11",null,"15--14","16--15","17--16","الملاحظات",null,null,null,"2020-06-05"]
[null,1,"قدور بومقواس",null,null,null,null,null,null,"1م3","1م2","2م1",null,null,null,null,"2020-06-06"]
[null,2,"العربي قرمان ",null,null,null,null,null,null,null,null,null,null,null,null,null,"2020-06-07"]
[null,3,null,null,null,null,null,null,null,null,null,null,null,null,null,null,"2020-06-08",null,null,null,null,null,null,null,null,null,null,null,null,"1م1"]
[null,4,null,null,null,null,null,null,null,null,null,"2م2",null,null,null,null,"2020-06-09",null,null,null,null,null,null,null,null,null,null,null,null,"1م2"]
[null,5,null,null,null,null,null,null,null,null,null,null,null,null,null,null,"2020-06-10",null,null,null,null,null,null,null,null,null,null,null,null,"1م3"]
[null,6,null,null,null,null,null,null,null,null,null,null,null,null,null,null,"2020-06-11",null,null,null,null,null,null,null,null,null,null,"العربية ",null,"2م1"]
[null,"الاجراءات المتخذة :",null,null,null,null,null,null,null,null,null,null,null,null,null,null,"2020-06-12",null,null,null,null,null,null,null,null,null,null,"الفرنسية ",null,"2م2"]
[null,null,null,null,null,null,null,null,null,null,null,null,null,null,null,null,"2020-06-13",null,null,null,null,null,null,null,null,null,null,"الانجليزية ",null,"3م1"]
[null,null,null,null,null,null,null,null,null,null,null,null,null,null,null,null,"2020-06-14",null,null,null,null,null,null,null,null,null,null,"التربية الاسلامية ",null,"4م1"]
[null,null,null,null,null,null,null,null,null,null,null,null,null,null,null,null,"2020-06-15",null,null,null,null,null,null,null,null,null,null,"التربية المدنية ",null,"4م2"]
[null,"مواظبة موظفي الاستشارة ",null,null,null,null,null,null,null,null,null,null,null,null,null,null,"2020-06-16",null,null,null,null,null,null,null,null,null,null,"التاريخ والجغرافيا "]
[null,"الرقم","الاسم و اللقب","مدة التأخير","السبب",null,"الرقم","الاسم و اللقب",null,"صباحا","مساءا","الملاحظات ",null,null,null,null,"2020-06-17",null,null,null,null,null,null,null,null,null,null,"الرياضيات ",null,"دهكل أحمد"]
[null,1,null,null,null,null,1,null,null,null,null,null,null,null,null,null,"2020-06-18",null,null,null,null,null,null,null,null,null,null,"العلوم /ط",null,"طيفوري محمد"]
[null,2,null,null,null,null,2,null,null,null,null,null,null,null,null,null,"2020-06-19",null,null,null,null,null,null,null,null,null,null,"الفيزياء ",null,"قمقام دربالي"]
[null,3,null,null,null,null,3,null,null,null,null,null,null,null,null,null,"2020-06-20",null,null,null,null,null,null,null,null,null,null,"التربية الفنية "]
[null,4,null,null,null,null,4,null,null,null,null,null,null,null,null,null,"2020-06-21",null,null,null,null,null,null,null,null,null,null,"التربية الرياضية "]
[null,null,null,null,null,null,null,null,null,null,null,null,null,null,null,null,"2020-06-22"]
[null,null,null,null,null,null,null,null,null,null,null,null,null,null,null,null,"2020-06-23"]
[null,"وجبة الاطعــــــــــام ",null,null,null,null,null,null,null,null,null,null,null,null,null,null,"2020-06-24"]
[null,null,null,null,null,null,null,null,null,null,null,null,null,null,null,null,"2020-06-25"]
[null,"وجبــة الاطعام اليوميـــــــة ",null,null,null,null,null,null,null,null,null,null,null,null,null,null,"2020-06-26",null,null,null,null,null,null,null,null,null,null,"مباركة العابد"]
[null,"الوجبـــة",null,null,null,"عدد ن/داخلي",null,"الغائبون ",null,null,"الحاضرون",null,null,null,null,null,"2020-06-27",null,null,null,null,null,null,null,null,null,null,"بوعلام سهلي"]
[null,null,null,null,null,182,null,40,null,null,{"$f":"F32-$H$32","v":142},null,null,null,null,null,"2020-06-28",null,null,null,null,null,null,null,null,null,null,"ام الخير تهامي "]
[null,null,null,null,null,null,null,null,null,null,null,null,null,null,null,null,"2020-06-29",null,null,null,null,null,null,null,null,null,null,"خديجة بدراني "]
[null,null,null,null,null,null,null,null,null,null,null,null,null,null,null,null,"2020-06-30",null,null,null,null,null,null,null,null,null,null,"بوشوشة امحمدي"]
[null,null,null,null,null,null,null,null,null,null,null,null,null,null,null,null,null,null,null,null,null,null,null,null,null,null,null,"يعقوب كواهي "]
[null,"مواظبة التلاميذ ",null,null,null,null,null,null,null,null,null,null,null,null,null,null,null,null,null,null,null,null,null,null,null,null,null,"إبراهيم زريفي "]
[null,null,null,null,null,null,null,null,null,null,null,null,null,null,null,null,null,null,null,null,null,null,null,null,null,null,null,"محمد مشارة "]
[null,null,null,null,null,null,null,null,null,null,null,null,null,null,null,null,null,null,null,null,null,null,null,null,null,null,null,"شريف بدراني "]
[null,"المستوى ",null,"المسجلون","ذكــور","إنــاث","الغائبون","نسبة الغياب %",null,"الحاضرون",null,"نسبة الحاضرين %",null,null,null,null,null,null,null,null,null,null,null,null,null,null,null,"عبد القادر حساني "]
[null,"السنة الاولي متوسط 1",null,22,15,7,0,{"$f":"G40/$D$40","v":0},null,{"$f":"D40-$G$40","v":22},null,{"$f":"J40/$D$40","v":1}]
[null,"السنة الاولي متوسط 2",null,21,12,9,0,{"$f":"G41/$D$41","v":0},null,{"$f":"D41-G41","v":21},null,{"$f":"J41/$D$41","v":1},null,null,null,null,null,null,null,null,null,null,null,null,null,null,null,"قدور بومقواس"]
[null,"السنة الاولي متوسط 3",null,23,11,12,0,{"$f":"G42/$D$41","v":0},null,23,null,{"$f":"J42/$D$42","v":1},null,null,null,null,null,null,null,null,null,null,null,null,null,null,null,"العربي قرمان "]
[null,"السنة الثانية متوسط 1",null,31,15,16,0,0,null,31,null,{"$f":"J43/$D$43","v":1},null,null,null,null,null,null,null,null,null,null,null,null,null,null,null,"عبد القادر طيبي "]
[null,"السنة الثانية متوسط 2",null,33,17,16,0,0,null,33,null,{"$f":"J44/$D$44","v":1},null,null,null,null,null,null,null,null,null,null,null,null,null,null,null,"ميلود داودي "]
[null,"السنة الثالثة متوسط1",null,28,12,16,0,0,null,28,null,{"$f":"J45/$D$45","v":1},null,null,null,null,null,null,null,null,null,null,null,null,null,null,null,"رشيدة حطاب"]
[null,"السنة الثالثة متوسط 2",null,27,9,18,0,0,null,27,null,{"$f":"J46/$D$46","v":1},null,null,null,null,null,null,null,null,null,null,null,null,null,null,null,"مجدوب طلحة "]
[null,"السنة الرابعة متوسط 1",null,{"$f":"E47+F47","v":20},9,11,0,0,null,20,null,{"$f":"J47/$D$47","v":1},null,null,null,null,null,null,null,null,null,null,null,null,null,null,null,"مليود جليد "]
[null,"السنة الرابعة متوسط 2",null,{"$f":"E48+F48","v":23},11,12,0,0,null,23,null,{"$f":"J48/$D$48","v":1},null,null,null,null,null,null,null,null,null,null,null,null,null,null,null,"البشير قرمان "]
[null,"ملاحظــــات :"]
[null,null,null,null,null,null,null,null,null,null,null,null,null,null,null,null,null,null,null,null,null,null,null,null,null,null,null,"2019/2020"]
[null,null,null,null,null,null,null,null,null,null,null,null,null,null,null,null,null,null,null,null,null,null,null,null,null,null,null,"2020/2021"]
[null,null,null,null,null,null,null,null,null,null,null,null,null,null,null,null,null,null,null,null,null,null,null,null,null,null,null,"2021/2022"]
[]
[null,"منجز من طرف المكلف بالاستشارة ",null,null,"بتاريخ ",{"$f":"NOW()","v":"2020-06-18T19:22:29.630"}]
[null,null,null,null,null,null,null,null,null,"مدير المؤسسة "]

{"sheet":"7","index":7,"n_rows":55,"n_cols":30,"rows_kept":55,"cut":false,"hidden":false,"merged":[[54,9,54,10],[47,1,47,2],[47,7,47,8],[47,9,47,10],[47,11,47,12],[48,1,51,12],[53,1,53,3],[53,5,53,7],[45,1,45,2],[45,7,45,8],[45,9,45,10],[45,11,45,12],[46,7,46,8],[46,9,46,10],[46,11,46,12],[43,1,43,2],[43,7,43,8],[43,9,43,10],[43,11,43,12],[44,1,44,2],[44,7,44,8],[44,9,44,10],[44,11,44,12],[41,1,41,2],[41,7,41,8],[41,9,41,10],[41,11,41,12],[42,1,42,2],[42,7,42,8],[42,9,42,10],[42,11,42,12],[39,1,39,2],[39,7,39,8],[39,9,39,10],[39,11,39,12],[40,1,40,2],[40,7,40,8],[40,9,40,10],[40,11,40,12],[35,1,36,3],[38,1,38,2],[38,7,38,8],[38,9,38,10],[38,11,38,12],[29,1,29,12],[30,1,33,4],[30,5,30,6],[30,7,30,9],[30,10,30,12],[31,5,33,6],[31,7,33,9],[31,10,33,12],[24,7,24,8],[24,11,24,12],[27,1,28,3],[28,7,28,8],[28,11,28,12],[21,7,21,8],[21,11,21,12],[22,7,22,8],[22,11,22,12],[23,7,23,8],[23,11,23,12],[7,1,7,7],[7,9,7,12],[15,1,17,12],[19,1,19,3],[20,7,20,8],[20,11,20,12],[4,4,4,8],[4,9,4,12],[6,1,6,3],[6,9,6,10],[3,1,3,4],[0,4,0,9],[1,4,1,9],[2,1,2,4],[2,9,2,10],[2,11,2,12]]}
[null,null,null,null,{"$f":"HYPERLINK(\"#'Main Screen'!a1\",\"الجمهورية الجزائرية الديمقراطية الشعبية \")","v":"الجمهورية الجزائرية الديمقراطية الشعبية "}]
[null,null,null,null,"وزارة التربية الوطنيـــة "]
[null,"مديرية التربية لولايـــة الاغواط ",null,null,null,null,null,null,null,"السنة الدراسية ",null,"2019/2020"]
[null,"متوسطة سماعيني معمر تاجرونة "]
[null,null,null,null,"التقرير اليومي للاستشارة ",null,null,null,null,"2020-06-26",null,null,null,null,null,null,"2020-06-01"]
[null,null,null,null,null,null,null,null,null,null,null,null,null,null,null,null,"2020-06-02"]
[null,"مواظبـــة الاساتذة ",null,null,null,null,null,null,null,null,null,null,null,null,null,null,"2020-06-03"]
[null,"الفترة الصباحيـــــــــــة ",null,null,null,null,null,null,null,"الفترة المسائيــــة ",null,null,null,null,null,null,"2020-06-04"]
[null,"الرقم","الاسم و اللقب","المادة ","9--8","10--9","11--10","12--11",null,"15--14","16--15","17--16","الملاحظات",null,null,null,"2020-06-05"]
[null,1,"قدور بومقواس",null,null,null,null,null,null,"1م3","1م2","2م1",null,null,null,null,"2020-06-06"]
[null,2,"العربي قرمان ",null,null,null,null,null,null,null,null,null,null,null,null,null,"2020-06-07"]
[null,3,null,null,null,null,null,null,null,null,null,null,null,null,null,null,"2020-06-08",null,null,null,null,null,null,null,null,null,null,null,null,"1م1"]
[null,4,null,null,null,null,null,null,null,null,null,"2م2",null,null,null,null,"2020-06-09",null,null,null,null,null,null,null,null,null,null,null,null,"1م2"]
[null,5,null,null,null,null,null,null,null,null,null,null,null,null,null,null,"2020-06-10",null,null,null,null,null,null,null,null,null,null,null,null,"1م3"]
[null,6,null,null,null,null,null,null,null,null,null,null,null,null,null,null,"2020-06-11",null,null,null,null,null,null,null,null,null,null,"العربية ",null,"2م1"]
[null,"الاجراءات المتخذة :",null,null,null,null,null,null,null,null,null,null,null,null,null,null,"2020-06-12",null,null,null,null,null,null,null,null,null,null,"الفرنسية ",null,"2م2"]
[null,null,null,null,null,null,null,null,null,null,null,null,null,null,null,null,"2020-06-13",null,null,null,null,null,null,null,null,null,null,"الانجليزية ",null,"3م1"]
[null,null,null,null,null,null,null,null,null,null,null,null,null,null,null,null,"2020-06-14",null,null,null,null,null,null,null,null,null,null,"التربية الاسلامية ",null,"4م1"]
[null,null,null,null,null,null,null,null,null,null,null,null,null,null,null,null,"2020-06-15",null,null,null,null,null,null,null,null,null,null,"التربية المدنية ",null,"4م2"]
[null,"مواظبة موظفي الاستشارة ",null,null,null,null,null,null,null,null,null,null,null,null,null,null,"2020-06-16",null,null,null,null,null,null,null,null,null,null,"التاريخ والجغرافيا "]
[null,"الرقم","الاسم و اللقب","مدة التأخير","السبب",null,"الرقم","الاسم و اللقب",null,"صباحا","مساءا","الملاحظات ",null,null,null,null,"2020-06-17",null,null,null,null,null,null,null,null,null,null,"الرياضيات ",null,"دهكل أحمد"]
[null,1,null,null,null,null,1,null,null,null,null,null,null,null,null,null,"2020-06-18",null,null,null,null,null,null,null,null,null,null,"العلوم /ط",null,"طيفوري محمد"]
[null,2,null,null,null,null,2,null,null,null,null,null,null,null,null,null,"2020-06-19",null,null,null,null,null,null,null,null,null,null,"الفيزياء ",null,"قمقام دربالي"]
[null,3,null,null,null,null,3,null,null,null,null,null,null,null,null,null,"2020-06-20",null,null,null,null,null,null,null,null,null,null,"التربية الفنية "]
[null,4,null,null,null,null,4,null,null,null,null,null,null,null,null,null,"2020-06-21",null,null,null,null,null,null,null,null,null,null,"التربية الرياضية "]
[null,null,null,null,null,null,null,null,null,null,null,null,null,null,null,null,"2020-06-22"]
[null,null,null,null,null,null,null,null,null,null,null,null,null,null,null,null,"2020-06-23"]
[null,"وجبة الاطعــــــــــام ",null,null,null,null,null,null,null,null,null,null,null,null,null,null,"2020-06-24"]
[null,null,null,null,null,null,null,null,null,null,null,null,null,null,null,null,"2020-06-25"]
[null,"وجبــة الاطعام اليوميـــــــة ",null,null,null,null,null,null,null,null,null,null,null,null,null,null,"2020-06-26",null,null,null,null,null,null,null,null,null,null,"مباركة العابد"]
[null,"الوجبـــة",null,null,null,"عدد ن/داخلي",null,"الغائبون ",null,null,"الحاضرون",null,null,null,null,null,"2020-06-27",null,null,null,null,null,null,null,null,null,null,"بوعلام سهلي"]
[null,null,null,null,null,182,null,40,null,null,{"$f":"F32-$H$32","v":142},null,null,null,null,null,"2020-06-28",null,null,null,null,null,null,null,null,null,null,"ام الخير تهامي "]
[null,null,null,null,null,null,null,null,null,null,null,null,null,null,null,null,"2020-06-29",null,null,null,null,null,null,null,null,null,null,"خديجة بدراني "]
[null,null,null,null,null,null,null,null,null,null,null,null,null,null,null,null,"2020-06-30",null,null,null,null,null,null,null,null,null,null,"بوشوشة امحمدي"]
[null,null,null,null,null,null,null,null,null,null,null,null,null,null,null,null,null,null,null,null,null,null,null,null,null,null,null,"يعقوب كواهي "]
[null,"مواظبة التلاميذ ",null,null,null,null,null,null,null,null,null,null,null,null,null,null,null,null,null,null,null,null,null,null,null,null,null,"إبراهيم زريفي "]
[null,null,null,null,null,null,null,null,null,null,null,null,null,null,null,null,null,null,null,null,null,null,null,null,null,null,null,"محمد مشارة "]
[null,null,null,null,null,null,null,null,null,null,null,null,null,null,null,null,null,null,null,null,null,null,null,null,null,null,null,"شريف بدراني "]
[null,"المستوى ",null,"المسجلون","ذكــور","إنــاث","الغائبون","نسبة الغياب %",null,"الحاضرون",null,"نسبة الحاضرين %",null,null,null,null,null,null,null,null,null,null,null,null,null,null,null,"عبد القادر حساني "]
[null,"السنة الاولي متوسط 1",null,22,15,7,0,{"$f":"G40/$D$40","v":0},null,{"$f":"D40-$G$40","v":22},null,{"$f":"J40/$D$40","v":1}]
[null,"السنة الاولي متوسط 2",null,21,12,9,0,{"$f":"G41/$D$41","v":0},null,{"$f":"D41-G41","v":21},null,{"$f":"J41/$D$41","v":1},null,null,null,null,null,null,null,null,null,null,null,null,null,null,null,"قدور بومقواس"]
[null,"السنة الاولي متوسط 3",null,23,11,12,0,{"$f":"G42/$D$41","v":0},null,23,null,{"$f":"J42/$D$42","v":1},null,null,null,null,null,null,null,null,null,null,null,null,null,null,null,"العربي قرمان "]
[null,"السنة الثانية متوسط 1",null,31,15,16,0,0,null,31,null,{"$f":"J43/$D$43","v":1},null,null,null,null,null,null,null,null,null,null,null,null,null,null,null,"عبد القادر طيبي "]
[null,"السنة الثانية متوسط 2",null,33,17,16,0,0,null,33,null,{"$f":"J44/$D$44","v":1},null,null,null,null,null,null,null,null,null,null,null,null,null,null,null,"ميلود داودي "]
[null,"السنة الثالثة متوسط1",null,28,12,16,0,0,null,28,null,{"$f":"J45/$D$45","v":1},null,null,null,null,null,null,null,null,null,null,null,null,null,null,null,"رشيدة حطاب"]
[null,"السنة الثالثة متوسط 2",null,27,9,18,0,0,null,27,null,{"$f":"J46/$D$46","v":1},null,null,null,null,null,null,null,null,null,null,null,null,null,null,null,"مجدوب طلحة "]
[null,"السنة الرابعة متوسط 1",null,{"$f":"E47+F47","v":20},9,11,0,0,null,20,null,{"$f":"J47/$D$47","v":1},null,null,null,null,null,null,null,null,null,null,null,null,null,null,null,"مليود جليد "]
[null,"السنة الرابعة متوسط 2",null,{"$f":"E48+F48","v":23},11,12,0,0,null,23,null,{"$f":"J48/$D$48","v":1},null,null,null,null,null,null,null,null,null,null,null,null,null,null,null,"البشير قرمان "]
[null,"ملاحظــــات :"]
[null,null,null,null,null,null,null,null,null,null,null,null,null,null,null,null,null,null,null,null,null,null,null,null,null,null,null,"2019/2020"]
[null,null,null,null,null,null,null,null,null,null,null,null,null,null,null,null,null,null,null,null,null,null,null,null,null,null,null,"2020/2021"]
[null,null,null,null,null,null,null,null,null,null,null,null,null,null,null,null,null,null,null,null,null,null,null,null,null,null,null,"2021/2022"]
[]
[null,"منجز من طرف المكلف بالاستشارة ",null,null,"بتاريخ ",{"$f":"NOW()","v":"2020-06-18T19:22:29.630"}]
[null,null,null,null,null,null,null,null,null,"مدير المؤسسة "]

{"sheet":"8","index":8,"n_rows":55,"n_cols":30,"rows_kept":55,"cut":false,"hidden":false,"merged":[[54,9,54,10],[47,1,47,2],[47,7,47,8],[47,9,47,10],[47,11,47,12],[48,1,51,12],[53,1,53,3],[53,5,53,7],[45,1,45,2],[45,7,45,8],[45,9,45,10],[45,11,45,12],[46,7,46,8],[46,9,46,10],[46,11,46,12],[43,1,43,2],[43,7,43,8],[43,9,43,10],[43,11,43,12],[44,1,44,2],[44,7,44,8],[44,9,44,10],[44,11,44,12],[41,1,41,2],[41,7,41,8],[41,9,41,10],[41,11,41,12],[42,1,42,2],[42,7,42,8],[42,9,42,10],[42,11,42,12],[39,1,39,2],[39,7,39,8],[39,9,39,10],[39,11,39,12],[40,1,40,2],[40,7,40,8],[40,9,40,10],[40,11,40,12],[35,1,36,3],[38,1,38,2],[38,7,38,8],[38,9,38,10],[38,11,38,12],[29,1,29,12],[30,1,33,4],[30,5,30,6],[30,7,30,9],[30,10,30,12],[31,5,33,6],[31,7,33,9],[31,10,33,12],[24,7,24,8],[24,11,24,12],[27,1,28,3],[28,7,28,8],[28,11,28,12],[21,7,21,8],[21,11,21,12],[22,7,22,8],[22,11,22,12],[23,7,23,8],[23,11,23,12],[7,1,7,7],[7,9,7,12],[15,1,17,12],[19,1,19,3],[20,7,20,8],[20,11,20,12],[4,4,4,8],[4,9,4,12],[6,1,6,3],[6,9,6,10],[3,1,3,4],[0,4,0,9],[1,4,1,9],[2,1,2,4],[2,9,2,10],[2,11,2,12]]}
[null,null,null,null,{"$f":"HYPERLINK(\"#'Main Screen'!a1\",\"الجمهورية الجزائرية الديمقراطية الشعبية \")","v":"الجمهورية الجزائرية الديمقراطية الشعبية "}]
[null,null,null,null,"وزارة التربية الوطنيـــة "]
[null,"مديرية التربية لولايـــة الاغواط ",null,null,null,null,null,null,null,"السنة الدراسية ",null,"2019/2020"]
[null,"متوسطة سماعيني معمر تاجرونة "]
[null,null,null,null,"التقرير اليومي للاستشارة ",null,null,null,null,"2020-06-26",null,null,null,null,null,null,"2020-06-01"]
[null,null,null,null,null,null,null,null,null,null,null,null,null,null,null,null,"2020-06-02"]
[null,"مواظبـــة الاساتذة ",null,null,null,null,null,null,null,null,null,null,null,null,null,null,"2020-06-03"]
[null,"الفترة الصباحيـــــــــــة ",null,null,null,null,null,null,null,"الفترة المسائيــــة ",null,null,null,null,null,null,"2020-06-04"]
[null,"الرقم","الاسم و اللقب","المادة ","9--8","10--9","11--10","12--11",null,"15--14","16--15","17--16","الملاحظات",null,null,null,"2020-06-05"]
[null,1,"قدور بومقواس",null,null,null,null,null,null,"1م3","1م2","2م1",null,null,null,null,"2020-06-06"]
[null,2,"العربي قرمان ",null,null,null,null,null,null,null,null,null,null,null,null,null,"2020-06-07"]
[null,3,null,null,null,null,null,null,null,null,null,null,null,null,null,null,"2020-06-08",null,null,null,null,null,null,null,null,null,null,null,null,"1م1"]
[null,4,null,null,null,null,null,null,null,null,null,"2م2",null,null,null,null,"2020-06-09",null,null,null,null,null,null,null,null,null,null,null,null,"1م2"]
[null,5,null,null,null,null,null,null,null,null,null,null,null,null,null,null,"2020-06-10",null,null,null,null,null,null,null,null,null,null,null,null,"1م3"]
[null,6,null,null,null,null,null,null,null,null,null,null,null,null,null,null,"2020-06-11",null,null,null,null,null,null,null,null,null,null,"العربية ",null,"2م1"]
[null,"الاجراءات المتخذة :",null,null,null,null,null,null,null,null,null,null,null,null,null,null,"2020-06-12",null,null,null,null,null,null,null,null,null,null,"الفرنسية ",null,"2م2"]
[null,null,null,null,null,null,null,null,null,null,null,null,null,null,null,null,"2020-06-13",null,null,null,null,null,null,null,null,null,null,"الانجليزية ",null,"3م1"]
[null,null,null,null,null,null,null,null,null,null,null,null,null,null,null,null,"2020-06-14",null,null,null,null,null,null,null,null,null,null,"التربية الاسلامية ",null,"4م1"]
[null,null,null,null,null,null,null,null,null,null,null,null,null,null,null,null,"2020-06-15",null,null,null,null,null,null,null,null,null,null,"التربية المدنية ",null,"4م2"]
[null,"مواظبة موظفي الاستشارة ",null,null,null,null,null,null,null,null,null,null,null,null,null,null,"2020-06-16",null,null,null,null,null,null,null,null,null,null,"التاريخ والجغرافيا "]
[null,"الرقم","الاسم و اللقب","مدة التأخير","السبب",null,"الرقم","الاسم و اللقب",null,"صباحا","مساءا","الملاحظات ",null,null,null,null,"2020-06-17",null,null,null,null,null,null,null,null,null,null,"الرياضيات ",null,"دهكل أحمد"]
[null,1,null,null,null,null,1,null,null,null,null,null,null,null,null,null,"2020-06-18",null,null,null,null,null,null,null,null,null,null,"العلوم /ط",null,"طيفوري محمد"]
[null,2,null,null,null,null,2,null,null,null,null,null,null,null,null,null,"2020-06-19",null,null,null,null,null,null,null,null,null,null,"الفيزياء ",null,"قمقام دربالي"]
[null,3,null,null,null,null,3,null,null,null,null,null,null,null,null,null,"2020-06-20",null,null,null,null,null,null,null,null,null,null,"التربية الفنية "]
[null,4,null,null,null,null,4,null,null,null,null,null,null,null,null,null,"2020-06-21",null,null,null,null,null,null,null,null,null,null,"التربية الرياضية "]
[null,null,null,null,null,null,null,null,null,null,null,null,null,null,null,null,"2020-06-22"]
[null,null,null,null,null,null,null,null,null,null,null,null,null,null,null,null,"2020-06-23"]
[null,"وجبة الاطعــــــــــام ",null,null,null,null,null,null,null,null,null,null,null,null,null,null,"2020-06-24"]
[null,null,null,null,null,null,null,null,null,null,null,null,null,null,null,null,"2020-06-25"]
[null,"وجبــة الاطعام اليوميـــــــة ",null,null,null,null,null,null,null,null,null,null,null,null,null,null,"2020-06-26",null,null,null,null,null,null,null,null,null,null,"مباركة العابد"]
[null,"الوجبـــة",null,null,null,"عدد ن/داخلي",null,"الغائبون ",null,null,"الحاضرون",null,null,null,null,null,"2020-06-27",null,null,null,null,null,null,null,null,null,null,"بوعلام سهلي"]
[null,null,null,null,null,182,null,40,null,null,{"$f":"F32-$H$32","v":142},null,null,null,null,null,"2020-06-28",null,null,null,null,null,null,null,null,null,null,"ام الخير تهامي "]
[null,null,null,null,null,null,null,null,null,null,null,null,null,null,null,null,"2020-06-29",null,null,null,null,null,null,null,null,null,null,"خديجة بدراني "]
[null,null,null,null,null,null,null,null,null,null,null,null,null,null,null,null,"2020-06-30",null,null,null,null,null,null,null,null,null,null,"بوشوشة امحمدي"]
[null,null,null,null,null,null,null,null,null,null,null,null,null,null,null,null,null,null,null,null,null,null,null,null,null,null,null,"يعقوب كواهي "]
[null,"مواظبة التلاميذ ",null,null,null,null,null,null,null,null,null,null,null,null,null,null,null,null,null,null,null,null,null,null,null,null,null,"إبراهيم زريفي "]
[null,null,null,null,null,null,null,null,null,null,null,null,null,null,null,null,null,null,null,null,null,null,null,null,null,null,null,"محمد مشارة "]
[null,null,null,null,null,null,null,null,null,null,null,null,null,null,null,null,null,null,null,null,null,null,null,null,null,null,null,"شريف بدراني "]
[null,"المستوى ",null,"المسجلون","ذكــور","إنــاث","الغائبون","نسبة الغياب %",null,"الحاضرون",null,"نسبة الحاضرين %",null,null,null,null,null,null,null,null,null,null,null,null,null,null,null,"عبد القادر حساني "]
[null,"السنة الاولي متوسط 1",null,22,15,7,0,{"$f":"G40/$D$40","v":0},null,{"$f":"D40-$G$40","v":22},null,{"$f":"J40/$D$40","v":1}]
[null,"السنة الاولي متوسط 2",null,21,12,9,0,{"$f":"G41/$D$41","v":0},null,{"$f":"D41-G41","v":21},null,{"$f":"J41/$D$41","v":1},null,null,null,null,null,null,null,null,null,null,null,null,null,null,null,"قدور بومقواس"]
[null,"السنة الاولي متوسط 3",null,23,11,12,0,{"$f":"G42/$D$41","v":0},null,23,null,{"$f":"J42/$D$42","v":1},null,null,null,null,null,null,null,null,null,null,null,null,null,null,null,"العربي قرمان "]
[null,"السنة الثانية متوسط 1",null,31,15,16,0,0,null,31,null,{"$f":"J43/$D$43","v":1},null,null,null,null,null,null,null,null,null,null,null,null,null,null,null,"عبد القادر طيبي "]
[null,"السنة الثانية متوسط 2",null,33,17,16,0,0,null,33,null,{"$f":"J44/$D$44","v":1},null,null,null,null,null,null,null,null,null,null,null,null,null,null,null,"ميلود داودي "]
[null,"السنة الثالثة متوسط1",null,28,12,16,0,0,null,28,null,{"$f":"J45/$D$45","v":1},null,null,null,null,null,null,null,null,null,null,null,null,null,null,null,"رشيدة حطاب"]
[null,"السنة الثالثة متوسط 2",null,27,9,18,0,0,null,27,null,{"$f":"J46/$D$46","v":1},null,null,null,null,null,null,null,null,null,null,null,null,null,null,null,"مجدوب طلحة "]
[null,"السنة الرابعة متوسط 1",null,{"$f":"E47+F47","v":20},9,11,0,0,null,20,null,{"$f":"J47/$D$47","v":1},null,null,null,null,null,null,null,null,null,null,null,null,null,null,null,"مليود جليد "]
[null,"السنة الرابعة متوسط 2",null,{"$f":"E48+F48","v":23},11,12,0,0,null,23,null,{"$f":"J48/$D$48","v":1},null,null,null,null,null,null,null,null,null,null,null,null,null,null,null,"البشير قرمان "]
[null,"ملاحظــــات :"]
[null,null,null,null,null,null,null,null,null,null,null,null,null,null,null,null,null,null,null,null,null,null,null,null,null,null,null,"2019/2020"]
[null,null,null,null,null,null,null,null,null,null,null,null,null,null,null,null,null,null,null,null,null,null,null,null,null,null,null,"2020/2021"]
[null,null,null,null,null,null,null,null,null,null,null,null,null,null,null,null,null,null,null,null,null,null,null,null,null,null,null,"2021/2022"]
[]
[null,"منجز من طرف المكلف بالاستشارة ",null,null,"بتاريخ ",{"$f":"NOW()","v":"2020-06-18T19:22:29.630"}]
[null,null,null,null,null,null,null,null,null,"مدير المؤسسة "]

{"sheet":"9","index":9,"n_rows":55,"n_cols":30,"rows_kept":55,"cut":false,"hidden":false,"merged":[[54,9,54,10],[47,1,47,2],[47,7,47,8],[47,9,47,10],[47,11,47,12],[48,1,51,12],[53,1,53,3],[53,5,53,7],[45,1,45,2],[45,7,45,8],[45,9,45,10],[45,11,45,12],[46,7,46,8],[46,9,46,10],[46,11,46,12],[43,1,43,2],[43,7,43,8],[43,9,43,10],[43,11,43,12],[44,1,44,2],[44,7,44,8],[44,9,44,10],[44,11,44,12],[41,1,41,2],[41,7,41,8],[41,9,41,10],[41,11,41,12],[42,1,42,2],[42,7,42,8],[42,9,42,10],[42,11,42,12],[39,1,39,2],[39,7,39,8],[39,9,39,10],[39,11,39,12],[40,1,40,2],[40,7,40,8],[40,9,40,10],[40,11,40,12],[35,1,36,3],[38,1,38,2],[38,7,38,8],[38,9,38,10],[38,11,38,12],[29,1,29,12],[30,1,33,4],[30,5,30,6],[30,7,30,9],[30,10,30,12],[31,5,33,6],[31,7,33,9],[31,10,33,12],[24,7,24,8],[24,11,24,12],[27,1,28,3],[28,7,28,8],[28,11,28,12],[21,7,21,8],[21,11,21,12],[22,7,22,8],[22,11,22,12],[23,7,23,8],[23,11,23,12],[7,1,7,7],[7,9,7,12],[15,1,17,12],[19,1,19,3],[20,7,20,8],[20,11,20,12],[4,4,4,8],[4,9,4,12],[6,1,6,3],[6,9,6,10],[3,1,3,4],[0,4,0,9],[1,4,1,9],[2,1,2,4],[2,9,2,10],[2,11,2,12]]}
[null,null,null,null,{"$f":"HYPERLINK(\"#'Main Screen'!a1\",\"الجمهورية الجزائرية الديمقراطية الشعبية \")","v":"الجمهورية الجزائرية الديمقراطية الشعبية "}]
[null,null,null,null,"وزارة التربية الوطنيـــة "]
[null,"مديرية التربية لولايـــة الاغواط ",null,null,null,null,null,null,null,"السنة الدراسية ",null,"2019/2020"]
[null,"متوسطة سماعيني معمر تاجرونة "]
[null,null,null,null,"التقرير اليومي للاستشارة ",null,null,null,null,"2020-06-26",null,null,null,null,null,null,"2020-06-01"]
[null,null,null,null,null,null,null,null,null,null,null,null,null,null,null,null,"2020-06-02"]
[null,"مواظبـــة الاساتذة ",null,null,null,null,null,null,null,null,null,null,null,null,null,null,"2020-06-03"]
[null,"الفترة الصباحيـــــــــــة ",null,null,null,null,null,null,null,"الفترة المسائيــــة ",null,null,null,null,null,null,"2020-06-04"]
[null,"الرقم","الاسم و اللقب","المادة ","9--8","10--9","11--10","12--11",null,"15--14","16--15","17--16","الملاحظات",null,null,null,"2020-06-05"]
[null,1,"قدور بومقواس",null,null,null,null,null,null,"1م3","1م2","2م1",null,null,null,null,"2020-06-06"]
[null,2,"العربي قرمان ",null,null,null,null,null,null,null,null,null,null,null,null,null,"2020-06-07"]
[null,3,null,null,null,null,null,null,null,null,null,null,null,null,null,null,"2020-06-08",null,null,null,null,null,null,null,null,null,null,null,null,"1م1"]
[null,4,null,null,null,null,null,null,null,null,null,"2م2",null,null,null,null,"2020-06-09",null,null,null,null,null,null,null,null,null,null,null,null,"1م2"]
[null,5,null,null,null,null,null,null,null,null,null,null,null,null,null,null,"2020-06-10",null,null,null,null,null,null,null,null,null,null,null,null,"1م3"]
[null,6,null,null,null,null,null,null,null,null,null,null,null,null,null,null,"2020-06-11",null,null,null,null,null,null,null,null,null,null,"العربية ",null,"2م1"]
[null,"الاجراءات المتخذة :",null,null,null,null,null,null,null,null,null,null,null,null,null,null,"2020-06-12",null,null,null,null,null,null,null,null,null,null,"الفرنسية ",null,"2م2"]
[null,null,null,null,null,null,null,null,null,null,null,null,null,null,null,null,"2020-06-13",null,null,null,null,null,null,null,null,null,null,"الانجليزية ",null,"3م1"]
[null,null,null,null,null,null,null,null,null,null,null,null,null,null,null,null,"2020-06-14",null,null,null,null,null,null,null,null,null,null,"التربية الاسلامية ",null,"4م1"]
[null,null,null,null,null,null,null,null,null,null,null,null,null,null,null,null,"2020-06-15",null,null,null,null,null,null,null,null,null,null,"التربية المدنية ",null,"4م2"]
[null,"مواظبة موظفي الاستشارة ",null,null,null,null,null,null,null,null,null,null,null,null,null,null,"2020-06-16",null,null,null,null,null,null,null,null,null,null,"التاريخ والجغرافيا "]
[null,"الرقم","الاسم و اللقب","مدة التأخير","السبب",null,"الرقم","الاسم و اللقب",null,"صباحا","مساءا","الملاحظات ",null,null,null,null,"2020-06-17",null,null,null,null,null,null,null,null,null,null,"الرياضيات ",null,"دهكل أحمد"]
[null,1,null,null,null,null,1,null,null,null,null,null,null,null,null,null,"2020-06-18",null,null,null,null,null,null,null,null,null,null,"العلوم /ط",null,"طيفوري محمد"]
[null,2,null,null,null,null,2,null,null,null,null,null,null,null,null,null,"2020-06-19",null,null,null,null,null,null,null,null,null,null,"الفيزياء ",null,"قمقام دربالي"]
[null,3,null,null,null,null,3,null,null,null,null,null,null,null,null,null,"2020-06-20",null,null,null,null,null,null,null,null,null,null,"التربية الفنية "]
[null,4,null,null,null,null,4,null,null,null,null,null,null,null,null,null,"2020-06-21",null,null,null,null,null,null,null,null,null,null,"التربية الرياضية "]
[null,null,null,null,null,null,null,null,null,null,null,null,null,null,null,null,"2020-06-22"]
[null,null,null,null,null,null,null,null,null,null,null,null,null,null,null,null,"2020-06-23"]
[null,"وجبة الاطعــــــــــام ",null,null,null,null,null,null,null,null,null,null,null,null,null,null,"2020-06-24"]
[null,null,null,null,null,null,null,null,null,null,null,null,null,null,null,null,"2020-06-25"]
[null,"وجبــة الاطعام اليوميـــــــة ",null,null,null,null,null,null,null,null,null,null,null,null,null,null,"2020-06-26",null,null,null,null,null,null,null,null,null,null,"مباركة العابد"]
[null,"الوجبـــة",null,null,null,"عدد ن/داخلي",null,"الغائبون ",null,null,"الحاضرون",null,null,null,null,null,"2020-06-27",null,null,null,null,null,null,null,null,null,null,"بوعلام سهلي"]
[null,null,null,null,null,182,null,40,null,null,{"$f":"F32-$H$32","v":142},null,null,null,null,null,"2020-06-28",null,null,null,null,null,null,null,null,null,null,"ام الخير تهامي "]
[null,null,null,null,null,null,null,null,null,null,null,null,null,null,null,null,"2020-06-29",null,null,null,null,null,null,null,null,null,null,"خديجة بدراني "]
[null,null,null,null,null,null,null,null,null,null,null,null,null,null,null,null,"2020-06-30",null,null,null,null,null,null,null,null,null,null,"بوشوشة امحمدي"]
[null,null,null,null,null,null,null,null,null,null,null,null,null,null,null,null,null,null,null,null,null,null,null,null,null,null,null,"يعقوب كواهي "]
[null,"مواظبة التلاميذ ",null,null,null,null,null,null,null,null,null,null,null,null,null,null,null,null,null,null,null,null,null,null,null,null,null,"إبراهيم زريفي "]
[null,null,null,null,null,null,null,null,null,null,null,null,null,null,null,null,null,null,null,null,null,null,null,null,null,null,null,"محمد مشارة "]
[null,null,null,null,null,null,null,null,null,null,null,null,null,null,null,null,null,null,null,null,null,null,null,null,null,null,null,"شريف بدراني "]
[null,"المستوى ",null,"المسجلون","ذكــور","إنــاث","الغائبون","نسبة الغياب %",null,"الحاضرون",null,"نسبة الحاضرين %",null,null,null,null,null,null,null,null,null,null,null,null,null,null,null,"عبد القادر حساني "]
[null,"السنة الاولي متوسط 1",null,22,15,7,0,{"$f":"G40/$D$40","v":0},null,{"$f":"D40-$G$40","v":22},null,{"$f":"J40/$D$40","v":1}]
[null,"السنة الاولي متوسط 2",null,21,12,9,0,{"$f":"G41/$D$41","v":0},null,{"$f":"D41-G41","v":21},null,{"$f":"J41/$D$41","v":1},null,null,null,null,null,null,null,null,null,null,null,null,null,null,null,"قدور بومقواس"]
[null,"السنة الاولي متوسط 3",null,23,11,12,0,{"$f":"G42/$D$41","v":0},null,23,null,{"$f":"J42/$D$42","v":1},null,null,null,null,null,null,null,null,null,null,null,null,null,null,null,"العربي قرمان "]
[null,"السنة الثانية متوسط 1",null,31,15,16,0,0,null,31,null,{"$f":"J43/$D$43","v":1},null,null,null,null,null,null,null,null,null,null,null,null,null,null,null,"عبد القادر طيبي "]
[null,"السنة الثانية متوسط 2",null,33,17,16,0,0,null,33,null,{"$f":"J44/$D$44","v":1},null,null,null,null,null,null,null,null,null,null,null,null,null,null,null,"ميلود داودي "]
[null,"السنة الثالثة متوسط1",null,28,12,16,0,0,null,28,null,{"$f":"J45/$D$45","v":1},null,null,null,null,null,null,null,null,null,null,null,null,null,null,null,"رشيدة حطاب"]
[null,"السنة الثالثة متوسط 2",null,27,9,18,0,0,null,27,null,{"$f":"J46/$D$46","v":1},null,null,null,null,null,null,null,null,null,null,null,null,null,null,null,"مجدوب طلحة "]
[null,"السنة الرابعة متوسط 1",null,{"$f":"E47+F47","v":20},9,11,0,0,null,20,null,{"$f":"J47/$D$47","v":1},null,null,null,null,null,null,null,null,null,null,null,null,null,null,null,"مليود جليد "]
[null,"السنة الرابعة متوسط 2",null,{"$f":"E48+F48","v":23},11,12,0,0,null,23,null,{"$f":"J48/$D$48","v":1},null,null,null,null,null,null,null,null,null,null,null,null,null,null,null,"البشير قرمان "]
[null,"ملاحظــــات :"]
[null,null,null,null,null,null,null,null,null,null,null,null,null,null,null,null,null,null,null,null,null,null,null,null,null,null,null,"2019/2020"]
[null,null,null,null,null,null,null,null,null,null,null,null,null,null,null,null,null,null,null,null,null,null,null,null,null,null,null,"2020/2021"]
[null,null,null,null,null,null,null,null,null,null,null,null,null,null,null,null,null,null,null,null,null,null,null,null,null,null,null,"2021/2022"]
[]
[null,"منجز من طرف المكلف بالاستشارة ",null,null,"بتاريخ ",{"$f":"NOW()","v":"2020-06-18T19:22:29.630"}]
[null,null,null,null,null,null,null,null,null,"مدير المؤسسة "]

{"sheet":"10","index":10,"n_rows":55,"n_cols":30,"rows_kept":55,"cut":false,"hidden":false,"merged":[[54,9,54,10],[47,1,47,2],[47,7,47,8],[47,9,47,10],[47,11,47,12],[48,1,51,12],[53,1,53,3],[53,5,53,7],[45,1,45,2],[45,7,45,8],[45,9,45,10],[45,11,45,12],[46,7,46,8],[46,9,46,10],[46,11,46,12],[43,1,43,2],[43,7,43,8],[43,9,43,10],[43,11,43,12],[44,1,44,2],[44,7,44,8],[44,9,44,10],[44,11,44,12],[41,1,41,2],[41,7,41,8],[41,9,41,10],[41,11,41,12],[42,1,42,2],[42,7,42,8],[42,9,42,10],[42,11,42,12],[39,1,39,2],[39,7,39,8],[39,9,39,10],[39,11,39,12],[40,1,40,2],[40,7,40,8],[40,9,40,10],[40,11,40,12],[35,1,36,3],[38,1,38,2],[38,7,38,8],[38,9,38,10],[38,11,38,12],[29,1,29,12],[30,1,33,4],[30,5,30,6],[30,7,30,9],[30,10,30,12],[31,5,33,6],[31,7,33,9],[31,10,33,12],[24,7,24,8],[24,11,24,12],[27,1,28,3],[28,7,28,8],[28,11,28,12],[21,7,21,8],[21,11,21,12],[22,7,22,8],[22,11,22,12],[23,7,23,8],[23,11,23,12],[7,1,7,7],[7,9,7,12],[15,1,17,12],[19,1,19,3],[20,7,20,8],[20,11,20,12],[4,4,4,8],[4,9,4,12],[6,1,6,3],[6,9,6,10],[3,1,3,4],[0,4,0,9],[1,4,1,9],[2,1,2,4],[2,9,2,10],[2,11,2,12]]}
[null,null,null,null,{"$f":"HYPERLINK(\"#'Main Screen'!a1\",\"الجمهورية الجزائرية الديمقراطية الشعبية \")","v":"الجمهورية الجزائرية الديمقراطية الشعبية "}]
[null,null,null,null,"وزارة التربية الوطنيـــة "]
[null,"مديرية التربية لولايـــة الاغواط ",null,null,null,null,null,null,null,"السنة الدراسية ",null,"2019/2020"]
[null,"متوسطة سماعيني معمر تاجرونة "]
[null,null,null,null,"التقرير اليومي للاستشارة ",null,null,null,null,"2020-06-26",null,null,null,null,null,null,"2020-06-01"]
[null,null,null,null,null,null,null,null,null,null,null,null,null,null,null,null,"2020-06-02"]
[null,"مواظبـــة الاساتذة ",null,null,null,null,null,null,null,null,null,null,null,null,null,null,"2020-06-03"]
[null,"الفترة الصباحيـــــــــــة ",null,null,null,null,null,null,null,"الفترة المسائيــــة ",null,null,null,null,null,null,"2020-06-04"]
[null,"الرقم","الاسم و اللقب","المادة ","9--8","10--9","11--10","12--11",null,"15--14","16--15","17--16","الملاحظات",null,null,null,"2020-06-05"]
[null,1,"قدور بومقواس",null,null,null,null,null,null,"1م3","1م2","2م1",null,null,null,null,"2020-06-06"]
[null,2,"العربي قرمان ",null,null,null,null,null,null,null,null,null,null,null,null,null,"2020-06-07"]
[null,3,null,null,null,null,null,null,null,null,null,null,null,null,null,null,"2020-06-08",null,null,null,null,null,null,null,null,null,null,null,null,"1م1"]
[null,4,null,null,null,null,null,null,null,null,null,"2م2",null,null,null,null,"2020-06-09",null,null,null,null,null,null,null,null,null,null,null,null,"1م2"]
[null,5,null,null,null,null,null,null,null,null,null,null,null,null,null,null,"2020-06-10",null,null,null,null,null,null,null,null,null,null,null,null,"1م3"]
[null,6,null,null,null,null,null,null,null,null,null,null,null,null,null,null,"2020-06-11",null,null,null,null,null,null,null,null,null,null,"العربية ",null,"2م1"]
[null,"الاجراءات المتخذة :",null,null,null,null,null,null,null,null,null,null,null,null,null,null,"2020-06-12",null,null,null,null,null,null,null,null,null,null,"الفرنسية ",null,"2م2"]
[null,null,null,null,null,null,null,null,null,null,null,null,null,null,null,null,"2020-06-13",null,null,null,null,null,null,null,null,null,null,"الانجليزية ",null,"3م1"]
[null,null,null,null,null,null,null,null,null,null,null,null,null,null,null,null,"2020-06-14",null,null,null,null,null,null,null,null,null,null,"التربية الاسلامية ",null,"4م1"]
[null,null,null,null,null,null,null,null,null,null,null,null,null,null,null,null,"2020-06-15",null,null,null,null,null,null,null,null,null,null,"التربية المدنية ",null,"4م2"]
[null,"مواظبة موظفي الاستشارة ",null,null,null,null,null,null,null,null,null,null,null,null,null,null,"2020-06-16",null,null,null,null,null,null,null,null,null,null,"التاريخ والجغرافيا "]
[null,"الرقم","الاسم و اللقب","مدة التأخير","السبب",null,"الرقم","الاسم و اللقب",null,"صباحا","مساءا","الملاحظات ",null,null,null,null,"2020-06-17",null,null,null,null,null,null,null,null,null,null,"الرياضيات ",null,"دهكل أحمد"]
[null,1,null,null,null,null,1,null,null,null,null,null,null,null,null,null,"2020-06-18",null,null,null,null,null,null,null,null,null,null,"العلوم /ط",null,"طيفوري محمد"]
[null,2,null,null,null,null,2,null,null,null,null,null,null,null,null,null,"2020-06-19",null,null,null,null,null,null,null,null,null,null,"الفيزياء ",null,"قمقام دربالي"]
[null,3,null,null,null,null,3,null,null,null,null,null,null,null,null,null,"2020-06-20",null,null,null,null,null,null,null,null,null,null,"التربية الفنية "]
[null,4,null,null,null,null,4,null,null,null,null,null,null,null,null,null,"2020-06-21",null,null,null,null,null,null,null,null,null,null,"التربية الرياضية "]
[null,null,null,null,null,null,null,null,null,null,null,null,null,null,null,null,"2020-06-22"]
[null,null,null,null,null,null,null,null,null,null,null,null,null,null,null,null,"2020-06-23"]
[null,"وجبة الاطعــــــــــام ",null,null,null,null,null,null,null,null,null,null,null,null,null,null,"2020-06-24"]
[null,null,null,null,null,null,null,null,null,null,null,null,null,null,null,null,"2020-06-25"]
[null,"وجبــة الاطعام اليوميـــــــة ",null,null,null,null,null,null,null,null,null,null,null,null,null,null,"2020-06-26",null,null,null,null,null,null,null,null,null,null,"مباركة العابد"]
[null,"الوجبـــة",null,null,null,"عدد ن/داخلي",null,"الغائبون ",null,null,"الحاضرون",null,null,null,null,null,"2020-06-27",null,null,null,null,null,null,null,null,null,null,"بوعلام سهلي"]
[null,null,null,null,null,182,null,40,null,null,{"$f":"F32-$H$32","v":142},null,null,null,null,null,"2020-06-28",null,null,null,null,null,null,null,null,null,null,"ام الخير تهامي "]
[null,null,null,null,null,null,null,null,null,null,null,null,null,null,null,null,"2020-06-29",null,null,null,null,null,null,null,null,null,null,"خديجة بدراني "]
[null,null,null,null,null,null,null,null,null,null,null,null,null,null,null,null,"2020-06-30",null,null,null,null,null,null,null,null,null,null,"بوشوشة امحمدي"]
[null,null,null,null,null,null,null,null,null,null,null,null,null,null,null,null,null,null,null,null,null,null,null,null,null,null,null,"يعقوب كواهي "]
[null,"مواظبة التلاميذ ",null,null,null,null,null,null,null,null,null,null,null,null,null,null,null,null,null,null,null,null,null,null,null,null,null,"إبراهيم زريفي "]
[null,null,null,null,null,null,null,null,null,null,null,null,null,null,null,null,null,null,null,null,null,null,null,null,null,null,null,"محمد مشارة "]
[null,null,null,null,null,null,null,null,null,null,null,null,null,null,null,null,null,null,null,null,null,null,null,null,null,null,null,"شريف بدراني "]
[null,"المستوى ",null,"المسجلون","ذكــور","إنــاث","الغائبون","نسبة الغياب %",null,"الحاضرون",null,"نسبة الحاضرين %",null,null,null,null,null,null,null,null,null,null,null,null,null,null,null,"عبد القادر حساني "]
[null,"السنة الاولي متوسط 1",null,22,15,7,0,{"$f":"G40/$D$40","v":0},null,{"$f":"D40-$G$40","v":22},null,{"$f":"J40/$D$40","v":1}]
[null,"السنة الاولي متوسط 2",null,21,12,9,0,{"$f":"G41/$D$41","v":0},null,{"$f":"D41-G41","v":21},null,{"$f":"J41/$D$41","v":1},null,null,null,null,null,null,null,null,null,null,null,null,null,null,null,"قدور بومقواس"]
[null,"السنة الاولي متوسط 3",null,23,11,12,0,{"$f":"G42/$D$41","v":0},null,23,null,{"$f":"J42/$D$42","v":1},null,null,null,null,null,null,null,null,null,null,null,null,null,null,null,"العربي قرمان "]
[null,"السنة الثانية متوسط 1",null,31,15,16,0,0,null,31,null,{"$f":"J43/$D$43","v":1},null,null,null,null,null,null,null,null,null,null,null,null,null,null,null,"عبد القادر طيبي "]
[null,"السنة الثانية متوسط 2",null,33,17,16,0,0,null,33,null,{"$f":"J44/$D$44","v":1},null,null,null,null,null,null,null,null,null,null,null,null,null,null,null,"ميلود داودي "]
[null,"السنة الثالثة متوسط1",null,28,12,16,0,0,null,28,null,{"$f":"J45/$D$45","v":1},null,null,null,null,null,null,null,null,null,null,null,null,null,null,null,"رشيدة حطاب"]
[null,"السنة الثالثة متوسط 2",null,27,9,18,0,0,null,27,null,{"$f":"J46/$D$46","v":1},null,null,null,null,null,null,null,null,null,null,null,null,null,null,null,"مجدوب طلحة "]
[null,"السنة الرابعة متوسط 1",null,{"$f":"E47+F47","v":20},9,11,0,0,null,20,null,{"$f":"J47/$D$47","v":1},null,null,null,null,null,null,null,null,null,null,null,null,null,null,null,"مليود جليد "]
[null,"السنة الرابعة متوسط 2",null,{"$f":"E48+F48","v":23},11,12,0,0,null,23,null,{"$f":"J48/$D$48","v":1},null,null,null,null,null,null,null,null,null,null,null,null,null,null,null,"البشير قرمان "]
[null,"ملاحظــــات :"]
[null,null,null,null,null,null,null,null,null,null,null,null,null,null,null,null,null,null,null,null,null,null,null,null,null,null,null,"2019/2020"]
[null,null,null,null,null,null,null,null,null,null,null,null,null,null,null,null,null,null,null,null,null,null,null,null,null,null,null,"2020/2021"]
[null,null,null,null,null,null,null,null,null,null,null,null,null,null,null,null,null,null,null,null,null,null,null,null,null,null,null,"2021/2022"]
[]
[null,"منجز من طرف المكلف بالاستشارة ",null,null,"بتاريخ ",{"$f":"NOW()","v":"2020-06-18T19:22:29.630"}]
[null,null,null,null,null,null,null,null,null,"مدير المؤسسة "]

{"sheet":"11","index":11,"n_rows":55,"n_cols":30,"rows_kept":55,"cut":false,"hidden":false,"merged":[[54,9,54,10],[47,1,47,2],[47,7,47,8],[47,9,47,10],[47,11,47,12],[48,1,51,12],[53,1,53,3],[53,5,53,7],[45,1,45,2],[45,7,45,8],[45,9,45,10],[45,11,45,12],[46,7,46,8],[46,9,46,10],[46,11,46,12],[43,1,43,2],[43,7,43,8],[43,9,43,10],[43,11,43,12],[44,1,44,2],[44,7,44,8],[44,9,44,10],[44,11,44,12],[41,1,41,2],[41,7,41,8],[41,9,41,10],[41,11,41,12],[42,1,42,2],[42,7,42,8],[42,9,42,10],[42,11,42,12],[39,1,39,2],[39,7,39,8],[39,9,39,10],[39,11,39,12],[40,1,40,2],[40,7,40,8],[40,9,40,10],[40,11,40,12],[35,1,36,3],[38,1,38,2],[38,7,38,8],[38,9,38,10],[38,11,38,12],[29,1,29,12],[30,1,33,4],[30,5,30,6],[30,7,30,9],[30,10,30,12],[31,5,33,6],[31,7,33,9],[31,10,33,12],[24,7,24,8],[24,11,24,12],[27,1,28,3],[28,7,28,8],[28,11,28,12],[21,7,21,8],[21,11,21,12],[22,7,22,8],[22,11,22,12],[23,7,23,8],[23,11,23,12],[7,1,7,7],[7,9,7,12],[15,1,17,12],[19,1,19,3],[20,7,20,8],[20,11,20,12],[4,4,4,8],[4,9,4,12],[6,1,6,3],[6,9,6,10],[3,1,3,4],[0,4,0,9],[1,4,1,9],[2,1,2,4],[2,9,2,10],[2,11,2,12]]}
[null,null,null,null,{"$f":"HYPERLINK(\"#'Main Screen'!a1\",\"الجمهورية الجزائرية الديمقراطية الشعبية \")","v":"الجمهورية الجزائرية الديمقراطية الشعبية "}]
[null,null,null,null,"وزارة التربية الوطنيـــة "]
[null,"مديرية التربية لولايـــة الاغواط ",null,null,null,null,null,null,null,"السنة الدراسية ",null,"2019/2020"]
[null,"متوسطة سماعيني معمر تاجرونة "]
[null,null,null,null,"التقرير اليومي للاستشارة ",null,null,null,null,"2020-06-26",null,null,null,null,null,null,"2020-06-01"]
[null,null,null,null,null,null,null,null,null,null,null,null,null,null,null,null,"2020-06-02"]
[null,"مواظبـــة الاساتذة ",null,null,null,null,null,null,null,null,null,null,null,null,null,null,"2020-06-03"]
[null,"الفترة الصباحيـــــــــــة ",null,null,null,null,null,null,null,"الفترة المسائيــــة ",null,null,null,null,null,null,"2020-06-04"]
[null,"الرقم","الاسم و اللقب","المادة ","9--8","10--9","11--10","12--11",null,"15--14","16--15","17--16","الملاحظات",null,null,null,"2020-06-05"]
[null,1,"قدور بومقواس",null,null,null,null,null,null,"1م3","1م2","2م1",null,null,null,null,"2020-06-06"]
[null,2,"العربي قرمان ",null,null,null,null,null,null,null,null,null,null,null,null,null,"2020-06-07"]
[null,3,null,null,null,null,null,null,null,null,null,null,null,null,null,null,"2020-06-08",null,null,null,null,null,null,null,null,null,null,null,null,"1م1"]
[null,4,null,null,null,null,null,null,null,null,null,"2م2",null,null,null,null,"2020-06-09",null,null,null,null,null,null,null,null,null,null,null,null,"1م2"]
[null,5,null,null,null,null,null,null,null,null,null,null,null,null,null,null,"2020-06-10",null,null,null,null,null,null,null,null,null,null,null,null,"1م3"]
[null,6,null,null,null,null,null,null,null,null,null,null,null,null,null,null,"2020-06-11",null,null,null,null,null,null,null,null,null,null,"العربية ",null,"2م1"]
[null,"الاجراءات المتخذة :",null,null,null,null,null,null,null,null,null,null,null,null,null,null,"2020-06-12",null,null,null,null,null,null,null,null,null,null,"الفرنسية ",null,"2م2"]
[null,null,null,null,null,null,null,null,null,null,null,null,null,null,null,null,"2020-06-13",null,null,null,null,null,null,null,null,null,null,"الانجليزية ",null,"3م1"]
[null,null,null,null,null,null,null,null,null,null,null,null,null,null,null,null,"2020-06-14",null,null,null,null,null,null,null,null,null,null,"التربية الاسلامية ",null,"4م1"]
[null,null,null,null,null,null,null,null,null,null,null,null,null,null,null,null,"2020-06-15",null,null,null,null,null,null,null,null,null,null,"التربية المدنية ",null,"4م2"]
[null,"مواظبة موظفي الاستشارة ",null,null,null,null,null,null,null,null,null,null,null,null,null,null,"2020-06-16",null,null,null,null,null,null,null,null,null,null,"التاريخ والجغرافيا "]
[null,"الرقم","الاسم و اللقب","مدة التأخير","السبب",null,"الرقم","الاسم و اللقب",null,"صباحا","مساءا","الملاحظات ",null,null,null,null,"2020-06-17",null,null,null,null,null,null,null,null,null,null,"الرياضيات ",null,"دهكل أحمد"]
[null,1,null,null,null,null,1,null,null,null,null,null,null,null,null,null,"2020-06-18",null,null,null,null,null,null,null,null,null,null,"العلوم /ط",null,"طيفوري محمد"]
[null,2,null,null,null,null,2,null,null,null,null,null,null,null,null,null,"2020-06-19",null,null,null,null,null,null,null,null,null,null,"الفيزياء ",null,"قمقام دربالي"]
[null,3,null,null,null,null,3,null,null,null,null,null,null,null,null,null,"2020-06-20",null,null,null,null,null,null,null,null,null,null,"التربية الفنية "]
[null,4,null,null,null,null,4,null,null,null,null,null,null,null,null,null,"2020-06-21",null,null,null,null,null,null,null,null,null,null,"التربية الرياضية "]
[null,null,null,null,null,null,null,null,null,null,null,null,null,null,null,null,"2020-06-22"]
[null,null,null,null,null,null,null,null,null,null,null,null,null,null,null,null,"2020-06-23"]
[null,"وجبة الاطعــــــــــام ",null,null,null,null,null,null,null,null,null,null,null,null,null,null,"2020-06-24"]
[null,null,null,null,null,null,null,null,null,null,null,null,null,null,null,null,"2020-06-25"]
[null,"وجبــة الاطعام اليوميـــــــة ",null,null,null,null,null,null,null,null,null,null,null,null,null,null,"2020-06-26",null,null,null,null,null,null,null,null,null,null,"مباركة العابد"]
[null,"الوجبـــة",null,null,null,"عدد ن/داخلي",null,"الغائبون ",null,null,"الحاضرون",null,null,null,null,null,"2020-06-27",null,null,null,null,null,null,null,null,null,null,"بوعلام سهلي"]
[null,null,null,null,null,182,null,40,null,null,{"$f":"F32-$H$32","v":142},null,null,null,null,null,"2020-06-28",null,null,null,null,null,null,null,null,null,null,"ام الخير تهامي "]
[null,null,null,null,null,null,null,null,null,null,null,null,null,null,null,null,"2020-06-29",null,null,null,null,null,null,null,null,null,null,"خديجة بدراني "]
[null,null,null,null,null,null,null,null,null,null,null,null,null,null,null,null,"2020-06-30",null,null,null,null,null,null,null,null,null,null,"بوشوشة امحمدي"]
[null,null,null,null,null,null,null,null,null,null,null,null,null,null,null,null,null,null,null,null,null,null,null,null,null,null,null,"يعقوب كواهي "]
[null,"مواظبة التلاميذ ",null,null,null,null,null,null,null,null,null,null,null,null,null,null,null,null,null,null,null,null,null,null,null,null,null,"إبراهيم زريفي "]
[null,null,null,null,null,null,null,null,null,null,null,null,null,null,null,null,null,null,null,null,null,null,null,null,null,null,null,"محمد مشارة "]
[null,null,null,null,null,null,null,null,null,null,null,null,null,null,null,null,null,null,null,null,null,null,null,null,null,null,null,"شريف بدراني "]
[null,"المستوى ",null,"المسجلون","ذكــور","إنــاث","الغائبون","نسبة الغياب %",null,"الحاضرون",null,"نسبة الحاضرين %",null,null,null,null,null,null,null,null,null,null,null,null,null,null,null,"عبد القادر حساني "]
[null,"السنة الاولي متوسط 1",null,22,15,7,0,{"$f":"G40/$D$40","v":0},null,{"$f":"D40-$G$40","v":22},null,{"$f":"J40/$D$40","v":1}]
[null,"السنة الاولي متوسط 2",null,21,12,9,0,{"$f":"G41/$D$41","v":0},null,{"$f":"D41-G41","v":21},null,{"$f":"J41/$D$41","v":1},null,null,null,null,null,null,null,null,null,null,null,null,null,null,null,"قدور بومقواس"]
[null,"السنة الاولي متوسط 3",null,23,11,12,0,{"$f":"G42/$D$41","v":0},null,23,null,{"$f":"J42/$D$42","v":1},null,null,null,null,null,null,null,null,null,null,null,null,null,null,null,"العربي قرمان "]
[null,"السنة الثانية متوسط 1",null,31,15,16,0,0,null,31,null,{"$f":"J43/$D$43","v":1},null,null,null,null,null,null,null,null,null,null,null,null,null,null,null,"عبد القادر طيبي "]
[null,"السنة الثانية متوسط 2",null,33,17,16,0,0,null,33,null,{"$f":"J44/$D$44","v":1},null,null,null,null,null,null,null,null,null,null,null,null,null,null,null,"ميلود داودي "]
[null,"السنة الثالثة متوسط1",null,28,12,16,0,0,null,28,null,{"$f":"J45/$D$45","v":1},null,null,null,null,null,null,null,null,null,null,null,null,null,null,null,"رشيدة حطاب"]
[null,"السنة الثالثة متوسط 2",null,27,9,18,0,0,null,27,null,{"$f":"J46/$D$46","v":1},null,null,null,null,null,null,null,null,null,null,null,null,null,null,null,"مجدوب طلحة "]
[null,"السنة الرابعة متوسط 1",null,{"$f":"E47+F47","v":20},9,11,0,0,null,20,null,{"$f":"J47/$D$47","v":1},null,null,null,null,null,null,null,null,null,null,null,null,null,null,null,"مليود جليد "]
[null,"السنة الرابعة متوسط 2",null,{"$f":"E48+F48","v":23},11,12,0,0,null,23,null,{"$f":"J48/$D$48","v":1},null,null,null,null,null,null,null,null,null,null,null,null,null,null,null,"البشير قرمان "]
[null,"ملاحظــــات :"]
[null,null,null,null,null,null,null,null,null,null,null,null,null,null,null,null,null,null,null,null,null,null,null,null,null,null,null,"2019/2020"]
[null,null,null,null,null,null,null,null,null,null,null,null,null,null,null,null,null,null,null,null,null,null,null,null,null,null,null,"2020/2021"]
[null,null,null,null,null,null,null,null,null,null,null,null,null,null,null,null,null,null,null,null,null,null,null,null,null,null,null,"2021/2022"]
[]
[null,"منجز من طرف المكلف بالاستشارة ",null,null,"بتاريخ ",{"$f":"NOW()","v":"2020-06-18T19:22:29.630"}]
[null,null,null,null,null,null,null,null,null,"مدير المؤسسة "]

{"sheet":"12","index":12,"n_rows":55,"n_cols":30,"rows_kept":55,"cut":false,"hidden":false,"merged":[[54,9,54,10],[47,1,47,2],[47,7,47,8],[47,9,47,10],[47,11,47,12],[48,1,51,12],[53,1,53,3],[53,5,53,7],[45,1,45,2],[45,7,45,8],[45,9,45,10],[45,11,45,12],[46,7,46,8],[46,9,46,10],[46,11,46,12],[43,1,43,2],[43,7,43,8],[43,9,43,10],[43,11,43,12],[44,1,44,2],[44,7,44,8],[44,9,44,10],[44,11,44,12],[41,1,41,2],[41,7,41,8],[41,9,41,10],[41,11,41,12],[42,1,42,2],[42,7,42,8],[42,9,42,10],[42,11,42,12],[39,1,39,2],[39,7,39,8],[39,9,39,10],[39,11,39,12],[40,1,40,2],[40,7,40,8],[40,9,40,10],[40,11,40,12],[35,1,36,3],[38,1,38,2],[38,7,38,8],[38,9,38,10],[38,11,38,12],[29,1,29,12],[30,1,33,4],[30,5,30,6],[30,7,30,9],[30,10,30,12],[31,5,33,6],[31,7,33,9],[31,10,33,12],[24,7,24,8],[24,11,24,12],[27,1,28,3],[28,7,28,8],[28,11,28,12],[21,7,21,8],[21,11,21,12],[22,7,22,8],[22,11,22,12],[23,7,23,8],[23,11,23,12],[7,1,7,7],[7,9,7,12],[15,1,17,12],[19,1,19,3],[20,7,20,8],[20,11,20,12],[4,4,4,8],[4,9,4,12],[6,1,6,3],[6,9,6,10],[3,1,3,4],[0,4,0,9],[1,4,1,9],[2,1,2,4],[2,9,2,10],[2,11,2,12]]}
[null,null,null,null,{"$f":"HYPERLINK(\"#'Main Screen'!a1\",\"الجمهورية الجزائرية الديمقراطية الشعبية \")","v":"الجمهورية الجزائرية الديمقراطية الشعبية "}]
[null,null,null,null,"وزارة التربية الوطنيـــة "]
[null,"مديرية التربية لولايـــة الاغواط ",null,null,null,null,null,null,null,"السنة الدراسية ",null,"2019/2020"]
[null,"متوسطة سماعيني معمر تاجرونة "]
[null,null,null,null,"التقرير اليومي للاستشارة ",null,null,null,null,"2020-06-26",null,null,null,null,null,null,"2020-06-01"]
[null,null,null,null,null,null,null,null,null,null,null,null,null,null,null,null,"2020-06-02"]
[null,"مواظبـــة الاساتذة ",null,null,null,null,null,null,null,null,null,null,null,null,null,null,"2020-06-03"]
[null,"الفترة الصباحيـــــــــــة ",null,null,null,null,null,null,null,"الفترة المسائيــــة ",null,null,null,null,null,null,"2020-06-04"]
[null,"الرقم","الاسم و اللقب","المادة ","9--8","10--9","11--10","12--11",null,"15--14","16--15","17--16","الملاحظات",null,null,null,"2020-06-05"]
[null,1,"قدور بومقواس",null,null,null,null,null,null,"1م3","1م2","2م1",null,null,null,null,"2020-06-06"]
[null,2,"العربي قرمان ",null,null,null,null,null,null,null,null,null,null,null,null,null,"2020-06-07"]
[null,3,null,null,null,null,null,null,null,null,null,null,null,null,null,null,"2020-06-08",null,null,null,null,null,null,null,null,null,null,null,null,"1م1"]
[null,4,null,null,null,null,null,null,null,null,null,"2م2",null,null,null,null,"2020-06-09",null,null,null,null,null,null,null,null,null,null,null,null,"1م2"]
[null,5,null,null,null,null,null,null,null,null,null,null,null,null,null,null,"2020-06-10",null,null,null,null,null,null,null,null,null,null,null,null,"1م3"]
[null,6,null,null,null,null,null,null,null,null,null,null,null,null,null,null,"2020-06-11",null,null,null,null,null,null,null,null,null,null,"العربية ",null,"2م1"]
[null,"الاجراءات المتخذة :",null,null,null,null,null,null,null,null,null,null,null,null,null,null,"2020-06-12",null,null,null,null,null,null,null,null,null,null,"الفرنسية ",null,"2م2"]
[null,null,null,null,null,null,null,null,null,null,null,null,null,null,null,null,"2020-06-13",null,null,null,null,null,null,null,null,null,null,"الانجليزية ",null,"3م1"]
[null,null,null,null,null,null,null,null,null,null,null,null,null,null,null,null,"2020-06-14",null,null,null,null,null,null,null,null,null,null,"التربية الاسلامية ",null,"4م1"]
[null,null,null,null,null,null,null,null,null,null,null,null,null,null,null,null,"2020-06-15",null,null,null,null,null,null,null,null,null,null,"التربية المدنية ",null,"4م2"]
[null,"مواظبة موظفي الاستشارة ",null,null,null,null,null,null,null,null,null,null,null,null,null,null,"2020-06-16",null,null,null,null,null,null,null,null,null,null,"التاريخ والجغرافيا "]
[null,"الرقم","الاسم و اللقب","مدة التأخير","السبب",null,"الرقم","الاسم و اللقب",null,"صباحا","مساءا","الملاحظات ",null,null,null,null,"2020-06-17",null,null,null,null,null,null,null,null,null,null,"الرياضيات ",null,"دهكل أحمد"]
[null,1,null,null,null,null,1,null,null,null,null,null,null,null,null,null,"2020-06-18",null,null,null,null,null,null,null,null,null,null,"العلوم /ط",null,"طيفوري محمد"]
[null,2,null,null,null,null,2,null,null,null,null,null,null,null,null,null,"2020-06-19",null,null,null,null,null,null,null,null,null,null,"الفيزياء ",null,"قمقام دربالي"]
[null,3,null,null,null,null,3,null,null,null,null,null,null,null,null,null,"2020-06-20",null,null,null,null,null,null,null,null,null,null,"التربية الفنية "]
[null,4,null,null,null,null,4,null,null,null,null,null,null,null,null,null,"2020-06-21",null,null,null,null,null,null,null,null,null,null,"التربية الرياضية "]
[null,null,null,null,null,null,null,null,null,null,null,null,null,null,null,null,"2020-06-22"]
[null,null,null,null,null,null,null,null,null,null,null,null,null,null,null,null,"2020-06-23"]
[null,"وجبة الاطعــــــــــام ",null,null,null,null,null,null,null,null,null,null,null,null,null,null,"2020-06-24"]
[null,null,null,null,null,null,null,null,null,null,null,null,null,null,null,null,"2020-06-25"]
[null,"وجبــة الاطعام اليوميـــــــة ",null,null,null,null,null,null,null,null,null,null,null,null,null,null,"2020-06-26",null,null,null,null,null,null,null,null,null,null,"مباركة العابد"]
[null,"الوجبـــة",null,null,null,"عدد ن/داخلي",null,"الغائبون ",null,null,"الحاضرون",null,null,null,null,null,"2020-06-27",null,null,null,null,null,null,null,null,null,null,"بوعلام سهلي"]
[null,null,null,null,null,182,null,40,null,null,{"$f":"F32-$H$32","v":142},null,null,null,null,null,"2020-06-28",null,null,null,null,null,null,null,null,null,null,"ام الخير تهامي "]
[null,null,null,null,null,null,null,null,null,null,null,null,null,null,null,null,"2020-06-29",null,null,null,null,null,null,null,null,null,null,"خديجة بدراني "]
[null,null,null,null,null,null,null,null,null,null,null,null,null,null,null,null,"2020-06-30",null,null,null,null,null,null,null,null,null,null,"بوشوشة امحمدي"]
[null,null,null,null,null,null,null,null,null,null,null,null,null,null,null,null,null,null,null,null,null,null,null,null,null,null,null,"يعقوب كواهي "]
[null,"مواظبة التلاميذ ",null,null,null,null,null,null,null,null,null,null,null,null,null,null,null,null,null,null,null,null,null,null,null,null,null,"إبراهيم زريفي "]
[null,null,null,null,null,null,null,null,null,null,null,null,null,null,null,null,null,null,null,null,null,null,null,null,null,null,null,"محمد مشارة "]
[null,null,null,null,null,null,null,null,null,null,null,null,null,null,null,null,null,null,null,null,null,null,null,null,null,null,null,"شريف بدراني "]
[null,"المستوى ",null,"المسجلون","ذكــور","إنــاث","الغائبون","نسبة الغياب %",null,"الحاضرون",null,"نسبة الحاضرين %",null,null,null,null,null,null,null,null,null,null,null,null,null,null,null,"عبد القادر حساني "]
[null,"السنة الاولي متوسط 1",null,22,15,7,0,{"$f":"G40/$D$40","v":0},null,{"$f":"D40-$G$40","v":22},null,{"$f":"J40/$D$40","v":1}]
[null,"السنة الاولي متوسط 2",null,21,12,9,0,{"$f":"G41/$D$41","v":0},null,{"$f":"D41-G41","v":21},null,{"$f":"J41/$D$41","v":1},null,null,null,null,null,null,null,null,null,null,null,null,null,null,null,"قدور بومقواس"]
[null,"السنة الاولي متوسط 3",null,23,11,12,0,{"$f":"G42/$D$41","v":0},null,23,null,{"$f":"J42/$D$42","v":1},null,null,null,null,null,null,null,null,null,null,null,null,null,null,null,"العربي قرمان "]
[null,"السنة الثانية متوسط 1",null,31,15,16,0,0,null,31,null,{"$f":"J43/$D$43","v":1},null,null,null,null,null,null,null,null,null,null,null,null,null,null,null,"عبد القادر طيبي "]
[null,"السنة الثانية متوسط 2",null,33,17,16,0,0,null,33,null,{"$f":"J44/$D$44","v":1},null,null,null,null,null,null,null,null,null,null,null,null,null,null,null,"ميلود داودي "]
[null,"السنة الثالثة متوسط1",null,28,12,16,0,0,null,28,null,{"$f":"J45/$D$45","v":1},null,null,null,null,null,null,null,null,null,null,null,null,null,null,null,"رشيدة حطاب"]
[null,"السنة الثالثة متوسط 2",null,27,9,18,0,0,null,27,null,{"$f":"J46/$D$46","v":1},null,null,null,null,null,null,null,null,null,null,null,null,null,null,null,"مجدوب طلحة "]
[null,"السنة الرابعة متوسط 1",null,{"$f":"E47+F47","v":20},9,11,0,0,null,20,null,{"$f":"J47/$D$47","v":1},null,null,null,null,null,null,null,null,null,null,null,null,null,null,null,"مليود جليد "]
[null,"السنة الرابعة متوسط 2",null,{"$f":"E48+F48","v":23},11,12,0,0,null,23,null,{"$f":"J48/$D$48","v":1},null,null,null,null,null,null,null,null,null,null,null,null,null,null,null,"البشير قرمان "]
[null,"ملاحظــــات :"]
[null,null,null,null,null,null,null,null,null,null,null,null,null,null,null,null,null,null,null,null,null,null,null,null,null,null,null,"2019/2020"]
[null,null,null,null,null,null,null,null,null,null,null,null,null,null,null,null,null,null,null,null,null,null,null,null,null,null,null,"2020/2021"]
[null,null,null,null,null,null,null,null,null,null,null,null,null,null,null,null,null,null,null,null,null,null,null,null,null,null,null,"2021/2022"]
[]
[null,"منجز من طرف المكلف بالاستشارة ",null,null,"بتاريخ ",{"$f":"NOW()","v":"2020-06-18T19:22:29.630"}]
[null,null,null,null,null,null,null,null,null,"مدير المؤسسة "]

{"sheet":"13","index":13,"n_rows":55,"n_cols":30,"rows_kept":55,"cut":false,"hidden":false,"merged":[[54,9,54,10],[47,1,47,2],[47,7,47,8],[47,9,47,10],[47,11,47,12],[48,1,51,12],[53,1,53,3],[53,5,53,7],[45,1,45,2],[45,7,45,8],[45,9,45,10],[45,11,45,12],[46,7,46,8],[46,9,46,10],[46,11,46,12],[43,1,43,2],[43,7,43,8],[43,9,43,10],[43,11,43,12],[44,1,44,2],[44,7,44,8],[44,9,44,10],[44,11,44,12],[41,1,41,2],[41,7,41,8],[41,9,41,10],[41,11,41,12],[42,1,42,2],[42,7,42,8],[42,9,42,10],[42,11,42,12],[39,1,39,2],[39,7,39,8],[39,9,39,10],[39,11,39,12],[40,1,40,2],[40,7,40,8],[40,9,40,10],[40,11,40,12],[35,1,36,3],[38,1,38,2],[38,7,38,8],[38,9,38,10],[38,11,38,12],[29,1,29,12],[30,1,33,4],[30,5,30,6],[30,7,30,9],[30,10,30,12],[31,5,33,6],[31,7,33,9],[31,10,33,12],[24,7,24,8],[24,11,24,12],[27,1,28,3],[28,7,28,8],[28,11,28,12],[21,7,21,8],[21,11,21,12],[22,7,22,8],[22,11,22,12],[23,7,23,8],[23,11,23,12],[7,1,7,7],[7,9,7,12],[15,1,17,12],[19,1,19,3],[20,7,20,8],[20,11,20,12],[4,4,4,8],[4,9,4,12],[6,1,6,3],[6,9,6,10],[3,1,3,4],[0,4,0,9],[1,4,1,9],[2,1,2,4],[2,9,2,10],[2,11,2,12]]}
[null,null,null,null,{"$f":"HYPERLINK(\"#'Main Screen'!a1\",\"الجمهورية الجزائرية الديمقراطية الشعبية \")","v":"الجمهورية الجزائرية الديمقراطية الشعبية "}]
[null,null,null,null,"وزارة التربية الوطنيـــة "]
[null,"مديرية التربية لولايـــة الاغواط ",null,null,null,null,null,null,null,"السنة الدراسية ",null,"2019/2020"]
[null,"متوسطة سماعيني معمر تاجرونة "]
[null,null,null,null,"التقرير اليومي للاستشارة ",null,null,null,null,"2020-06-26",null,null,null,null,null,null,"2020-06-01"]
[null,null,null,null,null,null,null,null,null,null,null,null,null,null,null,null,"2020-06-02"]
[null,"مواظبـــة الاساتذة ",null,null,null,null,null,null,null,null,null,null,null,null,null,null,"2020-06-03"]
[null,"الفترة الصباحيـــــــــــة ",null,null,null,null,null,null,null,"الفترة المسائيــــة ",null,null,null,null,null,null,"2020-06-04"]
[null,"الرقم","الاسم و اللقب","المادة ","9--8","10--9","11--10","12--11",null,"15--14","16--15","17--16","الملاحظات",null,null,null,"2020-06-05"]
[null,1,"قدور بومقواس",null,null,null,null,null,null,"1م3","1م2","2م1",null,null,null,null,"2020-06-06"]
[null,2,"العربي قرمان ",null,null,null,null,null,null,null,null,null,null,null,null,null,"2020-06-07"]
[null,3,null,null,null,null,null,null,null,null,null,null,null,null,null,null,"2020-06-08",null,null,null,null,null,null,null,null,null,null,null,null,"1م1"]
[null,4,null,null,null,null,null,null,null,null,null,"2م2",null,null,null,null,"2020-06-09",null,null,null,null,null,null,null,null,null,null,null,null,"1م2"]
[null,5,null,null,null,null,null,null,null,null,null,null,null,null,null,null,"2020-06-10",null,null,null,null,null,null,null,null,null,null,null,null,"1م3"]
[null,6,null,null,null,null,null,null,null,null,null,null,null,null,null,null,"2020-06-11",null,null,null,null,null,null,null,null,null,null,"العربية ",null,"2م1"]
[null,"الاجراءات المتخذة :",null,null,null,null,null,null,null,null,null,null,null,null,null,null,"2020-06-12",null,null,null,null,null,null,null,null,null,null,"الفرنسية ",null,"2م2"]
[null,null,null,null,null,null,null,null,null,null,null,null,null,null,null,null,"2020-06-13",null,null,null,null,null,null,null,null,null,null,"الانجليزية ",null,"3م1"]
[null,null,null,null,null,null,null,null,null,null,null,null,null,null,null,null,"2020-06-14",null,null,null,null,null,null,null,null,null,null,"التربية الاسلامية ",null,"4م1"]
[null,null,null,null,null,null,null,null,null,null,null,null,null,null,null,null,"2020-06-15",null,null,null,null,null,null,null,null,null,null,"التربية المدنية ",null,"4م2"]
[null,"مواظبة موظفي الاستشارة ",null,null,null,null,null,null,null,null,null,null,null,null,null,null,"2020-06-16",null,null,null,null,null,null,null,null,null,null,"التاريخ والجغرافيا "]
[null,"الرقم","الاسم و اللقب","مدة التأخير","السبب",null,"الرقم","الاسم و اللقب",null,"صباحا","مساءا","الملاحظات ",null,null,null,null,"2020-06-17",null,null,null,null,null,null,null,null,null,null,"الرياضيات ",null,"دهكل أحمد"]
[null,1,null,null,null,null,1,null,null,null,null,null,null,null,null,null,"2020-06-18",null,null,null,null,null,null,null,null,null,null,"العلوم /ط",null,"طيفوري محمد"]
[null,2,null,null,null,null,2,null,null,null,null,null,null,null,null,null,"2020-06-19",null,null,null,null,null,null,null,null,null,null,"الفيزياء ",null,"قمقام دربالي"]
[null,3,null,null,null,null,3,null,null,null,null,null,null,null,null,null,"2020-06-20",null,null,null,null,null,null,null,null,null,null,"التربية الفنية "]
[null,4,null,null,null,null,4,null,null,null,null,null,null,null,null,null,"2020-06-21",null,null,null,null,null,null,null,null,null,null,"التربية الرياضية "]
[null,null,null,null,null,null,null,null,null,null,null,null,null,null,null,null,"2020-06-22"]
[null,null,null,null,null,null,null,null,null,null,null,null,null,null,null,null,"2020-06-23"]
[null,"وجبة الاطعــــــــــام ",null,null,null,null,null,null,null,null,null,null,null,null,null,null,"2020-06-24"]
[null,null,null,null,null,null,null,null,null,null,null,null,null,null,null,null,"2020-06-25"]
[null,"وجبــة الاطعام اليوميـــــــة ",null,null,null,null,null,null,null,null,null,null,null,null,null,null,"2020-06-26",null,null,null,null,null,null,null,null,null,null,"مباركة العابد"]
[null,"الوجبـــة",null,null,null,"عدد ن/داخلي",null,"الغائبون ",null,null,"الحاضرون",null,null,null,null,null,"2020-06-27",null,null,null,null,null,null,null,null,null,null,"بوعلام سهلي"]
[null,null,null,null,null,182,null,40,null,null,{"$f":"F32-$H$32","v":142},null,null,null,null,null,"2020-06-28",null,null,null,null,null,null,null,null,null,null,"ام الخير تهامي "]
[null,null,null,null,null,null,null,null,null,null,null,null,null,null,null,null,"2020-06-29",null,null,null,null,null,null,null,null,null,null,"خديجة بدراني "]
[null,null,null,null,null,null,null,null,null,null,null,null,null,null,null,null,"2020-06-30",null,null,null,null,null,null,null,null,null,null,"بوشوشة امحمدي"]
[null,null,null,null,null,null,null,null,null,null,null,null,null,null,null,null,null,null,null,null,null,null,null,null,null,null,null,"يعقوب كواهي "]
[null,"مواظبة التلاميذ ",null,null,null,null,null,null,null,null,null,null,null,null,null,null,null,null,null,null,null,null,null,null,null,null,null,"إبراهيم زريفي "]
[null,null,null,null,null,null,null,null,null,null,null,null,null,null,null,null,null,null,null,null,null,null,null,null,null,null,null,"محمد مشارة "]
[null,null,null,null,null,null,null,null,null,null,null,null,null,null,null,null,null,null,null,null,null,null,null,null,null,null,null,"شريف بدراني "]
[null,"المستوى ",null,"المسجلون","ذكــور","إنــاث","الغائبون","نسبة الغياب %",null,"الحاضرون",null,"نسبة الحاضرين %",null,null,null,null,null,null,null,null,null,null,null,null,null,null,null,"عبد القادر حساني "]
[null,"السنة الاولي متوسط 1",null,22,15,7,0,{"$f":"G40/$D$40","v":0},null,{"$f":"D40-$G$40","v":22},null,{"$f":"J40/$D$40","v":1}]
[null,"السنة الاولي متوسط 2",null,21,12,9,0,{"$f":"G41/$D$41","v":0},null,{"$f":"D41-G41","v":21},null,{"$f":"J41/$D$41","v":1},null,null,null,null,null,null,null,null,null,null,null,null,null,null,null,"قدور بومقواس"]
[null,"السنة الاولي متوسط 3",null,23,11,12,0,{"$f":"G42/$D$41","v":0},null,23,null,{"$f":"J42/$D$42","v":1},null,null,null,null,null,null,null,null,null,null,null,null,null,null,null,"العربي قرمان "]
[null,"السنة الثانية متوسط 1",null,31,15,16,0,0,null,31,null,{"$f":"J43/$D$43","v":1},null,null,null,null,null,null,null,null,null,null,null,null,null,null,null,"عبد القادر طيبي "]
[null,"السنة الثانية متوسط 2",null,33,17,16,0,0,null,33,null,{"$f":"J44/$D$44","v":1},null,null,null,null,null,null,null,null,null,null,null,null,null,null,null,"ميلود داودي "]
[null,"السنة الثالثة متوسط1",null,28,12,16,0,0,null,28,null,{"$f":"J45/$D$45","v":1},null,null,null,null,null,null,null,null,null,null,null,null,null,null,null,"رشيدة حطاب"]
[null,"السنة الثالثة متوسط 2",null,27,9,18,0,0,null,27,null,{"$f":"J46/$D$46","v":1},null,null,null,null,null,null,null,null,null,null,null,null,null,null,null,"مجدوب طلحة "]
[null,"السنة الرابعة متوسط 1",null,{"$f":"E47+F47","v":20},9,11,0,0,null,20,null,{"$f":"J47/$D$47","v":1},null,null,null,null,null,null,null,null,null,null,null,null,null,null,null,"مليود جليد "]
[null,"السنة الرابعة متوسط 2",null,{"$f":"E48+F48","v":23},11,12,0,0,null,23,null,{"$f":"J48/$D$48","v":1},null,null,null,null,null,null,null,null,null,null,null,null,null,null,null,"البشير قرمان "]
[null,"ملاحظــــات :"]
[null,null,null,null,null,null,null,null,null,null,null,null,null,null,null,null,null,null,null,null,null,null,null,null,null,null,null,"2019/2020"]
[null,null,null,null,null,null,null,null,null,null,null,null,null,null,null,null,null,null,null,null,null,null,null,null,null,null,null,"2020/2021"]
[null,null,null,null,null,null,null,null,null,null,null,null,null,null,null,null,null,null,null,null,null,null,null,null,null,null,null,"2021/2022"]
[]
[null,"منجز من طرف المكلف بالاستشارة ",null,null,"بتاريخ ",{"$f":"NOW()","v":"2020-06-18T19:22:29.630"}]
[null,null,null,null,null,null,null,null,null,"مدير المؤسسة "]

{"sheet":"14","index":14,"n_rows":55,"n_cols":30,"rows_kept":55,"cut":false,"hidden":false,"merged":[[54,9,54,10],[47,1,47,2],[47,7,47,8],[47,9,47,10],[47,11,47,12],[48,1,51,12],[53,1,53,3],[53,5,53,7],[45,1,45,2],[45,7,45,8],[45,9,45,10],[45,11,45,12],[46,7,46,8],[46,9,46,10],[46,11,46,12],[43,1,43,2],[43,7,43,8],[43,9,43,10],[43,11,43,12],[44,1,44,2],[44,7,44,8],[44,9,44,10],[44,11,44,12],[41,1,41,2],[41,7,41,8],[41,9,41,10],[41,11,41,12],[42,1,42,2],[42,7,42,8],[42,9,42,10],[42,11,42,12],[39,1,39,2],[39,7,39,8],[39,9,39,10],[39,11,39,12],[40,1,40,2],[40,7,40,8],[40,9,40,10],[40,11,40,12],[35,1,36,3],[38,1,38,2],[38,7,38,8],[38,9,38,10],[38,11,38,12],[29,1,29,12],[30,1,33,4],[30,5,30,6],[30,7,30,9],[30,10,30,12],[31,5,33,6],[31,7,33,9],[31,10,33,12],[24,7,24,8],[24,11,24,12],[27,1,28,3],[28,7,28,8],[28,11,28,12],[21,7,21,8],[21,11,21,12],[22,7,22,8],[22,11,22,12],[23,7,23,8],[23,11,23,12],[7,1,7,7],[7,9,7,12],[15,1,17,12],[19,1,19,3],[20,7,20,8],[20,11,20,12],[4,4,4,8],[4,9,4,12],[6,1,6,3],[6,9,6,10],[3,1,3,4],[0,4,0,9],[1,4,1,9],[2,1,2,4],[2,9,2,10],[2,11,2,12]]}
[null,null,null,null,{"$f":"HYPERLINK(\"#'Main Screen'!a1\",\"الجمهورية الجزائرية الديمقراطية الشعبية \")","v":"الجمهورية الجزائرية الديمقراطية الشعبية "}]
[null,null,null,null,"وزارة التربية الوطنيـــة "]
[null,"مديرية التربية لولايـــة الاغواط ",null,null,null,null,null,null,null,"السنة الدراسية ",null,"2019/2020"]
[null,"متوسطة سماعيني معمر تاجرونة "]
[null,null,null,null,"التقرير اليومي للاستشارة ",null,null,null,null,"2020-06-26",null,null,null,null,null,null,"2020-06-01"]
[null,null,null,null,null,null,null,null,null,null,null,null,null,null,null,null,"2020-06-02"]
[null,"مواظبـــة الاساتذة ",null,null,null,null,null,null,null,null,null,null,null,null,null,null,"2020-06-03"]
[null,"الفترة الصباحيـــــــــــة ",null,null,null,null,null,null,null,"الفترة المسائيــــة ",null,null,null,null,null,null,"2020-06-04"]
[null,"الرقم","الاسم و اللقب","المادة ","9--8","10--9","11--10","12--11",null,"15--14","16--15","17--16","الملاحظات",null,null,null,"2020-06-05"]
[null,1,"قدور بومقواس",null,null,null,null,null,null,"1م3","1م2","2م1",null,null,null,null,"2020-06-06"]
[null,2,"العربي قرمان ",null,null,null,null,null,null,null,null,null,null,null,null,null,"2020-06-07"]
[null,3,null,null,null,null,null,null,null,null,null,null,null,null,null,null,"2020-06-08",null,null,null,null,null,null,null,null,null,null,null,null,"1م1"]
[null,4,null,null,null,null,null,null,null,null,null,"2م2",null,null,null,null,"2020-06-09",null,null,null,null,null,null,null,null,null,null,null,null,"1م2"]
[null,5,null,null,null,null,null,null,null,null,null,null,null,null,null,null,"2020-06-10",null,null,null,null,null,null,null,null,null,null,null,null,"1م3"]
[null,6,null,null,null,null,null,null,null,null,null,null,null,null,null,null,"2020-06-11",null,null,null,null,null,null,null,null,null,null,"العربية ",null,"2م1"]
[null,"الاجراءات المتخذة :",null,null,null,null,null,null,null,null,null,null,null,null,null,null,"2020-06-12",null,null,null,null,null,null,null,null,null,null,"الفرنسية ",null,"2م2"]
[null,null,null,null,null,null,null,null,null,null,null,null,null,null,null,null,"2020-06-13",null,null,null,null,null,null,null,null,null,null,"الانجليزية ",null,"3م1"]
[null,null,null,null,null,null,null,null,null,null,null,null,null,null,null,null,"2020-06-14",null,null,null,null,null,null,null,null,null,null,"التربية الاسلامية ",null,"4م1"]
[null,null,null,null,null,null,null,null,null,null,null,null,null,null,null,null,"2020-06-15",null,null,null,null,null,null,null,null,null,null,"التربية المدنية ",null,"4م2"]
[null,"مواظبة موظفي الاستشارة ",null,null,null,null,null,null,null,null,null,null,null,null,null,null,"2020-06-16",null,null,null,null,null,null,null,null,null,null,"التاريخ والجغرافيا "]
[null,"الرقم","الاسم و اللقب","مدة التأخير","السبب",null,"الرقم","الاسم و اللقب",null,"صباحا","مساءا","الملاحظات ",null,null,null,null,"2020-06-17",null,null,null,null,null,null,null,null,null,null,"الرياضيات ",null,"دهكل أحمد"]
[null,1,null,null,null,null,1,null,null,null,null,null,null,null,null,null,"2020-06-18",null,null,null,null,null,null,null,null,null,null,"العلوم /ط",null,"طيفوري محمد"]
[null,2,null,null,null,null,2,null,null,null,null,null,null,null,null,null,"2020-06-19",null,null,null,null,null,null,null,null,null,null,"الفيزياء ",null,"قمقام دربالي"]
[null,3,null,null,null,null,3,null,null,null,null,null,null,null,null,null,"2020-06-20",null,null,null,null,null,null,null,null,null,null,"التربية الفنية "]
[null,4,null,null,null,null,4,null,null,null,null,null,null,null,null,null,"2020-06-21",null,null,null,null,null,null,null,null,null,null,"التربية الرياضية "]
[null,null,null,null,null,null,null,null,null,null,null,null,null,null,null,null,"2020-06-22"]
[null,null,null,null,null,null,null,null,null,null,null,null,null,null,null,null,"2020-06-23"]
[null,"وجبة الاطعــــــــــام ",null,null,null,null,null,null,null,null,null,null,null,null,null,null,"2020-06-24"]
[null,null,null,null,null,null,null,null,null,null,null,null,null,null,null,null,"2020-06-25"]
[null,"وجبــة الاطعام اليوميـــــــة ",null,null,null,null,null,null,null,null,null,null,null,null,null,null,"2020-06-26",null,null,null,null,null,null,null,null,null,null,"مباركة العابد"]
[null,"الوجبـــة",null,null,null,"عدد ن/داخلي",null,"الغائبون ",null,null,"الحاضرون",null,null,null,null,null,"2020-06-27",null,null,null,null,null,null,null,null,null,null,"بوعلام سهلي"]
[null,null,null,null,null,182,null,40,null,null,{"$f":"F32-$H$32","v":142},null,null,null,null,null,"2020-06-28",null,null,null,null,null,null,null,null,null,null,"ام الخير تهامي "]
[null,null,null,null,null,null,null,null,null,null,null,null,null,null,null,null,"2020-06-29",null,null,null,null,null,null,null,null,null,null,"خديجة بدراني "]
[null,null,null,null,null,null,null,null,null,null,null,null,null,null,null,null,"2020-06-30",null,null,null,null,null,null,null,null,null,null,"بوشوشة امحمدي"]
[null,null,null,null,null,null,null,null,null,null,null,null,null,null,null,null,null,null,null,null,null,null,null,null,null,null,null,"يعقوب كواهي "]
[null,"مواظبة التلاميذ ",null,null,null,null,null,null,null,null,null,null,null,null,null,null,null,null,null,null,null,null,null,null,null,null,null,"إبراهيم زريفي "]
[null,null,null,null,null,null,null,null,null,null,null,null,null,null,null,null,null,null,null,null,null,null,null,null,null,null,null,"محمد مشارة "]
[null,null,null,null,null,null,null,null,null,null,null,null,null,null,null,null,null,null,null,null,null,null,null,null,null,null,null,"شريف بدراني "]
[null,"المستوى ",null,"المسجلون","ذكــور","إنــاث","الغائبون","نسبة الغياب %",null,"الحاضرون",null,"نسبة الحاضرين %",null,null,null,null,null,null,null,null,null,null,null,null,null,null,null,"عبد القادر حساني "]
[null,"السنة الاولي متوسط 1",null,22,15,7,0,{"$f":"G40/$D$40","v":0},null,{"$f":"D40-$G$40","v":22},null,{"$f":"J40/$D$40","v":1}]
[null,"السنة الاولي متوسط 2",null,21,12,9,0,{"$f":"G41/$D$41","v":0},null,{"$f":"D41-G41","v":21},null,{"$f":"J41/$D$41","v":1},null,null,null,null,null,null,null,null,null,null,null,null,null,null,null,"قدور بومقواس"]
[null,"السنة الاولي متوسط 3",null,23,11,12,0,{"$f":"G42/$D$41","v":0},null,23,null,{"$f":"J42/$D$42","v":1},null,null,null,null,null,null,null,null,null,null,null,null,null,null,null,"العربي قرمان "]
[null,"السنة الثانية متوسط 1",null,31,15,16,0,0,null,31,null,{"$f":"J43/$D$43","v":1},null,null,null,null,null,null,null,null,null,null,null,null,null,null,null,"عبد القادر طيبي "]
[null,"السنة الثانية متوسط 2",null,33,17,16,0,0,null,33,null,{"$f":"J44/$D$44","v":1},null,null,null,null,null,null,null,null,null,null,null,null,null,null,null,"ميلود داودي "]
[null,"السنة الثالثة متوسط1",null,28,12,16,0,0,null,28,null,{"$f":"J45/$D$45","v":1},null,null,null,null,null,null,null,null,null,null,null,null,null,null,null,"رشيدة حطاب"]
[null,"السنة الثالثة متوسط 2",null,27,9,18,0,0,null,27,null,{"$f":"J46/$D$46","v":1},null,null,null,null,null,null,null,null,null,null,null,null,null,null,null,"مجدوب طلحة "]
[null,"السنة الرابعة متوسط 1",null,{"$f":"E47+F47","v":20},9,11,0,0,null,20,null,{"$f":"J47/$D$47","v":1},null,null,null,null,null,null,null,null,null,null,null,null,null,null,null,"مليود جليد "]
[null,"السنة الرابعة متوسط 2",null,{"$f":"E48+F48","v":23},11,12,0,0,null,23,null,{"$f":"J48/$D$48","v":1},null,null,null,null,null,null,null,null,null,null,null,null,null,null,null,"البشير قرمان "]
[null,"ملاحظــــات :"]
[null,null,null,null,null,null,null,null,null,null,null,null,null,null,null,null,null,null,null,null,null,null,null,null,null,null,null,"2019/2020"]
[null,null,null,null,null,null,null,null,null,null,null,null,null,null,null,null,null,null,null,null,null,null,null,null,null,null,null,"2020/2021"]
[null,null,null,null,null,null,null,null,null,null,null,null,null,null,null,null,null,null,null,null,null,null,null,null,null,null,null,"2021/2022"]
[]
[null,"منجز من طرف المكلف بالاستشارة ",null,null,"بتاريخ ",{"$f":"NOW()","v":"2020-06-18T19:22:29.630"}]
[null,null,null,null,null,null,null,null,null,"مدير المؤسسة "]

{"sheet":"15","index":15,"n_rows":55,"n_cols":30,"rows_kept":55,"cut":false,"hidden":false,"merged":[[54,9,54,10],[47,1,47,2],[47,7,47,8],[47,9,47,10],[47,11,47,12],[48,1,51,12],[53,1,53,3],[53,5,53,7],[45,1,45,2],[45,7,45,8],[45,9,45,10],[45,11,45,12],[46,7,46,8],[46,9,46,10],[46,11,46,12],[43,1,43,2],[43,7,43,8],[43,9,43,10],[43,11,43,12],[44,1,44,2],[44,7,44,8],[44,9,44,10],[44,11,44,12],[41,1,41,2],[41,7,41,8],[41,9,41,10],[41,11,41,12],[42,1,42,2],[42,7,42,8],[42,9,42,10],[42,11,42,12],[39,1,39,2],[39,7,39,8],[39,9,39,10],[39,11,39,12],[40,1,40,2],[40,7,40,8],[40,9,40,10],[40,11,40,12],[35,1,36,3],[38,1,38,2],[38,7,38,8],[38,9,38,10],[38,11,38,12],[29,1,29,12],[30,1,33,4],[30,5,30,6],[30,7,30,9],[30,10,30,12],[31,5,33,6],[31,7,33,9],[31,10,33,12],[24,7,24,8],[24,11,24,12],[27,1,28,3],[28,7,28,8],[28,11,28,12],[21,7,21,8],[21,11,21,12],[22,7,22,8],[22,11,22,12],[23,7,23,8],[23,11,23,12],[7,1,7,7],[7,9,7,12],[15,1,17,12],[19,1,19,3],[20,7,20,8],[20,11,20,12],[4,4,4,8],[4,9,4,12],[6,1,6,3],[6,9,6,10],[3,1,3,4],[0,4,0,9],[1,4,1,9],[2,1,2,4],[2,9,2,10],[2,11,2,12]]}
[null,null,null,null,{"$f":"HYPERLINK(\"#'Main Screen'!a1\",\"الجمهورية الجزائرية الديمقراطية الشعبية \")","v":"الجمهورية الجزائرية الديمقراطية الشعبية "}]
[null,null,null,null,"وزارة التربية الوطنيـــة "]
[null,"مديرية التربية لولايـــة الاغواط ",null,null,null,null,null,null,null,"السنة الدراسية ",null,"2019/2020"]
[null,"متوسطة سماعيني معمر تاجرونة "]
[null,null,null,null,"التقرير اليومي للاستشارة ",null,null,null,null,"2020-06-26",null,null,null,null,null,null,"2020-06-01"]
[null,null,null,null,null,null,null,null,null,null,null,null,null,null,null,null,"2020-06-02"]
[null,"مواظبـــة الاساتذة ",null,null,null,null,null,null,null,null,null,null,null,null,null,null,"2020-06-03"]
[null,"الفترة الصباحيـــــــــــة ",null,null,null,null,null,null,null,"الفترة المسائيــــة ",null,null,null,null,null,null,"2020-06-04"]
[null,"الرقم","الاسم و اللقب","المادة ","9--8","10--9","11--10","12--11",null,"15--14","16--15","17--16","الملاحظات",null,null,null,"2020-06-05"]
[null,1,"قدور بومقواس",null,null,null,null,null,null,"1م3","1م2","2م1",null,null,null,null,"2020-06-06"]
[null,2,"العربي قرمان ",null,null,null,null,null,null,null,null,null,null,null,null,null,"2020-06-07"]
[null,3,null,null,null,null,null,null,null,null,null,null,null,null,null,null,"2020-06-08",null,null,null,null,null,null,null,null,null,null,null,null,"1م1"]
[null,4,null,null,null,null,null,null,null,null,null,"2م2",null,null,null,null,"2020-06-09",null,null,null,null,null,null,null,null,null,null,null,null,"1م2"]
[null,5,null,null,null,null,null,null,null,null,null,null,null,null,null,null,"2020-06-10",null,null,null,null,null,null,null,null,null,null,null,null,"1م3"]
[null,6,null,null,null,null,null,null,null,null,null,null,null,null,null,null,"2020-06-11",null,null,null,null,null,null,null,null,null,null,"العربية ",null,"2م1"]
[null,"الاجراءات المتخذة :",null,null,null,null,null,null,null,null,null,null,null,null,null,null,"2020-06-12",null,null,null,null,null,null,null,null,null,null,"الفرنسية ",null,"2م2"]
[null,null,null,null,null,null,null,null,null,null,null,null,null,null,null,null,"2020-06-13",null,null,null,null,null,null,null,null,null,null,"الانجليزية ",null,"3م1"]
[null,null,null,null,null,null,null,null,null,null,null,null,null,null,null,null,"2020-06-14",null,null,null,null,null,null,null,null,null,null,"التربية الاسلامية ",null,"4م1"]
[null,null,null,null,null,null,null,null,null,null,null,null,null,null,null,null,"2020-06-15",null,null,null,null,null,null,null,null,null,null,"التربية المدنية ",null,"4م2"]
[null,"مواظبة موظفي الاستشارة ",null,null,null,null,null,null,null,null,null,null,null,null,null,null,"2020-06-16",null,null,null,null,null,null,null,null,null,null,"التاريخ والجغرافيا "]
[null,"الرقم","الاسم و اللقب","مدة التأخير","السبب",null,"الرقم","الاسم و اللقب",null,"صباحا","مساءا","الملاحظات ",null,null,null,null,"2020-06-17",null,null,null,null,null,null,null,null,null,null,"الرياضيات ",null,"دهكل أحمد"]
[null,1,null,null,null,null,1,null,null,null,null,null,null,null,null,null,"2020-06-18",null,null,null,null,null,null,null,null,null,null,"العلوم /ط",null,"طيفوري محمد"]
[null,2,null,null,null,null,2,null,null,null,null,null,null,null,null,null,"2020-06-19",null,null,null,null,null,null,null,null,null,null,"الفيزياء ",null,"قمقام دربالي"]
[null,3,null,null,null,null,3,null,null,null,null,null,null,null,null,null,"2020-06-20",null,null,null,null,null,null,null,null,null,null,"التربية الفنية "]
[null,4,null,null,null,null,4,null,null,null,null,null,null,null,null,null,"2020-06-21",null,null,null,null,null,null,null,null,null,null,"التربية الرياضية "]
[null,null,null,null,null,null,null,null,null,null,null,null,null,null,null,null,"2020-06-22"]
[null,null,null,null,null,null,null,null,null,null,null,null,null,null,null,null,"2020-06-23"]
[null,"وجبة الاطعــــــــــام ",null,null,null,null,null,null,null,null,null,null,null,null,null,null,"2020-06-24"]
[null,null,null,null,null,null,null,null,null,null,null,null,null,null,null,null,"2020-06-25"]
[null,"وجبــة الاطعام اليوميـــــــة ",null,null,null,null,null,null,null,null,null,null,null,null,null,null,"2020-06-26",null,null,null,null,null,null,null,null,null,null,"مباركة العابد"]
[null,"الوجبـــة",null,null,null,"عدد ن/داخلي",null,"الغائبون ",null,null,"الحاضرون",null,null,null,null,null,"2020-06-27",null,null,null,null,null,null,null,null,null,null,"بوعلام سهلي"]
[null,null,null,null,null,182,null,40,null,null,{"$f":"F32-$H$32","v":142},null,null,null,null,null,"2020-06-28",null,null,null,null,null,null,null,null,null,null,"ام الخير تهامي "]
[null,null,null,null,null,null,null,null,null,null,null,null,null,null,null,null,"2020-06-29",null,null,null,null,null,null,null,null,null,null,"خديجة بدراني "]
[null,null,null,null,null,null,null,null,null,null,null,null,null,null,null,null,"2020-06-30",null,null,null,null,null,null,null,null,null,null,"بوشوشة امحمدي"]
[null,null,null,null,null,null,null,null,null,null,null,null,null,null,null,null,null,null,null,null,null,null,null,null,null,null,null,"يعقوب كواهي "]
[null,"مواظبة التلاميذ ",null,null,null,null,null,null,null,null,null,null,null,null,null,null,null,null,null,null,null,null,null,null,null,null,null,"إبراهيم زريفي "]
[null,null,null,null,null,null,null,null,null,null,null,null,null,null,null,null,null,null,null,null,null,null,null,null,null,null,null,"محمد مشارة "]
[null,null,null,null,null,null,null,null,null,null,null,null,null,null,null,null,null,null,null,null,null,null,null,null,null,null,null,"شريف بدراني "]
[null,"المستوى ",null,"المسجلون","ذكــور","إنــاث","الغائبون","نسبة الغياب %",null,"الحاضرون",null,"نسبة الحاضرين %",null,null,null,null,null,null,null,null,null,null,null,null,null,null,null,"عبد القادر حساني "]
[null,"السنة الاولي متوسط 1",null,22,15,7,0,{"$f":"G40/$D$40","v":0},null,{"$f":"D40-$G$40","v":22},null,{"$f":"J40/$D$40","v":1}]
[null,"السنة الاولي متوسط 2",null,21,12,9,0,{"$f":"G41/$D$41","v":0},null,{"$f":"D41-G41","v":21},null,{"$f":"J41/$D$41","v":1},null,null,null,null,null,null,null,null,null,null,null,null,null,null,null,"قدور بومقواس"]
[null,"السنة الاولي متوسط 3",null,23,11,12,0,{"$f":"G42/$D$41","v":0},null,23,null,{"$f":"J42/$D$42","v":1},null,null,null,null,null,null,null,null,null,null,null,null,null,null,null,"العربي قرمان "]
[null,"السنة الثانية متوسط 1",null,31,15,16,0,0,null,31,null,{"$f":"J43/$D$43","v":1},null,null,null,null,null,null,null,null,null,null,null,null,null,null,null,"عبد القادر طيبي "]
[null,"السنة الثانية متوسط 2",null,33,17,16,0,0,null,33,null,{"$f":"J44/$D$44","v":1},null,null,null,null,null,null,null,null,null,null,null,null,null,null,null,"ميلود داودي "]
[null,"السنة الثالثة متوسط1",null,28,12,16,0,0,null,28,null,{"$f":"J45/$D$45","v":1},null,null,null,null,null,null,null,null,null,null,null,null,null,null,null,"رشيدة حطاب"]
[null,"السنة الثالثة متوسط 2",null,27,9,18,0,0,null,27,null,{"$f":"J46/$D$46","v":1},null,null,null,null,null,null,null,null,null,null,null,null,null,null,null,"مجدوب طلحة "]
[null,"السنة الرابعة متوسط 1",null,{"$f":"E47+F47","v":20},9,11,0,0,null,20,null,{"$f":"J47/$D$47","v":1},null,null,null,null,null,null,null,null,null,null,null,null,null,null,null,"مليود جليد "]
[null,"السنة الرابعة متوسط 2",null,{"$f":"E48+F48","v":23},11,12,0,0,null,23,null,{"$f":"J48/$D$48","v":1},null,null,null,null,null,null,null,null,null,null,null,null,null,null,null,"البشير قرمان "]
[null,"ملاحظــــات :"]
[null,null,null,null,null,null,null,null,null,null,null,null,null,null,null,null,null,null,null,null,null,null,null,null,null,null,null,"2019/2020"]
[null,null,null,null,null,null,null,null,null,null,null,null,null,null,null,null,null,null,null,null,null,null,null,null,null,null,null,"2020/2021"]
[null,null,null,null,null,null,null,null,null,null,null,null,null,null,null,null,null,null,null,null,null,null,null,null,null,null,null,"2021/2022"]
[]
[null,"منجز من طرف المكلف بالاستشارة ",null,null,"بتاريخ ",{"$f":"NOW()","v":"2020-06-18T19:22:29.630"}]
[null,null,null,null,null,null,null,null,null,"مدير المؤسسة "]

{"sheet":"16","index":16,"n_rows":55,"n_cols":30,"rows_kept":55,"cut":false,"hidden":false,"merged":[[54,9,54,10],[47,1,47,2],[47,7,47,8],[47,9,47,10],[47,11,47,12],[48,1,51,12],[53,1,53,3],[53,5,53,7],[45,1,45,2],[45,7,45,8],[45,9,45,10],[45,11,45,12],[46,7,46,8],[46,9,46,10],[46,11,46,12],[43,1,43,2],[43,7,43,8],[43,9,43,10],[43,11,43,12],[44,1,44,2],[44,7,44,8],[44,9,44,10],[44,11,44,12],[41,1,41,2],[41,7,41,8],[41,9,41,10],[41,11,41,12],[42,1,42,2],[42,7,42,8],[42,9,42,10],[42,11,42,12],[39,1,39,2],[39,7,39,8],[39,9,39,10],[39,11,39,12],[40,1,40,2],[40,7,40,8],[40,9,40,10],[40,11,40,12],[35,1,36,3],[38,1,38,2],[38,7,38,8],[38,9,38,10],[38,11,38,12],[29,1,29,12],[30,1,33,4],[30,5,30,6],[30,7,30,9],[30,10,30,12],[31,5,33,6],[31,7,33,9],[31,10,33,12],[24,7,24,8],[24,11,24,12],[27,1,28,3],[28,7,28,8],[28,11,28,12],[21,7,21,8],[21,11,21,12],[22,7,22,8],[22,11,22,12],[23,7,23,8],[23,11,23,12],[7,1,7,7],[7,9,7,12],[15,1,17,12],[19,1,19,3],[20,7,20,8],[20,11,20,12],[4,4,4,8],[4,9,4,12],[6,1,6,3],[6,9,6,10],[3,1,3,4],[0,4,0,9],[1,4,1,9],[2,1,2,4],[2,9,2,10],[2,11,2,12]]}
[null,null,null,null,{"$f":"HYPERLINK(\"#'Main Screen'!a1\",\"الجمهورية الجزائرية الديمقراطية الشعبية \")","v":"الجمهورية الجزائرية الديمقراطية الشعبية "}]
[null,null,null,null,"وزارة التربية الوطنيـــة "]
[null,"مديرية التربية لولايـــة الاغواط ",null,null,null,null,null,null,null,"السنة الدراسية ",null,"2019/2020"]
[null,"متوسطة سماعيني معمر تاجرونة "]
[null,null,null,null,"التقرير اليومي للاستشارة ",null,null,null,null,"2020-06-26",null,null,null,null,null,null,"2020-06-01"]
[null,null,null,null,null,null,null,null,null,null,null,null,null,null,null,null,"2020-06-02"]
[null,"مواظبـــة الاساتذة ",null,null,null,null,null,null,null,null,null,null,null,null,null,null,"2020-06-03"]
[null,"الفترة الصباحيـــــــــــة ",null,null,null,null,null,null,null,"الفترة المسائيــــة ",null,null,null,null,null,null,"2020-06-04"]
[null,"الرقم","الاسم و اللقب","المادة ","9--8","10--9","11--10","12--11",null,"15--14","16--15","17--16","الملاحظات",null,null,null,"2020-06-05"]
[null,1,"قدور بومقواس",null,null,null,null,null,null,"1م3","1م2","2م1",null,null,null,null,"2020-06-06"]
[null,2,"العربي قرمان ",null,null,null,null,null,null,null,null,null,null,null,null,null,"2020-06-07"]
[null,3,null,null,null,null,null,null,null,null,null,null,null,null,null,null,"2020-06-08",null,null,null,null,null,null,null,null,null,null,null,null,"1م1"]
[null,4,null,null,null,null,null,null,null,null,null,"2م2",null,null,null,null,"2020-06-09",null,null,null,null,null,null,null,null,null,null,null,null,"1م2"]
[null,5,null,null,null,null,null,null,null,null,null,null,null,null,null,null,"2020-06-10",null,null,null,null,null,null,null,null,null,null,null,null,"1م3"]
[null,6,null,null,null,null,null,null,null,null,null,null,null,null,null,null,"2020-06-11",null,null,null,null,null,null,null,null,null,null,"العربية ",null,"2م1"]
[null,"الاجراءات المتخذة :",null,null,null,null,null,null,null,null,null,null,null,null,null,null,"2020-06-12",null,null,null,null,null,null,null,null,null,null,"الفرنسية ",null,"2م2"]
[null,null,null,null,null,null,null,null,null,null,null,null,null,null,null,null,"2020-06-13",null,null,null,null,null,null,null,null,null,null,"الانجليزية ",null,"3م1"]
[null,null,null,null,null,null,null,null,null,null,null,null,null,null,null,null,"2020-06-14",null,null,null,null,null,null,null,null,null,null,"التربية الاسلامية ",null,"4م1"]
[null,null,null,null,null,null,null,null,null,null,null,null,null,null,null,null,"2020-06-15",null,null,null,null,null,null,null,null,null,null,"التربية المدنية ",null,"4م2"]
[null,"مواظبة موظفي الاستشارة ",null,null,null,null,null,null,null,null,null,null,null,null,null,null,"2020-06-16",null,null,null,null,null,null,null,null,null,null,"التاريخ والجغرافيا "]
[null,"الرقم","الاسم و اللقب","مدة التأخير","السبب",null,"الرقم","الاسم و اللقب",null,"صباحا","مساءا","الملاحظات ",null,null,null,null,"2020-06-17",null,null,null,null,null,null,null,null,null,null,"الرياضيات ",null,"دهكل أحمد"]
[null,1,null,null,null,null,1,null,null,null,null,null,null,null,null,null,"2020-06-18",null,null,null,null,null,null,null,null,null,null,"العلوم /ط",null,"طيفوري محمد"]
[null,2,null,null,null,null,2,null,null,null,null,null,null,null,null,null,"2020-06-19",null,null,null,null,null,null,null,null,null,null,"الفيزياء ",null,"قمقام دربالي"]
[null,3,null,null,null,null,3,null,null,null,null,null,null,null,null,null,"2020-06-20",null,null,null,null,null,null,null,null,null,null,"التربية الفنية "]
[null,4,null,null,null,null,4,null,null,null,null,null,null,null,null,null,"2020-06-21",null,null,null,null,null,null,null,null,null,null,"التربية الرياضية "]
[null,null,null,null,null,null,null,null,null,null,null,null,null,null,null,null,"2020-06-22"]
[null,null,null,null,null,null,null,null,null,null,null,null,null,null,null,null,"2020-06-23"]
[null,"وجبة الاطعــــــــــام ",null,null,null,null,null,null,null,null,null,null,null,null,null,null,"2020-06-24"]
[null,null,null,null,null,null,null,null,null,null,null,null,null,null,null,null,"2020-06-25"]
[null,"وجبــة الاطعام اليوميـــــــة ",null,null,null,null,null,null,null,null,null,null,null,null,null,null,"2020-06-26",null,null,null,null,null,null,null,null,null,null,"مباركة العابد"]
[null,"الوجبـــة",null,null,null,"عدد ن/داخلي",null,"الغائبون ",null,null,"الحاضرون",null,null,null,null,null,"2020-06-27",null,null,null,null,null,null,null,null,null,null,"بوعلام سهلي"]
[null,null,null,null,null,182,null,40,null,null,{"$f":"F32-$H$32","v":142},null,null,null,null,null,"2020-06-28",null,null,null,null,null,null,null,null,null,null,"ام الخير تهامي "]
[null,null,null,null,null,null,null,null,null,null,null,null,null,null,null,null,"2020-06-29",null,null,null,null,null,null,null,null,null,null,"خديجة بدراني "]
[null,null,null,null,null,null,null,null,null,null,null,null,null,null,null,null,"2020-06-30",null,null,null,null,null,null,null,null,null,null,"بوشوشة امحمدي"]
[null,null,null,null,null,null,null,null,null,null,null,null,null,null,null,null,null,null,null,null,null,null,null,null,null,null,null,"يعقوب كواهي "]
[null,"مواظبة التلاميذ ",null,null,null,null,null,null,null,null,null,null,null,null,null,null,null,null,null,null,null,null,null,null,null,null,null,"إبراهيم زريفي "]
[null,null,null,null,null,null,null,null,null,null,null,null,null,null,null,null,null,null,null,null,null,null,null,null,null,null,null,"محمد مشارة "]
[null,null,null,null,null,null,null,null,null,null,null,null,null,null,null,null,null,null,null,null,null,null,null,null,null,null,null,"شريف بدراني "]
[null,"المستوى ",null,"المسجلون","ذكــور","إنــاث","الغائبون","نسبة الغياب %",null,"الحاضرون",null,"نسبة الحاضرين %",null,null,null,null,null,null,null,null,null,null,null,null,null,null,null,"عبد القادر حساني "]
[null,"السنة الاولي متوسط 1",null,22,15,7,0,{"$f":"G40/$D$40","v":0},null,{"$f":"D40-$G$40","v":22},null,{"$f":"J40/$D$40","v":1}]
[null,"السنة الاولي متوسط 2",null,21,12,9,0,{"$f":"G41/$D$41","v":0},null,{"$f":"D41-G41","v":21},null,{"$f":"J41/$D$41","v":1},null,null,null,null,null,null,null,null,null,null,null,null,null,null,null,"قدور بومقواس"]
[null,"السنة الاولي متوسط 3",null,23,11,12,0,{"$f":"G42/$D$41","v":0},null,23,null,{"$f":"J42/$D$42","v":1},null,null,null,null,null,null,null,null,null,null,null,null,null,null,null,"العربي قرمان "]
[null,"السنة الثانية متوسط 1",null,31,15,16,0,0,null,31,null,{"$f":"J43/$D$43","v":1},null,null,null,null,null,null,null,null,null,null,null,null,null,null,null,"عبد القادر طيبي "]
[null,"السنة الثانية متوسط 2",null,33,17,16,0,0,null,33,null,{"$f":"J44/$D$44","v":1},null,null,null,null,null,null,null,null,null,null,null,null,null,null,null,"ميلود داودي "]
[null,"السنة الثالثة متوسط1",null,28,12,16,0,0,null,28,null,{"$f":"J45/$D$45","v":1},null,null,null,null,null,null,null,null,null,null,null,null,null,null,null,"رشيدة حطاب"]
[null,"السنة الثالثة متوسط 2",null,27,9,18,0,0,null,27,null,{"$f":"J46/$D$46","v":1},null,null,null,null,null,null,null,null,null,null,null,null,null,null,null,"مجدوب طلحة "]
[null,"السنة الرابعة متوسط 1",null,{"$f":"E47+F47","v":20},9,11,0,0,null,20,null,{"$f":"J47/$D$47","v":1},null,null,null,null,null,null,null,null,null,null,null,null,null,null,null,"مليود جليد "]
[null,"السنة الرابعة متوسط 2",null,{"$f":"E48+F48","v":23},11,12,0,0,null,23,null,{"$f":"J48/$D$48","v":1},null,null,null,null,null,null,null,null,null,null,null,null,null,null,null,"البشير قرمان "]
[null,"ملاحظــــات :"]
[null,null,null,null,null,null,null,null,null,null,null,null,null,null,null,null,null,null,null,null,null,null,null,null,null,null,null,"2019/2020"]
[null,null,null,null,null,null,null,null,null,null,null,null,null,null,null,null,null,null,null,null,null,null,null,null,null,null,null,"2020/2021"]
[null,null,null,null,null,null,null,null,null,null,null,null,null,null,null,null,null,null,null,null,null,null,null,null,null,null,null,"2021/2022"]
[]
[null,"منجز من طرف المكلف بالاستشارة ",null,null,"بتاريخ ",{"$f":"NOW()","v":"2020-06-18T19:22:29.630"}]
[null,null,null,null,null,null,null,null,null,"مدير المؤسسة "]

{"sheet":"17","index":17,"n_rows":55,"n_cols":30,"rows_kept":55,"cut":false,"hidden":false,"merged":[[54,9,54,10],[47,1,47,2],[47,7,47,8],[47,9,47,10],[47,11,47,12],[48,1,51,12],[53,1,53,3],[53,5,53,7],[45,1,45,2],[45,7,45,8],[45,9,45,10],[45,11,45,12],[46,7,46,8],[46,9,46,10],[46,11,46,12],[43,1,43,2],[43,7,43,8],[43,9,43,10],[43,11,43,12],[44,1,44,2],[44,7,44,8],[44,9,44,10],[44,11,44,12],[41,1,41,2],[41,7,41,8],[41,9,41,10],[41,11,41,12],[42,1,42,2],[42,7,42,8],[42,9,42,10],[42,11,42,12],[39,1,39,2],[39,7,39,8],[39,9,39,10],[39,11,39,12],[40,1,40,2],[40,7,40,8],[40,9,40,10],[40,11,40,12],[35,1,36,3],[38,1,38,2],[38,7,38,8],[38,9,38,10],[38,11,38,12],[29,1,29,12],[30,1,33,4],[30,5,30,6],[30,7,30,9],[30,10,30,12],[31,5,33,6],[31,7,33,9],[31,10,33,12],[24,7,24,8],[24,11,24,12],[27,1,28,3],[28,7,28,8],[28,11,28,12],[21,7,21,8],[21,11,21,12],[22,7,22,8],[22,11,22,12],[23,7,23,8],[23,11,23,12],[7,1,7,7],[7,9,7,12],[15,1,17,12],[19,1,19,3],[20,7,20,8],[20,11,20,12],[4,4,4,8],[4,9,4,12],[6,1,6,3],[6,9,6,10],[3,1,3,4],[0,4,0,9],[1,4,1,9],[2,1,2,4],[2,9,2,10],[2,11,2,12]]}
[null,null,null,null,{"$f":"HYPERLINK(\"#'Main Screen'!a1\",\"الجمهورية الجزائرية الديمقراطية الشعبية \")","v":"الجمهورية الجزائرية الديمقراطية الشعبية "}]
[null,null,null,null,"وزارة التربية الوطنيـــة "]
[null,"مديرية التربية لولايـــة الاغواط ",null,null,null,null,null,null,null,"السنة الدراسية ",null,"2019/2020"]
[null,"متوسطة سماعيني معمر تاجرونة "]
[null,null,null,null,"التقرير اليومي للاستشارة ",null,null,null,null,"2020-06-26",null,null,null,null,null,null,"2020-06-01"]
[null,null,null,null,null,null,null,null,null,null,null,null,null,null,null,null,"2020-06-02"]
[null,"مواظبـــة الاساتذة ",null,null,null,null,null,null,null,null,null,null,null,null,null,null,"2020-06-03"]
[null,"الفترة الصباحيـــــــــــة ",null,null,null,null,null,null,null,"الفترة المسائيــــة ",null,null,null,null,null,null,"2020-06-04"]
[null,"الرقم","الاسم و اللقب","المادة ","9--8","10--9","11--10","12--11",null,"15--14","16--15","17--16","الملاحظات",null,null,null,"2020-06-05"]
[null,1,"قدور بومقواس",null,null,null,null,null,null,"1م3","1م2","2م1",null,null,null,null,"2020-06-06"]
[null,2,"العربي قرمان ",null,null,null,null,null,null,null,null,null,null,null,null,null,"2020-06-07"]
[null,3,null,null,null,null,null,null,null,null,null,null,null,null,null,null,"2020-06-08",null,null,null,null,null,null,null,null,null,null,null,null,"1م1"]
[null,4,null,null,null,null,null,null,null,null,null,"2م2",null,null,null,null,"2020-06-09",null,null,null,null,null,null,null,null,null,null,null,null,"1م2"]
[null,5,null,null,null,null,null,null,null,null,null,null,null,null,null,null,"2020-06-10",null,null,null,null,null,null,null,null,null,null,null,null,"1م3"]
[null,6,null,null,null,null,null,null,null,null,null,null,null,null,null,null,"2020-06-11",null,null,null,null,null,null,null,null,null,null,"العربية ",null,"2م1"]
[null,"الاجراءات المتخذة :",null,null,null,null,null,null,null,null,null,null,null,null,null,null,"2020-06-12",null,null,null,null,null,null,null,null,null,null,"الفرنسية ",null,"2م2"]
[null,null,null,null,null,null,null,null,null,null,null,null,null,null,null,null,"2020-06-13",null,null,null,null,null,null,null,null,null,null,"الانجليزية ",null,"3م1"]
[null,null,null,null,null,null,null,null,null,null,null,null,null,null,null,null,"2020-06-14",null,null,null,null,null,null,null,null,null,null,"التربية الاسلامية ",null,"4م1"]
[null,null,null,null,null,null,null,null,null,null,null,null,null,null,null,null,"2020-06-15",null,null,null,null,null,null,null,null,null,null,"التربية المدنية ",null,"4م2"]
[null,"مواظبة موظفي الاستشارة ",null,null,null,null,null,null,null,null,null,null,null,null,null,null,"2020-06-16",null,null,null,null,null,null,null,null,null,null,"التاريخ والجغرافيا "]
[null,"الرقم","الاسم و اللقب","مدة التأخير","السبب",null,"الرقم","الاسم و اللقب",null,"صباحا","مساءا","الملاحظات ",null,null,null,null,"2020-06-17",null,null,null,null,null,null,null,null,null,null,"الرياضيات ",null,"دهكل أحمد"]
[null,1,null,null,null,null,1,null,null,null,null,null,null,null,null,null,"2020-06-18",null,null,null,null,null,null,null,null,null,null,"العلوم /ط",null,"طيفوري محمد"]
[null,2,null,null,null,null,2,null,null,null,null,null,null,null,null,null,"2020-06-19",null,null,null,null,null,null,null,null,null,null,"الفيزياء ",null,"قمقام دربالي"]
[null,3,null,null,null,null,3,null,null,null,null,null,null,null,null,null,"2020-06-20",null,null,null,null,null,null,null,null,null,null,"التربية الفنية "]
[null,4,null,null,null,null,4,null,null,null,null,null,null,null,null,null,"2020-06-21",null,null,null,null,null,null,null,null,null,null,"التربية الرياضية "]
[null,null,null,null,null,null,null,null,null,null,null,null,null,null,null,null,"2020-06-22"]
[null,null,null,null,null,null,null,null,null,null,null,null,null,null,null,null,"2020-06-23"]
[null,"وجبة الاطعــــــــــام ",null,null,null,null,null,null,null,null,null,null,null,null,null,null,"2020-06-24"]
[null,null,null,null,null,null,null,null,null,null,null,null,null,null,null,null,"2020-06-25"]
[null,"وجبــة الاطعام اليوميـــــــة ",null,null,null,null,null,null,null,null,null,null,null,null,null,null,"2020-06-26",null,null,null,null,null,null,null,null,null,null,"مباركة العابد"]
[null,"الوجبـــة",null,null,null,"عدد ن/داخلي",null,"الغائبون ",null,null,"الحاضرون",null,null,null,null,null,"2020-06-27",null,null,null,null,null,null,null,null,null,null,"بوعلام سهلي"]
[null,null,null,null,null,182,null,40,null,null,{"$f":"F32-$H$32","v":142},null,null,null,null,null,"2020-06-28",null,null,null,null,null,null,null,null,null,null,"ام الخير تهامي "]
[null,null,null,null,null,null,null,null,null,null,null,null,null,null,null,null,"2020-06-29",null,null,null,null,null,null,null,null,null,null,"خديجة بدراني "]
[null,null,null,null,null,null,null,null,null,null,null,null,null,null,null,null,"2020-06-30",null,null,null,null,null,null,null,null,null,null,"بوشوشة امحمدي"]
[null,null,null,null,null,null,null,null,null,null,null,null,null,null,null,null,null,null,null,null,null,null,null,null,null,null,null,"يعقوب كواهي "]
[null,"مواظبة التلاميذ ",null,null,null,null,null,null,null,null,null,null,null,null,null,null,null,null,null,null,null,null,null,null,null,null,null,"إبراهيم زريفي "]
[null,null,null,null,null,null,null,null,null,null,null,null,null,null,null,null,null,null,null,null,null,null,null,null,null,null,null,"محمد مشارة "]
[null,null,null,null,null,null,null,null,null,null,null,null,null,null,null,null,null,null,null,null,null,null,null,null,null,null,null,"شريف بدراني "]
[null,"المستوى ",null,"المسجلون","ذكــور","إنــاث","الغائبون","نسبة الغياب %",null,"الحاضرون",null,"نسبة الحاضرين %",null,null,null,null,null,null,null,null,null,null,null,null,null,null,null,"عبد القادر حساني "]
[null,"السنة الاولي متوسط 1",null,22,15,7,0,{"$f":"G40/$D$40","v":0},null,{"$f":"D40-$G$40","v":22},null,{"$f":"J40/$D$40","v":1}]
[null,"السنة الاولي متوسط 2",null,21,12,9,0,{"$f":"G41/$D$41","v":0},null,{"$f":"D41-G41","v":21},null,{"$f":"J41/$D$41","v":1},null,null,null,null,null,null,null,null,null,null,null,null,null,null,null,"قدور بومقواس"]
[null,"السنة الاولي متوسط 3",null,23,11,12,0,{"$f":"G42/$D$41","v":0},null,23,null,{"$f":"J42/$D$42","v":1},null,null,null,null,null,null,null,null,null,null,null,null,null,null,null,"العربي قرمان "]
[null,"السنة الثانية متوسط 1",null,31,15,16,0,0,null,31,null,{"$f":"J43/$D$43","v":1},null,null,null,null,null,null,null,null,null,null,null,null,null,null,null,"عبد القادر طيبي "]
[null,"السنة الثانية متوسط 2",null,33,17,16,0,0,null,33,null,{"$f":"J44/$D$44","v":1},null,null,null,null,null,null,null,null,null,null,null,null,null,null,null,"ميلود داودي "]
[null,"السنة الثالثة متوسط1",null,28,12,16,0,0,null,28,null,{"$f":"J45/$D$45","v":1},null,null,null,null,null,null,null,null,null,null,null,null,null,null,null,"رشيدة حطاب"]
[null,"السنة الثالثة متوسط 2",null,27,9,18,0,0,null,27,null,{"$f":"J46/$D$46","v":1},null,null,null,null,null,null,null,null,null,null,null,null,null,null,null,"مجدوب طلحة "]
[null,"السنة الرابعة متوسط 1",null,{"$f":"E47+F47","v":20},9,11,0,0,null,20,null,{"$f":"J47/$D$47","v":1},null,null,null,null,null,null,null,null,null,null,null,null,null,null,null,"مليود جليد "]
[null,"السنة الرابعة متوسط 2",null,{"$f":"E48+F48","v":23},11,12,0,0,null,23,null,{"$f":"J48/$D$48","v":1},null,null,null,null,null,null,null,null,null,null,null,null,null,null,null,"البشير قرمان "]
[null,"ملاحظــــات :"]
[null,null,null,null,null,null,null,null,null,null,null,null,null,null,null,null,null,null,null,null,null,null,null,null,null,null,null,"2019/2020"]
[null,null,null,null,null,null,null,null,null,null,null,null,null,null,null,null,null,null,null,null,null,null,null,null,null,null,null,"2020/2021"]
[null,null,null,null,null,null,null,null,null,null,null,null,null,null,null,null,null,null,null,null,null,null,null,null,null,null,null,"2021/2022"]
[]
[null,"منجز من طرف المكلف بالاستشارة ",null,null,"بتاريخ ",{"$f":"NOW()","v":"2020-06-18T19:22:29.630"}]
[null,null,null,null,null,null,null,null,null,"مدير المؤسسة "]

{"sheet":"18","index":18,"n_rows":55,"n_cols":30,"rows_kept":55,"cut":false,"hidden":false,"merged":[[54,9,54,10],[47,1,47,2],[47,7,47,8],[47,9,47,10],[47,11,47,12],[48,1,51,12],[53,1,53,3],[53,5,53,7],[45,1,45,2],[45,7,45,8],[45,9,45,10],[45,11,45,12],[46,7,46,8],[46,9,46,10],[46,11,46,12],[43,1,43,2],[43,7,43,8],[43,9,43,10],[43,11,43,12],[44,1,44,2],[44,7,44,8],[44,9,44,10],[44,11,44,12],[41,1,41,2],[41,7,41,8],[41,9,41,10],[41,11,41,12],[42,1,42,2],[42,7,42,8],[42,9,42,10],[42,11,42,12],[39,1,39,2],[39,7,39,8],[39,9,39,10],[39,11,39,12],[40,1,40,2],[40,7,40,8],[40,9,40,10],[40,11,40,12],[35,1,36,3],[38,1,38,2],[38,7,38,8],[38,9,38,10],[38,11,38,12],[29,1,29,12],[30,1,33,4],[30,5,30,6],[30,7,30,9],[30,10,30,12],[31,5,33,6],[31,7,33,9],[31,10,33,12],[24,7,24,8],[24,11,24,12],[27,1,28,3],[28,7,28,8],[28,11,28,12],[21,7,21,8],[21,11,21,12],[22,7,22,8],[22,11,22,12],[23,7,23,8],[23,11,23,12],[7,1,7,7],[7,9,7,12],[15,1,17,12],[19,1,19,3],[20,7,20,8],[20,11,20,12],[4,4,4,8],[4,9,4,12],[6,1,6,3],[6,9,6,10],[3,1,3,4],[0,4,0,9],[1,4,1,9],[2,1,2,4],[2,9,2,10],[2,11,2,12]]}
[null,null,null,null,{"$f":"HYPERLINK(\"#'Main Screen'!a1\",\"الجمهورية الجزائرية الديمقراطية الشعبية \")","v":"الجمهورية الجزائرية الديمقراطية الشعبية "}]
[null,null,null,null,"وزارة التربية الوطنيـــة "]
[null,"مديرية التربية لولايـــة الاغواط ",null,null,null,null,null,null,null,"السنة الدراسية ",null,"2019/2020"]
[null,"متوسطة سماعيني معمر تاجرونة "]
[null,null,null,null,"التقرير اليومي للاستشارة ",null,null,null,null,"2020-06-26",null,null,null,null,null,null,"2020-06-01"]
[null,null,null,null,null,null,null,null,null,null,null,null,null,null,null,null,"2020-06-02"]
[null,"مواظبـــة الاساتذة ",null,null,null,null,null,null,null,null,null,null,null,null,null,null,"2020-06-03"]
[null,"الفترة الصباحيـــــــــــة ",null,null,null,null,null,null,null,"الفترة المسائيــــة ",null,null,null,null,null,null,"2020-06-04"]
[null,"الرقم","الاسم و اللقب","المادة ","9--8","10--9","11--10","12--11",null,"15--14","16--15","17--16","الملاحظات",null,null,null,"2020-06-05"]
[null,1,"قدور بومقواس",null,null,null,null,null,null,"1م3","1م2","2م1",null,null,null,null,"2020-06-06"]
[null,2,"العربي قرمان ",null,null,null,null,null,null,null,null,null,null,null,null,null,"2020-06-07"]
[null,3,null,null,null,null,null,null,null,null,null,null,null,null,null,null,"2020-06-08",null,null,null,null,null,null,null,null,null,null,null,null,"1م1"]
[null,4,null,null,null,null,null,null,null,null,null,"2م2",null,null,null,null,"2020-06-09",null,null,null,null,null,null,null,null,null,null,null,null,"1م2"]
[null,5,null,null,null,null,null,null,null,null,null,null,null,null,null,null,"2020-06-10",null,null,null,null,null,null,null,null,null,null,null,null,"1م3"]
[null,6,null,null,null,null,null,null,null,null,null,null,null,null,null,null,"2020-06-11",null,null,null,null,null,null,null,null,null,null,"العربية ",null,"2م1"]
[null,"الاجراءات المتخذة :",null,null,null,null,null,null,null,null,null,null,null,null,null,null,"2020-06-12",null,null,null,null,null,null,null,null,null,null,"الفرنسية ",null,"2م2"]
[null,null,null,null,null,null,null,null,null,null,null,null,null,null,null,null,"2020-06-13",null,null,null,null,null,null,null,null,null,null,"الانجليزية ",null,"3م1"]
[null,null,null,null,null,null,null,null,null,null,null,null,null,null,null,null,"2020-06-14",null,null,null,null,null,null,null,null,null,null,"التربية الاسلامية ",null,"4م1"]
[null,null,null,null,null,null,null,null,null,null,null,null,null,null,null,null,"2020-06-15",null,null,null,null,null,null,null,null,null,null,"التربية المدنية ",null,"4م2"]
[null,"مواظبة موظفي الاستشارة ",null,null,null,null,null,null,null,null,null,null,null,null,null,null,"2020-06-16",null,null,null,null,null,null,null,null,null,null,"التاريخ والجغرافيا "]
[null,"الرقم","الاسم و اللقب","مدة التأخير","السبب",null,"الرقم","الاسم و اللقب",null,"صباحا","مساءا","الملاحظات ",null,null,null,null,"2020-06-17",null,null,null,null,null,null,null,null,null,null,"الرياضيات ",null,"دهكل أحمد"]
[null,1,null,null,null,null,1,null,null,null,null,null,null,null,null,null,"2020-06-18",null,null,null,null,null,null,null,null,null,null,"العلوم /ط",null,"طيفوري محمد"]
[null,2,null,null,null,null,2,null,null,null,null,null,null,null,null,null,"2020-06-19",null,null,null,null,null,null,null,null,null,null,"الفيزياء ",null,"قمقام دربالي"]
[null,3,null,null,null,null,3,null,null,null,null,null,null,null,null,null,"2020-06-20",null,null,null,null,null,null,null,null,null,null,"التربية الفنية "]
[null,4,null,null,null,null,4,null,null,null,null,null,null,null,null,null,"2020-06-21",null,null,null,null,null,null,null,null,null,null,"التربية الرياضية "]
[null,null,null,null,null,null,null,null,null,null,null,null,null,null,null,null,"2020-06-22"]
[null,null,null,null,null,null,null,null,null,null,null,null,null,null,null,null,"2020-06-23"]
[null,"وجبة الاطعــــــــــام ",null,null,null,null,null,null,null,null,null,null,null,null,null,null,"2020-06-24"]
[null,null,null,null,null,null,null,null,null,null,null,null,null,null,null,null,"2020-06-25"]
[null,"وجبــة الاطعام اليوميـــــــة ",null,null,null,null,null,null,null,null,null,null,null,null,null,null,"2020-06-26",null,null,null,null,null,null,null,null,null,null,"مباركة العابد"]
[null,"الوجبـــة",null,null,null,"عدد ن/داخلي",null,"الغائبون ",null,null,"الحاضرون",null,null,null,null,null,"2020-06-27",null,null,null,null,null,null,null,null,null,null,"بوعلام سهلي"]
[null,null,null,null,null,182,null,40,null,null,{"$f":"F32-$H$32","v":142},null,null,null,null,null,"2020-06-28",null,null,null,null,null,null,null,null,null,null,"ام الخير تهامي "]
[null,null,null,null,null,null,null,null,null,null,null,null,null,null,null,null,"2020-06-29",null,null,null,null,null,null,null,null,null,null,"خديجة بدراني "]
[null,null,null,null,null,null,null,null,null,null,null,null,null,null,null,null,"2020-06-30",null,null,null,null,null,null,null,null,null,null,"بوشوشة امحمدي"]
[null,null,null,null,null,null,null,null,null,null,null,null,null,null,null,null,null,null,null,null,null,null,null,null,null,null,null,"يعقوب كواهي "]
[null,"مواظبة التلاميذ ",null,null,null,null,null,null,null,null,null,null,null,null,null,null,null,null,null,null,null,null,null,null,null,null,null,"إبراهيم زريفي "]
[null,null,null,null,null,null,null,null,null,null,null,null,null,null,null,null,null,null,null,null,null,null,null,null,null,null,null,"محمد مشارة "]
[null,null,null,null,null,null,null,null,null,null,null,null,null,null,null,null,null,null,null,null,null,null,null,null,null,null,null,"شريف بدراني "]
[null,"المستوى ",null,"المسجلون","ذكــور","إنــاث","الغائبون","نسبة الغياب %",null,"الحاضرون",null,"نسبة الحاضرين %",null,null,null,null,null,null,null,null,null,null,null,null,null,null,null,"عبد القادر حساني "]
[null,"السنة الاولي متوسط 1",null,22,15,7,0,{"$f":"G40/$D$40","v":0},null,{"$f":"D40-$G$40","v":22},null,{"$f":"J40/$D$40","v":1}]
[null,"السنة الاولي متوسط 2",null,21,12,9,0,{"$f":"G41/$D$41","v":0},null,{"$f":"D41-G41","v":21},null,{"$f":"J41/$D$41","v":1},null,null,null,null,null,null,null,null,null,null,null,null,null,null,null,"قدور بومقواس"]
[null,"السنة الاولي متوسط 3",null,23,11,12,0,{"$f":"G42/$D$41","v":0},null,23,null,{"$f":"J42/$D$42","v":1},null,null,null,null,null,null,null,null,null,null,null,null,null,null,null,"العربي قرمان "]
[null,"السنة الثانية متوسط 1",null,31,15,16,0,0,null,31,null,{"$f":"J43/$D$43","v":1},null,null,null,null,null,null,null,null,null,null,null,null,null,null,null,"عبد القادر طيبي "]
[null,"السنة الثانية متوسط 2",null,33,17,16,0,0,null,33,null,{"$f":"J44/$D$44","v":1},null,null,null,null,null,null,null,null,null,null,null,null,null,null,null,"ميلود داودي "]
[null,"السنة الثالثة متوسط1",null,28,12,16,0,0,null,28,null,{"$f":"J45/$D$45","v":1},null,null,null,null,null,null,null,null,null,null,null,null,null,null,null,"رشيدة حطاب"]
[null,"السنة الثالثة متوسط 2",null,27,9,18,0,0,null,27,null,{"$f":"J46/$D$46","v":1},null,null,null,null,null,null,null,null,null,null,null,null,null,null,null,"مجدوب طلحة "]
[null,"السنة الرابعة متوسط 1",null,{"$f":"E47+F47","v":20},9,11,0,0,null,20,null,{"$f":"J47/$D$47","v":1},null,null,null,null,null,null,null,null,null,null,null,null,null,null,null,"مليود جليد "]
[null,"السنة الرابعة متوسط 2",null,{"$f":"E48+F48","v":23},11,12,0,0,null,23,null,{"$f":"J48/$D$48","v":1},null,null,null,null,null,null,null,null,null,null,null,null,null,null,null,"البشير قرمان "]
[null,"ملاحظــــات :"]
[null,null,null,null,null,null,null,null,null,null,null,null,null,null,null,null,null,null,null,null,null,null,null,null,null,null,null,"2019/2020"]
[null,null,null,null,null,null,null,null,null,null,null,null,null,null,null,null,null,null,null,null,null,null,null,null,null,null,null,"2020/2021"]
[null,null,null,null,null,null,null,null,null,null,null,null,null,null,null,null,null,null,null,null,null,null,null,null,null,null,null,"2021/2022"]
[]
[null,"منجز من طرف المكلف بالاستشارة ",null,null,"بتاريخ ",{"$f":"NOW()","v":"2020-06-18T19:22:29.630"}]
[null,null,null,null,null,null,null,null,null,"مدير المؤسسة "]

{"sheet":"19","index":19,"n_rows":55,"n_cols":30,"rows_kept":55,"cut":false,"hidden":false,"merged":[[54,9,54,10],[47,1,47,2],[47,7,47,8],[47,9,47,10],[47,11,47,12],[48,1,51,12],[53,1,53,3],[53,5,53,7],[45,1,45,2],[45,7,45,8],[45,9,45,10],[45,11,45,12],[46,7,46,8],[46,9,46,10],[46,11,46,12],[43,1,43,2],[43,7,43,8],[43,9,43,10],[43,11,43,12],[44,1,44,2],[44,7,44,8],[44,9,44,10],[44,11,44,12],[41,1,41,2],[41,7,41,8],[41,9,41,10],[41,11,41,12],[42,1,42,2],[42,7,42,8],[42,9,42,10],[42,11,42,12],[39,1,39,2],[39,7,39,8],[39,9,39,10],[39,11,39,12],[40,1,40,2],[40,7,40,8],[40,9,40,10],[40,11,40,12],[35,1,36,3],[38,1,38,2],[38,7,38,8],[38,9,38,10],[38,11,38,12],[29,1,29,12],[30,1,33,4],[30,5,30,6],[30,7,30,9],[30,10,30,12],[31,5,33,6],[31,7,33,9],[31,10,33,12],[24,7,24,8],[24,11,24,12],[27,1,28,3],[28,7,28,8],[28,11,28,12],[21,7,21,8],[21,11,21,12],[22,7,22,8],[22,11,22,12],[23,7,23,8],[23,11,23,12],[7,1,7,7],[7,9,7,12],[15,1,17,12],[19,1,19,3],[20,7,20,8],[20,11,20,12],[4,4,4,8],[4,9,4,12],[6,1,6,3],[6,9,6,10],[3,1,3,4],[0,4,0,9],[1,4,1,9],[2,1,2,4],[2,9,2,10],[2,11,2,12]]}
[null,null,null,null,{"$f":"HYPERLINK(\"#'Main Screen'!a1\",\"الجمهورية الجزائرية الديمقراطية الشعبية \")","v":"الجمهورية الجزائرية الديمقراطية الشعبية "}]
[null,null,null,null,"وزارة التربية الوطنيـــة "]
[null,"مديرية التربية لولايـــة الاغواط ",null,null,null,null,null,null,null,"السنة الدراسية ",null,"2019/2020"]
[null,"متوسطة سماعيني معمر تاجرونة "]
[null,null,null,null,"التقرير اليومي للاستشارة ",null,null,null,null,"2020-06-26",null,null,null,null,null,null,"2020-06-01"]
[null,null,null,null,null,null,null,null,null,null,null,null,null,null,null,null,"2020-06-02"]
[null,"مواظبـــة الاساتذة ",null,null,null,null,null,null,null,null,null,null,null,null,null,null,"2020-06-03"]
[null,"الفترة الصباحيـــــــــــة ",null,null,null,null,null,null,null,"الفترة المسائيــــة ",null,null,null,null,null,null,"2020-06-04"]
[null,"الرقم","الاسم و اللقب","المادة ","9--8","10--9","11--10","12--11",null,"15--14","16--15","17--16","الملاحظات",null,null,null,"2020-06-05"]
[null,1,"قدور بومقواس",null,null,null,null,null,null,"1م3","1م2","2م1",null,null,null,null,"2020-06-06"]
[null,2,"العربي قرمان ",null,null,null,null,null,null,null,null,null,null,null,null,null,"2020-06-07"]
[null,3,null,null,null,null,null,null,null,null,null,null,null,null,null,null,"2020-06-08",null,null,null,null,null,null,null,null,null,null,null,null,"1م1"]
[null,4,null,null,null,null,null,null,null,null,null,"2م2",null,null,null,null,"2020-06-09",null,null,null,null,null,null,null,null,null,null,null,null,"1م2"]
[null,5,null,null,null,null,null,null,null,null,null,null,null,null,null,null,"2020-06-10",null,null,null,null,null,null,null,null,null,null,null,null,"1م3"]
[null,6,null,null,null,null,null,null,null,null,null,null,null,null,null,null,"2020-06-11",null,null,null,null,null,null,null,null,null,null,"العربية ",null,"2م1"]
[null,"الاجراءات المتخذة :",null,null,null,null,null,null,null,null,null,null,null,null,null,null,"2020-06-12",null,null,null,null,null,null,null,null,null,null,"الفرنسية ",null,"2م2"]
[null,null,null,null,null,null,null,null,null,null,null,null,null,null,null,null,"2020-06-13",null,null,null,null,null,null,null,null,null,null,"الانجليزية ",null,"3م1"]
[null,null,null,null,null,null,null,null,null,null,null,null,null,null,null,null,"2020-06-14",null,null,null,null,null,null,null,null,null,null,"التربية الاسلامية ",null,"4م1"]
[null,null,null,null,null,null,null,null,null,null,null,null,null,null,null,null,"2020-06-15",null,null,null,null,null,null,null,null,null,null,"التربية المدنية ",null,"4م2"]
[null,"مواظبة موظفي الاستشارة ",null,null,null,null,null,null,null,null,null,null,null,null,null,null,"2020-06-16",null,null,null,null,null,null,null,null,null,null,"التاريخ والجغرافيا "]
[null,"الرقم","الاسم و اللقب","مدة التأخير","السبب",null,"الرقم","الاسم و اللقب",null,"صباحا","مساءا","الملاحظات ",null,null,null,null,"2020-06-17",null,null,null,null,null,null,null,null,null,null,"الرياضيات ",null,"دهكل أحمد"]
[null,1,null,null,null,null,1,null,null,null,null,null,null,null,null,null,"2020-06-18",null,null,null,null,null,null,null,null,null,null,"العلوم /ط",null,"طيفوري محمد"]
[null,2,null,null,null,null,2,null,null,null,null,null,null,null,null,null,"2020-06-19",null,null,null,null,null,null,null,null,null,null,"الفيزياء ",null,"قمقام دربالي"]
[null,3,null,null,null,null,3,null,null,null,null,null,null,null,null,null,"2020-06-20",null,null,null,null,null,null,null,null,null,null,"التربية الفنية "]
[null,4,null,null,null,null,4,null,null,null,null,null,null,null,null,null,"2020-06-21",null,null,null,null,null,null,null,null,null,null,"التربية الرياضية "]
[null,null,null,null,null,null,null,null,null,null,null,null,null,null,null,null,"2020-06-22"]
[null,null,null,null,null,null,null,null,null,null,null,null,null,null,null,null,"2020-06-23"]
[null,"وجبة الاطعــــــــــام ",null,null,null,null,null,null,null,null,null,null,null,null,null,null,"2020-06-24"]
[null,null,null,null,null,null,null,null,null,null,null,null,null,null,null,null,"2020-06-25"]
[null,"وجبــة الاطعام اليوميـــــــة ",null,null,null,null,null,null,null,null,null,null,null,null,null,null,"2020-06-26",null,null,null,null,null,null,null,null,null,null,"مباركة العابد"]
[null,"الوجبـــة",null,null,null,"عدد ن/داخلي",null,"الغائبون ",null,null,"الحاضرون",null,null,null,null,null,"2020-06-27",null,null,null,null,null,null,null,null,null,null,"بوعلام سهلي"]
[null,null,null,null,null,182,null,40,null,null,{"$f":"F32-$H$32","v":142},null,null,null,null,null,"2020-06-28",null,null,null,null,null,null,null,null,null,null,"ام الخير تهامي "]
[null,null,null,null,null,null,null,null,null,null,null,null,null,null,null,null,"2020-06-29",null,null,null,null,null,null,null,null,null,null,"خديجة بدراني "]
[null,null,null,null,null,null,null,null,null,null,null,null,null,null,null,null,"2020-06-30",null,null,null,null,null,null,null,null,null,null,"بوشوشة امحمدي"]
[null,null,null,null,null,null,null,null,null,null,null,null,null,null,null,null,null,null,null,null,null,null,null,null,null,null,null,"يعقوب كواهي "]
[null,"مواظبة التلاميذ ",null,null,null,null,null,null,null,null,null,null,null,null,null,null,null,null,null,null,null,null,null,null,null,null,null,"إبراهيم زريفي "]
[null,null,null,null,null,null,null,null,null,null,null,null,null,null,null,null,null,null,null,null,null,null,null,null,null,null,null,"محمد مشارة "]
[null,null,null,null,null,null,null,null,null,null,null,null,null,null,null,null,null,null,null,null,null,null,null,null,null,null,null,"شريف بدراني "]
[null,"المستوى ",null,"المسجلون","ذكــور","إنــاث","الغائبون","نسبة الغياب %",null,"الحاضرون",null,"نسبة الحاضرين %",null,null,null,null,null,null,null,null,null,null,null,null,null,null,null,"عبد القادر حساني "]
[null,"السنة الاولي متوسط 1",null,22,15,7,0,{"$f":"G40/$D$40","v":0},null,{"$f":"D40-$G$40","v":22},null,{"$f":"J40/$D$40","v":1}]
[null,"السنة الاولي متوسط 2",null,21,12,9,0,{"$f":"G41/$D$41","v":0},null,{"$f":"D41-G41","v":21},null,{"$f":"J41/$D$41","v":1},null,null,null,null,null,null,null,null,null,null,null,null,null,null,null,"قدور بومقواس"]
[null,"السنة الاولي متوسط 3",null,23,11,12,0,{"$f":"G42/$D$41","v":0},null,23,null,{"$f":"J42/$D$42","v":1},null,null,null,null,null,null,null,null,null,null,null,null,null,null,null,"العربي قرمان "]
[null,"السنة الثانية متوسط 1",null,31,15,16,0,0,null,31,null,{"$f":"J43/$D$43","v":1},null,null,null,null,null,null,null,null,null,null,null,null,null,null,null,"عبد القادر طيبي "]
[null,"السنة الثانية متوسط 2",null,33,17,16,0,0,null,33,null,{"$f":"J44/$D$44","v":1},null,null,null,null,null,null,null,null,null,null,null,null,null,null,null,"ميلود داودي "]
[null,"السنة الثالثة متوسط1",null,28,12,16,0,0,null,28,null,{"$f":"J45/$D$45","v":1},null,null,null,null,null,null,null,null,null,null,null,null,null,null,null,"رشيدة حطاب"]
[null,"السنة الثالثة متوسط 2",null,27,9,18,0,0,null,27,null,{"$f":"J46/$D$46","v":1},null,null,null,null,null,null,null,null,null,null,null,null,null,null,null,"مجدوب طلحة "]
[null,"السنة الرابعة متوسط 1",null,{"$f":"E47+F47","v":20},9,11,0,0,null,20,null,{"$f":"J47/$D$47","v":1},null,null,null,null,null,null,null,null,null,null,null,null,null,null,null,"مليود جليد "]
[null,"السنة الرابعة متوسط 2",null,{"$f":"E48+F48","v":23},11,12,0,0,null,23,null,{"$f":"J48/$D$48","v":1},null,null,null,null,null,null,null,null,null,null,null,null,null,null,null,"البشير قرمان "]
[null,"ملاحظــــات :"]
[null,null,null,null,null,null,null,null,null,null,null,null,null,null,null,null,null,null,null,null,null,null,null,null,null,null,null,"2019/2020"]
[null,null,null,null,null,null,null,null,null,null,null,null,null,null,null,null,null,null,null,null,null,null,null,null,null,null,null,"2020/2021"]
[null,null,null,null,null,null,null,null,null,null,null,null,null,null,null,null,null,null,null,null,null,null,null,null,null,null,null,"2021/2022"]
[]
[null,"منجز من طرف المكلف بالاستشارة ",null,null,"بتاريخ ",{"$f":"NOW()","v":"2020-06-18T19:22:29.630"}]
[null,null,null,null,null,null,null,null,null,"مدير المؤسسة "]

{"sheet":"20","index":20,"n_rows":55,"n_cols":30,"rows_kept":55,"cut":false,"hidden":false,"merged":[[54,9,54,10],[47,1,47,2],[47,7,47,8],[47,9,47,10],[47,11,47,12],[48,1,51,12],[53,1,53,3],[53,5,53,7],[45,1,45,2],[45,7,45,8],[45,9,45,10],[45,11,45,12],[46,7,46,8],[46,9,46,10],[46,11,46,12],[43,1,43,2],[43,7,43,8],[43,9,43,10],[43,11,43,12],[44,1,44,2],[44,7,44,8],[44,9,44,10],[44,11,44,12],[41,1,41,2],[41,7,41,8],[41,9,41,10],[41,11,41,12],[42,1,42,2],[42,7,42,8],[42,9,42,10],[42,11,42,12],[39,1,39,2],[39,7,39,8],[39,9,39,10],[39,11,39,12],[40,1,40,2],[40,7,40,8],[40,9,40,10],[40,11,40,12],[35,1,36,3],[38,1,38,2],[38,7,38,8],[38,9,38,10],[38,11,38,12],[29,1,29,12],[30,1,33,4],[30,5,30,6],[30,7,30,9],[30,10,30,12],[31,5,33,6],[31,7,33,9],[31,10,33,12],[24,7,24,8],[24,11,24,12],[27,1,28,3],[28,7,28,8],[28,11,28,12],[21,7,21,8],[21,11,21,12],[22,7,22,8],[22,11,22,12],[23,7,23,8],[23,11,23,12],[7,1,7,7],[7,9,7,12],[15,1,17,12],[19,1,19,3],[20,7,20,8],[20,11,20,12],[4,4,4,8],[4,9,4,12],[6,1,6,3],[6,9,6,10],[3,1,3,4],[0,4,0,9],[1,4,1,9],[2,1,2,4],[2,9,2,10],[2,11,2,12]]}
[null,null,null,null,{"$f":"HYPERLINK(\"#'Main Screen'!a1\",\"الجمهورية الجزائرية الديمقراطية الشعبية \")","v":"الجمهورية الجزائرية الديمقراطية الشعبية "}]
[null,null,null,null,"وزارة التربية الوطنيـــة "]
[null,"مديرية التربية لولايـــة الاغواط ",null,null,null,null,null,null,null,"السنة الدراسية ",null,"2019/2020"]
[null,"متوسطة سماعيني معمر تاجرونة "]
[null,null,null,null,"التقرير اليومي للاستشارة ",null,null,null,null,"2020-06-26",null,null,null,null,null,null,"2020-06-01"]
[null,null,null,null,null,null,null,null,null,null,null,null,null,null,null,null,"2020-06-02"]
[null,"مواظبـــة الاساتذة ",null,null,null,null,null,null,null,null,null,null,null,null,null,null,"2020-06-03"]
[null,"الفترة الصباحيـــــــــــة ",null,null,null,null,null,null,null,"الفترة المسائيــــة ",null,null,null,null,null,null,"2020-06-04"]
[null,"الرقم","الاسم و اللقب","المادة ","9--8","10--9","11--10","12--11",null,"15--14","16--15","17--16","الملاحظات",null,null,null,"2020-06-05"]
[null,1,"قدور بومقواس",null,null,null,null,null,null,"1م3","1م2","2م1",null,null,null,null,"2020-06-06"]
[null,2,"العربي قرمان ",null,null,null,null,null,null,null,null,null,null,null,null,null,"2020-06-07"]
[null,3,null,null,null,null,null,null,null,null,null,null,null,null,null,null,"2020-06-08",null,null,null,null,null,null,null,null,null,null,null,null,"1م1"]
[null,4,null,null,null,null,null,null,null,null,null,"2م2",null,null,null,null,"2020-06-09",null,null,null,null,null,null,null,null,null,null,null,null,"1م2"]
[null,5,null,null,null,null,null,null,null,null,null,null,null,null,null,null,"2020-06-10",null,null,null,null,null,null,null,null,null,null,null,null,"1م3"]
[null,6,null,null,null,null,null,null,null,null,null,null,null,null,null,null,"2020-06-11",null,null,null,null,null,null,null,null,null,null,"العربية ",null,"2م1"]
[null,"الاجراءات المتخذة :",null,null,null,null,null,null,null,null,null,null,null,null,null,null,"2020-06-12",null,null,null,null,null,null,null,null,null,null,"الفرنسية ",null,"2م2"]
[null,null,null,null,null,null,null,null,null,null,null,null,null,null,null,null,"2020-06-13",null,null,null,null,null,null,null,null,null,null,"الانجليزية ",null,"3م1"]
[null,null,null,null,null,null,null,null,null,null,null,null,null,null,null,null,"2020-06-14",null,null,null,null,null,null,null,null,null,null,"التربية الاسلامية ",null,"4م1"]
[null,null,null,null,null,null,null,null,null,null,null,null,null,null,null,null,"2020-06-15",null,null,null,null,null,null,null,null,null,null,"التربية المدنية ",null,"4م2"]
[null,"مواظبة موظفي الاستشارة ",null,null,null,null,null,null,null,null,null,null,null,null,null,null,"2020-06-16",null,null,null,null,null,null,null,null,null,null,"التاريخ والجغرافيا "]
[null,"الرقم","الاسم و اللقب","مدة التأخير","السبب",null,"الرقم","الاسم و اللقب",null,"صباحا","مساءا","الملاحظات ",null,null,null,null,"2020-06-17",null,null,null,null,null,null,null,null,null,null,"الرياضيات ",null,"دهكل أحمد"]
[null,1,null,null,null,null,1,null,null,null,null,null,null,null,null,null,"2020-06-18",null,null,null,null,null,null,null,null,null,null,"العلوم /ط",null,"طيفوري محمد"]
[null,2,null,null,null,null,2,null,null,null,null,null,null,null,null,null,"2020-06-19",null,null,null,null,null,null,null,null,null,null,"الفيزياء ",null,"قمقام دربالي"]
[null,3,null,null,null,null,3,null,null,null,null,null,null,null,null,null,"2020-06-20",null,null,null,null,null,null,null,null,null,null,"التربية الفنية "]
[null,4,null,null,null,null,4,null,null,null,null,null,null,null,null,null,"2020-06-21",null,null,null,null,null,null,null,null,null,null,"التربية الرياضية "]
[null,null,null,null,null,null,null,null,null,null,null,null,null,null,null,null,"2020-06-22"]
[null,null,null,null,null,null,null,null,null,null,null,null,null,null,null,null,"2020-06-23"]
[null,"وجبة الاطعــــــــــام ",null,null,null,null,null,null,null,null,null,null,null,null,null,null,"2020-06-24"]
[null,null,null,null,null,null,null,null,null,null,null,null,null,null,null,null,"2020-06-25"]
[null,"وجبــة الاطعام اليوميـــــــة ",null,null,null,null,null,null,null,null,null,null,null,null,null,null,"2020-06-26",null,null,null,null,null,null,null,null,null,null,"مباركة العابد"]
[null,"الوجبـــة",null,null,null,"عدد ن/داخلي",null,"الغائبون ",null,null,"الحاضرون",null,null,null,null,null,"2020-06-27",null,null,null,null,null,null,null,null,null,null,"بوعلام سهلي"]
[null,null,null,null,null,182,null,40,null,null,{"$f":"F32-$H$32","v":142},null,null,null,null,null,"2020-06-28",null,null,null,null,null,null,null,null,null,null,"ام الخير تهامي "]
[null,null,null,null,null,null,null,null,null,null,null,null,null,null,null,null,"2020-06-29",null,null,null,null,null,null,null,null,null,null,"خديجة بدراني "]
[null,null,null,null,null,null,null,null,null,null,null,null,null,null,null,null,"2020-06-30",null,null,null,null,null,null,null,null,null,null,"بوشوشة امحمدي"]
[null,null,null,null,null,null,null,null,null,null,null,null,null,null,null,null,null,null,null,null,null,null,null,null,null,null,null,"يعقوب كواهي "]
[null,"مواظبة التلاميذ ",null,null,null,null,null,null,null,null,null,null,null,null,null,null,null,null,null,null,null,null,null,null,null,null,null,"إبراهيم زريفي "]
[null,null,null,null,null,null,null,null,null,null,null,null,null,null,null,null,null,null,null,null,null,null,null,null,null,null,null,"محمد مشارة "]
[null,null,null,null,null,null,null,null,null,null,null,null,null,null,null,null,null,null,null,null,null,null,null,null,null,null,null,"شريف بدراني "]
[null,"المستوى ",null,"المسجلون","ذكــور","إنــاث","الغائبون","نسبة الغياب %",null,"الحاضرون",null,"نسبة الحاضرين %",null,null,null,null,null,null,null,null,null,null,null,null,null,null,null,"عبد القادر حساني "]
[null,"السنة الاولي متوسط 1",null,22,15,7,0,{"$f":"G40/$D$40","v":0},null,{"$f":"D40-$G$40","v":22},null,{"$f":"J40/$D$40","v":1}]
[null,"السنة الاولي متوسط 2",null,21,12,9,0,{"$f":"G41/$D$41","v":0},null,{"$f":"D41-G41","v":21},null,{"$f":"J41/$D$41","v":1},null,null,null,null,null,null,null,null,null,null,null,null,null,null,null,"قدور بومقواس"]
[null,"السنة الاولي متوسط 3",null,23,11,12,0,{"$f":"G42/$D$41","v":0},null,23,null,{"$f":"J42/$D$42","v":1},null,null,null,null,null,null,null,null,null,null,null,null,null,null,null,"العربي قرمان "]
[null,"السنة الثانية متوسط 1",null,31,15,16,0,0,null,31,null,{"$f":"J43/$D$43","v":1},null,null,null,null,null,null,null,null,null,null,null,null,null,null,null,"عبد القادر طيبي "]
[null,"السنة الثانية متوسط 2",null,33,17,16,0,0,null,33,null,{"$f":"J44/$D$44","v":1},null,null,null,null,null,null,null,null,null,null,null,null,null,null,null,"ميلود داودي "]
[null,"السنة الثالثة متوسط1",null,28,12,16,0,0,null,28,null,{"$f":"J45/$D$45","v":1},null,null,null,null,null,null,null,null,null,null,null,null,null,null,null,"رشيدة حطاب"]
[null,"السنة الثالثة متوسط 2",null,27,9,18,0,0,null,27,null,{"$f":"J46/$D$46","v":1},null,null,null,null,null,null,null,null,null,null,null,null,null,null,null,"مجدوب طلحة "]
[null,"السنة الرابعة متوسط 1",null,{"$f":"E47+F47","v":20},9,11,0,0,null,20,null,{"$f":"J47/$D$47","v":1},null,null,null,null,null,null,null,null,null,null,null,null,null,null,null,"مليود جليد "]
[null,"السنة الرابعة متوسط 2",null,{"$f":"E48+F48","v":23},11,12,0,0,null,23,null,{"$f":"J48/$D$48","v":1},null,null,null,null,null,null,null,null,null,null,null,null,null,null,null,"البشير قرمان "]
[null,"ملاحظــــات :"]
[null,null,null,null,null,null,null,null,null,null,null,null,null,null,null,null,null,null,null,null,null,null,null,null,null,null,null,"2019/2020"]
[null,null,null,null,null,null,null,null,null,null,null,null,null,null,null,null,null,null,null,null,null,null,null,null,null,null,null,"2020/2021"]
[null,null,null,null,null,null,null,null,null,null,null,null,null,null,null,null,null,null,null,null,null,null,null,null,null,null,null,"2021/2022"]
[]
[null,"منجز من طرف المكلف بالاستشارة ",null,null,"بتاريخ ",{"$f":"NOW()","v":"2020-06-18T19:22:29.630"}]
[null,null,null,null,null,null,null,null,null,"مدير المؤسسة "]

{"sheet":"21","index":21,"n_rows":55,"n_cols":30,"rows_kept":55,"cut":false,"hidden":false,"merged":[[54,9,54,10],[47,1,47,2],[47,7,47,8],[47,9,47,10],[47,11,47,12],[48,1,51,12],[53,1,53,3],[53,5,53,7],[45,1,45,2],[45,7,45,8],[45,9,45,10],[45,11,45,12],[46,7,46,8],[46,9,46,10],[46,11,46,12],[43,1,43,2],[43,7,43,8],[43,9,43,10],[43,11,43,12],[44,1,44,2],[44,7,44,8],[44,9,44,10],[44,11,44,12],[41,1,41,2],[41,7,41,8],[41,9,41,10],[41,11,41,12],[42,1,42,2],[42,7,42,8],[42,9,42,10],[42,11,42,12],[39,1,39,2],[39,7,39,8],[39,9,39,10],[39,11,39,12],[40,1,40,2],[40,7,40,8],[40,9,40,10],[40,11,40,12],[35,1,36,3],[38,1,38,2],[38,7,38,8],[38,9,38,10],[38,11,38,12],[29,1,29,12],[30,1,33,4],[30,5,30,6],[30,7,30,9],[30,10,30,12],[31,5,33,6],[31,7,33,9],[31,10,33,12],[24,7,24,8],[24,11,24,12],[27,1,28,3],[28,7,28,8],[28,11,28,12],[21,7,21,8],[21,11,21,12],[22,7,22,8],[22,11,22,12],[23,7,23,8],[23,11,23,12],[7,1,7,7],[7,9,7,12],[15,1,17,12],[19,1,19,3],[20,7,20,8],[20,11,20,12],[4,4,4,8],[4,9,4,12],[6,1,6,3],[6,9,6,10],[3,1,3,4],[0,4,0,9],[1,4,1,9],[2,1,2,4],[2,9,2,10],[2,11,2,12]]}
[null,null,null,null,{"$f":"HYPERLINK(\"#'Main Screen'!a1\",\"الجمهورية الجزائرية الديمقراطية الشعبية \")","v":"الجمهورية الجزائرية الديمقراطية الشعبية "}]
[null,null,null,null,"وزارة التربية الوطنيـــة "]
[null,"مديرية التربية لولايـــة الاغواط ",null,null,null,null,null,null,null,"السنة الدراسية ",null,"2019/2020"]
[null,"متوسطة سماعيني معمر تاجرونة "]
[null,null,null,null,"التقرير اليومي للاستشارة ",null,null,null,null,"2020-06-26",null,null,null,null,null,null,"2020-06-01"]
[null,null,null,null,null,null,null,null,null,null,null,null,null,null,null,null,"2020-06-02"]
[null,"مواظبـــة الاساتذة ",null,null,null,null,null,null,null,null,null,null,null,null,null,null,"2020-06-03"]
[null,"الفترة الصباحيـــــــــــة ",null,null,null,null,null,null,null,"الفترة المسائيــــة ",null,null,null,null,null,null,"2020-06-04"]
[null,"الرقم","الاسم و اللقب","المادة ","9--8","10--9","11--10","12--11",null,"15--14","16--15","17--16","الملاحظات",null,null,null,"2020-06-05"]
[null,1,"قدور بومقواس",null,null,null,null,null,null,"1م3","1م2","2م1",null,null,null,null,"2020-06-06"]
[null,2,"العربي قرمان ",null,null,null,null,null,null,null,null,null,null,null,null,null,"2020-06-07"]
[null,3,null,null,null,null,null,null,null,null,null,null,null,null,null,null,"2020-06-08",null,null,null,null,null,null,null,null,null,null,null,null,"1م1"]
[null,4,null,null,null,null,null,null,null,null,null,"2م2",null,null,null,null,"2020-06-09",null,null,null,null,null,null,null,null,null,null,null,null,"1م2"]
[null,5,null,null,null,null,null,null,null,null,null,null,null,null,null,null,"2020-06-10",null,null,null,null,null,null,null,null,null,null,null,null,"1م3"]
[null,6,null,null,null,null,null,null,null,null,null,null,null,null,null,null,"2020-06-11",null,null,null,null,null,null,null,null,null,null,"العربية ",null,"2م1"]
[null,"الاجراءات المتخذة :",null,null,null,null,null,null,null,null,null,null,null,null,null,null,"2020-06-12",null,null,null,null,null,null,null,null,null,null,"الفرنسية ",null,"2م2"]
[null,null,null,null,null,null,null,null,null,null,null,null,null,null,null,null,"2020-06-13",null,null,null,null,null,null,null,null,null,null,"الانجليزية ",null,"3م1"]
[null,null,null,null,null,null,null,null,null,null,null,null,null,null,null,null,"2020-06-14",null,null,null,null,null,null,null,null,null,null,"التربية الاسلامية ",null,"4م1"]
[null,null,null,null,null,null,null,null,null,null,null,null,null,null,null,null,"2020-06-15",null,null,null,null,null,null,null,null,null,null,"التربية المدنية ",null,"4م2"]
[null,"مواظبة موظفي الاستشارة ",null,null,null,null,null,null,null,null,null,null,null,null,null,null,"2020-06-16",null,null,null,null,null,null,null,null,null,null,"التاريخ والجغرافيا "]
[null,"الرقم","الاسم و اللقب","مدة التأخير","السبب",null,"الرقم","الاسم و اللقب",null,"صباحا","مساءا","الملاحظات ",null,null,null,null,"2020-06-17",null,null,null,null,null,null,null,null,null,null,"الرياضيات ",null,"دهكل أحمد"]
[null,1,null,null,null,null,1,null,null,null,null,null,null,null,null,null,"2020-06-18",null,null,null,null,null,null,null,null,null,null,"العلوم /ط",null,"طيفوري محمد"]
[null,2,null,null,null,null,2,null,null,null,null,null,null,null,null,null,"2020-06-19",null,null,null,null,null,null,null,null,null,null,"الفيزياء ",null,"قمقام دربالي"]
[null,3,null,null,null,null,3,null,null,null,null,null,null,null,null,null,"2020-06-20",null,null,null,null,null,null,null,null,null,null,"التربية الفنية "]
[null,4,null,null,null,null,4,null,null,null,null,null,null,null,null,null,"2020-06-21",null,null,null,null,null,null,null,null,null,null,"التربية الرياضية "]
[null,null,null,null,null,null,null,null,null,null,null,null,null,null,null,null,"2020-06-22"]
[null,null,null,null,null,null,null,null,null,null,null,null,null,null,null,null,"2020-06-23"]
[null,"وجبة الاطعــــــــــام ",null,null,null,null,null,null,null,null,null,null,null,null,null,null,"2020-06-24"]
[null,null,null,null,null,null,null,null,null,null,null,null,null,null,null,null,"2020-06-25"]
[null,"وجبــة الاطعام اليوميـــــــة ",null,null,null,null,null,null,null,null,null,null,null,null,null,null,"2020-06-26",null,null,null,null,null,null,null,null,null,null,"مباركة العابد"]
[null,"الوجبـــة",null,null,null,"عدد ن/داخلي",null,"الغائبون ",null,null,"الحاضرون",null,null,null,null,null,"2020-06-27",null,null,null,null,null,null,null,null,null,null,"بوعلام سهلي"]
[null,null,null,null,null,182,null,40,null,null,{"$f":"F32-$H$32","v":142},null,null,null,null,null,"2020-06-28",null,null,null,null,null,null,null,null,null,null,"ام الخير تهامي "]
[null,null,null,null,null,null,null,null,null,null,null,null,null,null,null,null,"2020-06-29",null,null,null,null,null,null,null,null,null,null,"خديجة بدراني "]
[null,null,null,null,null,null,null,null,null,null,null,null,null,null,null,null,"2020-06-30",null,null,null,null,null,null,null,null,null,null,"بوشوشة امحمدي"]
[null,null,null,null,null,null,null,null,null,null,null,null,null,null,null,null,null,null,null,null,null,null,null,null,null,null,null,"يعقوب كواهي "]
[null,"مواظبة التلاميذ ",null,null,null,null,null,null,null,null,null,null,null,null,null,null,null,null,null,null,null,null,null,null,null,null,null,"إبراهيم زريفي "]
[null,null,null,null,null,null,null,null,null,null,null,null,null,null,null,null,null,null,null,null,null,null,null,null,null,null,null,"محمد مشارة "]
[null,null,null,null,null,null,null,null,null,null,null,null,null,null,null,null,null,null,null,null,null,null,null,null,null,null,null,"شريف بدراني "]
[null,"المستوى ",null,"المسجلون","ذكــور","إنــاث","الغائبون","نسبة الغياب %",null,"الحاضرون",null,"نسبة الحاضرين %",null,null,null,null,null,null,null,null,null,null,null,null,null,null,null,"عبد القادر حساني "]
[null,"السنة الاولي متوسط 1",null,22,15,7,0,{"$f":"G40/$D$40","v":0},null,{"$f":"D40-$G$40","v":22},null,{"$f":"J40/$D$40","v":1}]
[null,"السنة الاولي متوسط 2",null,21,12,9,0,{"$f":"G41/$D$41","v":0},null,{"$f":"D41-G41","v":21},null,{"$f":"J41/$D$41","v":1},null,null,null,null,null,null,null,null,null,null,null,null,null,null,null,"قدور بومقواس"]
[null,"السنة الاولي متوسط 3",null,23,11,12,0,{"$f":"G42/$D$41","v":0},null,23,null,{"$f":"J42/$D$42","v":1},null,null,null,null,null,null,null,null,null,null,null,null,null,null,null,"العربي قرمان "]
[null,"السنة الثانية متوسط 1",null,31,15,16,0,0,null,31,null,{"$f":"J43/$D$43","v":1},null,null,null,null,null,null,null,null,null,null,null,null,null,null,null,"عبد القادر طيبي "]
[null,"السنة الثانية متوسط 2",null,33,17,16,0,0,null,33,null,{"$f":"J44/$D$44","v":1},null,null,null,null,null,null,null,null,null,null,null,null,null,null,null,"ميلود داودي "]
[null,"السنة الثالثة متوسط1",null,28,12,16,0,0,null,28,null,{"$f":"J45/$D$45","v":1},null,null,null,null,null,null,null,null,null,null,null,null,null,null,null,"رشيدة حطاب"]
[null,"السنة الثالثة متوسط 2",null,27,9,18,0,0,null,27,null,{"$f":"J46/$D$46","v":1},null,null,null,null,null,null,null,null,null,null,null,null,null,null,null,"مجدوب طلحة "]
[null,"السنة الرابعة متوسط 1",null,{"$f":"E47+F47","v":20},9,11,0,0,null,20,null,{"$f":"J47/$D$47","v":1},null,null,null,null,null,null,null,null,null,null,null,null,null,null,null,"مليود جليد "]
[null,"السنة الرابعة متوسط 2",null,{"$f":"E48+F48","v":23},11,12,0,0,null,23,null,{"$f":"J48/$D$48","v":1},null,null,null,null,null,null,null,null,null,null,null,null,null,null,null,"البشير قرمان "]
[null,"ملاحظــــات :"]
[null,null,null,null,null,null,null,null,null,null,null,null,null,null,null,null,null,null,null,null,null,null,null,null,null,null,null,"2019/2020"]
[null,null,null,null,null,null,null,null,null,null,null,null,null,null,null,null,null,null,null,null,null,null,null,null,null,null,null,"2020/2021"]
[null,null,null,null,null,null,null,null,null,null,null,null,null,null,null,null,null,null,null,null,null,null,null,null,null,null,null,"2021/2022"]
[]
[null,"منجز من طرف المكلف بالاستشارة ",null,null,"بتاريخ ",{"$f":"NOW()","v":"2020-06-18T19:22:29.630"}]
[null,null,null,null,null,null,null,null,null,"مدير المؤسسة "]

{"sheet":"22","index":22,"n_rows":55,"n_cols":30,"rows_kept":55,"cut":false,"hidden":false,"merged":[[54,9,54,10],[47,1,47,2],[47,7,47,8],[47,9,47,10],[47,11,47,12],[48,1,51,12],[53,1,53,3],[53,5,53,7],[45,1,45,2],[45,7,45,8],[45,9,45,10],[45,11,45,12],[46,7,46,8],[46,9,46,10],[46,11,46,12],[43,1,43,2],[43,7,43,8],[43,9,43,10],[43,11,43,12],[44,1,44,2],[44,7,44,8],[44,9,44,10],[44,11,44,12],[41,1,41,2],[41,7,41,8],[41,9,41,10],[41,11,41,12],[42,1,42,2],[42,7,42,8],[42,9,42,10],[42,11,42,12],[39,1,39,2],[39,7,39,8],[39,9,39,10],[39,11,39,12],[40,1,40,2],[40,7,40,8],[40,9,40,10],[40,11,40,12],[35,1,36,3],[38,1,38,2],[38,7,38,8],[38,9,38,10],[38,11,38,12],[29,1,29,12],[30,1,33,4],[30,5,30,6],[30,7,30,9],[30,10,30,12],[31,5,33,6],[31,7,33,9],[31,10,33,12],[24,7,24,8],[24,11,24,12],[27,1,28,3],[28,7,28,8],[28,11,28,12],[21,7,21,8],[21,11,21,12],[22,7,22,8],[22,11,22,12],[23,7,23,8],[23,11,23,12],[7,1,7,7],[7,9,7,12],[15,1,17,12],[19,1,19,3],[20,7,20,8],[20,11,20,12],[4,4,4,8],[4,9,4,12],[6,1,6,3],[6,9,6,10],[3,1,3,4],[0,4,0,9],[1,4,1,9],[2,1,2,4],[2,9,2,10],[2,11,2,12]]}
[null,null,null,null,{"$f":"HYPERLINK(\"#'Main Screen'!a1\",\"الجمهورية الجزائرية الديمقراطية الشعبية \")","v":"الجمهورية الجزائرية الديمقراطية الشعبية "}]
[null,null,null,null,"وزارة التربية الوطنيـــة "]
[null,"مديرية التربية لولايـــة الاغواط ",null,null,null,null,null,null,null,"السنة الدراسية ",null,"2019/2020"]
[null,"متوسطة سماعيني معمر تاجرونة "]
[null,null,null,null,"التقرير اليومي للاستشارة ",null,null,null,null,"2020-06-26",null,null,null,null,null,null,"2020-06-01"]
[null,null,null,null,null,null,null,null,null,null,null,null,null,null,null,null,"2020-06-02"]
[null,"مواظبـــة الاساتذة ",null,null,null,null,null,null,null,null,null,null,null,null,null,null,"2020-06-03"]
[null,"الفترة الصباحيـــــــــــة ",null,null,null,null,null,null,null,"الفترة المسائيــــة ",null,null,null,null,null,null,"2020-06-04"]
[null,"الرقم","الاسم و اللقب","المادة ","9--8","10--9","11--10","12--11",null,"15--14","16--15","17--16","الملاحظات",null,null,null,"2020-06-05"]
[null,1,"قدور بومقواس",null,null,null,null,null,null,"1م3","1م2","2م1",null,null,null,null,"2020-06-06"]
[null,2,"العربي قرمان ",null,null,null,null,null,null,null,null,null,null,null,null,null,"2020-06-07"]
[null,3,null,null,null,null,null,null,null,null,null,null,null,null,null,null,"2020-06-08",null,null,null,null,null,null,null,null,null,null,null,null,"1م1"]
[null,4,null,null,null,null,null,null,null,null,null,"2م2",null,null,null,null,"2020-06-09",null,null,null,null,null,null,null,null,null,null,null,null,"1م2"]
[null,5,null,null,null,null,null,null,null,null,null,null,null,null,null,null,"2020-06-10",null,null,null,null,null,null,null,null,null,null,null,null,"1م3"]
[null,6,null,null,null,null,null,null,null,null,null,null,null,null,null,null,"2020-06-11",null,null,null,null,null,null,null,null,null,null,"العربية ",null,"2م1"]
[null,"الاجراءات المتخذة :",null,null,null,null,null,null,null,null,null,null,null,null,null,null,"2020-06-12",null,null,null,null,null,null,null,null,null,null,"الفرنسية ",null,"2م2"]
[null,null,null,null,null,null,null,null,null,null,null,null,null,null,null,null,"2020-06-13",null,null,null,null,null,null,null,null,null,null,"الانجليزية ",null,"3م1"]
[null,null,null,null,null,null,null,null,null,null,null,null,null,null,null,null,"2020-06-14",null,null,null,null,null,null,null,null,null,null,"التربية الاسلامية ",null,"4م1"]
[null,null,null,null,null,null,null,null,null,null,null,null,null,null,null,null,"2020-06-15",null,null,null,null,null,null,null,null,null,null,"التربية المدنية ",null,"4م2"]
[null,"مواظبة موظفي الاستشارة ",null,null,null,null,null,null,null,null,null,null,null,null,null,null,"2020-06-16",null,null,null,null,null,null,null,null,null,null,"التاريخ والجغرافيا "]
[null,"الرقم","الاسم و اللقب","مدة التأخير","السبب",null,"الرقم","الاسم و اللقب",null,"صباحا","مساءا","الملاحظات ",null,null,null,null,"2020-06-17",null,null,null,null,null,null,null,null,null,null,"الرياضيات ",null,"دهكل أحمد"]
[null,1,null,null,null,null,1,null,null,null,null,null,null,null,null,null,"2020-06-18",null,null,null,null,null,null,null,null,null,null,"العلوم /ط",null,"طيفوري محمد"]
[null,2,null,null,null,null,2,null,null,null,null,null,null,null,null,null,"2020-06-19",null,null,null,null,null,null,null,null,null,null,"الفيزياء ",null,"قمقام دربالي"]
[null,3,null,null,null,null,3,null,null,null,null,null,null,null,null,null,"2020-06-20",null,null,null,null,null,null,null,null,null,null,"التربية الفنية "]
[null,4,null,null,null,null,4,null,null,null,null,null,null,null,null,null,"2020-06-21",null,null,null,null,null,null,null,null,null,null,"التربية الرياضية "]
[null,null,null,null,null,null,null,null,null,null,null,null,null,null,null,null,"2020-06-22"]
[null,null,null,null,null,null,null,null,null,null,null,null,null,null,null,null,"2020-06-23"]
[null,"وجبة الاطعــــــــــام ",null,null,null,null,null,null,null,null,null,null,null,null,null,null,"2020-06-24"]
[null,null,null,null,null,null,null,null,null,null,null,null,null,null,null,null,"2020-06-25"]
[null,"وجبــة الاطعام اليوميـــــــة ",null,null,null,null,null,null,null,null,null,null,null,null,null,null,"2020-06-26",null,null,null,null,null,null,null,null,null,null,"مباركة العابد"]
[null,"الوجبـــة",null,null,null,"عدد ن/داخلي",null,"الغائبون ",null,null,"الحاضرون",null,null,null,null,null,"2020-06-27",null,null,null,null,null,null,null,null,null,null,"بوعلام سهلي"]
[null,null,null,null,null,182,null,40,null,null,{"$f":"F32-$H$32","v":142},null,null,null,null,null,"2020-06-28",null,null,null,null,null,null,null,null,null,null,"ام الخير تهامي "]
[null,null,null,null,null,null,null,null,null,null,null,null,null,null,null,null,"2020-06-29",null,null,null,null,null,null,null,null,null,null,"خديجة بدراني "]
[null,null,null,null,null,null,null,null,null,null,null,null,null,null,null,null,"2020-06-30",null,null,null,null,null,null,null,null,null,null,"بوشوشة امحمدي"]
[null,null,null,null,null,null,null,null,null,null,null,null,null,null,null,null,null,null,null,null,null,null,null,null,null,null,null,"يعقوب كواهي "]
[null,"مواظبة التلاميذ ",null,null,null,null,null,null,null,null,null,null,null,null,null,null,null,null,null,null,null,null,null,null,null,null,null,"إبراهيم زريفي "]
[null,null,null,null,null,null,null,null,null,null,null,null,null,null,null,null,null,null,null,null,null,null,null,null,null,null,null,"محمد مشارة "]
[null,null,null,null,null,null,null,null,null,null,null,null,null,null,null,null,null,null,null,null,null,null,null,null,null,null,null,"شريف بدراني "]
[null,"المستوى ",null,"المسجلون","ذكــور","إنــاث","الغائبون","نسبة الغياب %",null,"الحاضرون",null,"نسبة الحاضرين %",null,null,null,null,null,null,null,null,null,null,null,null,null,null,null,"عبد القادر حساني "]
[null,"السنة الاولي متوسط 1",null,22,15,7,0,{"$f":"G40/$D$40","v":0},null,{"$f":"D40-$G$40","v":22},null,{"$f":"J40/$D$40","v":1}]
[null,"السنة الاولي متوسط 2",null,21,12,9,0,{"$f":"G41/$D$41","v":0},null,{"$f":"D41-G41","v":21},null,{"$f":"J41/$D$41","v":1},null,null,null,null,null,null,null,null,null,null,null,null,null,null,null,"قدور بومقواس"]
[null,"السنة الاولي متوسط 3",null,23,11,12,0,{"$f":"G42/$D$41","v":0},null,23,null,{"$f":"J42/$D$42","v":1},null,null,null,null,null,null,null,null,null,null,null,null,null,null,null,"العربي قرمان "]
[null,"السنة الثانية متوسط 1",null,31,15,16,0,0,null,31,null,{"$f":"J43/$D$43","v":1},null,null,null,null,null,null,null,null,null,null,null,null,null,null,null,"عبد القادر طيبي "]
[null,"السنة الثانية متوسط 2",null,33,17,16,0,0,null,33,null,{"$f":"J44/$D$44","v":1},null,null,null,null,null,null,null,null,null,null,null,null,null,null,null,"ميلود داودي "]
[null,"السنة الثالثة متوسط1",null,28,12,16,0,0,null,28,null,{"$f":"J45/$D$45","v":1},null,null,null,null,null,null,null,null,null,null,null,null,null,null,null,"رشيدة حطاب"]
[null,"السنة الثالثة متوسط 2",null,27,9,18,0,0,null,27,null,{"$f":"J46/$D$46","v":1},null,null,null,null,null,null,null,null,null,null,null,null,null,null,null,"مجدوب طلحة "]
[null,"السنة الرابعة متوسط 1",null,{"$f":"E47+F47","v":20},9,11,0,0,null,20,null,{"$f":"J47/$D$47","v":1},null,null,null,null,null,null,null,null,null,null,null,null,null,null,null,"مليود جليد "]
[null,"السنة الرابعة متوسط 2",null,{"$f":"E48+F48","v":23},11,12,0,0,null,23,null,{"$f":"J48/$D$48","v":1},null,null,null,null,null,null,null,null,null,null,null,null,null,null,null,"البشير قرمان "]
[null,"ملاحظــــات :"]
[null,null,null,null,null,null,null,null,null,null,null,null,null,null,null,null,null,null,null,null,null,null,null,null,null,null,null,"2019/2020"]
[null,null,null,null,null,null,null,null,null,null,null,null,null,null,null,null,null,null,null,null,null,null,null,null,null,null,null,"2020/2021"]
[null,null,null,null,null,null,null,null,null,null,null,null,null,null,null,null,null,null,null,null,null,null,null,null,null,null,null,"2021/2022"]
[]
[null,"منجز من طرف المكلف بالاستشارة ",null,null,"بتاريخ ",{"$f":"NOW()","v":"2020-06-18T19:22:29.630"}]
[null,null,null,null,null,null,null,null,null,"مدير المؤسسة "]

{"sheet":"23","index":23,"n_rows":55,"n_cols":30,"rows_kept":55,"cut":false,"hidden":false,"merged":[[54,9,54,10],[47,1,47,2],[47,7,47,8],[47,9,47,10],[47,11,47,12],[48,1,51,12],[53,1,53,3],[53,5,53,7],[45,1,45,2],[45,7,45,8],[45,9,45,10],[45,11,45,12],[46,7,46,8],[46,9,46,10],[46,11,46,12],[43,1,43,2],[43,7,43,8],[43,9,43,10],[43,11,43,12],[44,1,44,2],[44,7,44,8],[44,9,44,10],[44,11,44,12],[41,1,41,2],[41,7,41,8],[41,9,41,10],[41,11,41,12],[42,1,42,2],[42,7,42,8],[42,9,42,10],[42,11,42,12],[39,1,39,2],[39,7,39,8],[39,9,39,10],[39,11,39,12],[40,1,40,2],[40,7,40,8],[40,9,40,10],[40,11,40,12],[35,1,36,3],[38,1,38,2],[38,7,38,8],[38,9,38,10],[38,11,38,12],[29,1,29,12],[30,1,33,4],[30,5,30,6],[30,7,30,9],[30,10,30,12],[31,5,33,6],[31,7,33,9],[31,10,33,12],[24,7,24,8],[24,11,24,12],[27,1,28,3],[28,7,28,8],[28,11,28,12],[21,7,21,8],[21,11,21,12],[22,7,22,8],[22,11,22,12],[23,7,23,8],[23,11,23,12],[7,1,7,7],[7,9,7,12],[15,1,17,12],[19,1,19,3],[20,7,20,8],[20,11,20,12],[4,4,4,8],[4,9,4,12],[6,1,6,3],[6,9,6,10],[3,1,3,4],[0,4,0,9],[1,4,1,9],[2,1,2,4],[2,9,2,10],[2,11,2,12]]}
[null,null,null,null,{"$f":"HYPERLINK(\"#'Main Screen'!a1\",\"الجمهورية الجزائرية الديمقراطية الشعبية \")","v":"الجمهورية الجزائرية الديمقراطية الشعبية "}]
[null,null,null,null,"وزارة التربية الوطنيـــة "]
[null,"مديرية التربية لولايـــة الاغواط ",null,null,null,null,null,null,null,"السنة الدراسية ",null,"2019/2020"]
[null,"متوسطة سماعيني معمر تاجرونة "]
[null,null,null,null,"التقرير اليومي للاستشارة ",null,null,null,null,"2020-06-26",null,null,null,null,null,null,"2020-06-01"]
[null,null,null,null,null,null,null,null,null,null,null,null,null,null,null,null,"2020-06-02"]
[null,"مواظبـــة الاساتذة ",null,null,null,null,null,null,null,null,null,null,null,null,null,null,"2020-06-03"]
[null,"الفترة الصباحيـــــــــــة ",null,null,null,null,null,null,null,"الفترة المسائيــــة ",null,null,null,null,null,null,"2020-06-04"]
[null,"الرقم","الاسم و اللقب","المادة ","9--8","10--9","11--10","12--11",null,"15--14","16--15","17--16","الملاحظات",null,null,null,"2020-06-05"]
[null,1,"قدور بومقواس",null,null,null,null,null,null,"1م3","1م2","2م1",null,null,null,null,"2020-06-06"]
[null,2,"العربي قرمان ",null,null,null,null,null,null,null,null,null,null,null,null,null,"2020-06-07"]
[null,3,null,null,null,null,null,null,null,null,null,null,null,null,null,null,"2020-06-08",null,null,null,null,null,null,null,null,null,null,null,null,"1م1"]
[null,4,null,null,null,null,null,null,null,null,null,"2م2",null,null,null,null,"2020-06-09",null,null,null,null,null,null,null,null,null,null,null,null,"1م2"]
[null,5,null,null,null,null,null,null,null,null,null,null,null,null,null,null,"2020-06-10",null,null,null,null,null,null,null,null,null,null,null,null,"1م3"]
[null,6,null,null,null,null,null,null,null,null,null,null,null,null,null,null,"2020-06-11",null,null,null,null,null,null,null,null,null,null,"العربية ",null,"2م1"]
[null,"الاجراءات المتخذة :",null,null,null,null,null,null,null,null,null,null,null,null,null,null,"2020-06-12",null,null,null,null,null,null,null,null,null,null,"الفرنسية ",null,"2م2"]
[null,null,null,null,null,null,null,null,null,null,null,null,null,null,null,null,"2020-06-13",null,null,null,null,null,null,null,null,null,null,"الانجليزية ",null,"3م1"]
[null,null,null,null,null,null,null,null,null,null,null,null,null,null,null,null,"2020-06-14",null,null,null,null,null,null,null,null,null,null,"التربية الاسلامية ",null,"4م1"]
[null,null,null,null,null,null,null,null,null,null,null,null,null,null,null,null,"2020-06-15",null,null,null,null,null,null,null,null,null,null,"التربية المدنية ",null,"4م2"]
[null,"مواظبة موظفي الاستشارة ",null,null,null,null,null,null,null,null,null,null,null,null,null,null,"2020-06-16",null,null,null,null,null,null,null,null,null,null,"التاريخ والجغرافيا "]
[null,"الرقم","الاسم و اللقب","مدة التأخير","السبب",null,"الرقم","الاسم و اللقب",null,"صباحا","مساءا","الملاحظات ",null,null,null,null,"2020-06-17",null,null,null,null,null,null,null,null,null,null,"الرياضيات ",null,"دهكل أحمد"]
[null,1,null,null,null,null,1,null,null,null,null,null,null,null,null,null,"2020-06-18",null,null,null,null,null,null,null,null,null,null,"العلوم /ط",null,"طيفوري محمد"]
[null,2,null,null,null,null,2,null,null,null,null,null,null,null,null,null,"2020-06-19",null,null,null,null,null,null,null,null,null,null,"الفيزياء ",null,"قمقام دربالي"]
[null,3,null,null,null,null,3,null,null,null,null,null,null,null,null,null,"2020-06-20",null,null,null,null,null,null,null,null,null,null,"التربية الفنية "]
[null,4,null,null,null,null,4,null,null,null,null,null,null,null,null,null,"2020-06-21",null,null,null,null,null,null,null,null,null,null,"التربية الرياضية "]
[null,null,null,null,null,null,null,null,null,null,null,null,null,null,null,null,"2020-06-22"]
[null,null,null,null,null,null,null,null,null,null,null,null,null,null,null,null,"2020-06-23"]
[null,"وجبة الاطعــــــــــام ",null,null,null,null,null,null,null,null,null,null,null,null,null,null,"2020-06-24"]
[null,null,null,null,null,null,null,null,null,null,null,null,null,null,null,null,"2020-06-25"]
[null,"وجبــة الاطعام اليوميـــــــة ",null,null,null,null,null,null,null,null,null,null,null,null,null,null,"2020-06-26",null,null,null,null,null,null,null,null,null,null,"مباركة العابد"]
[null,"الوجبـــة",null,null,null,"عدد ن/داخلي",null,"الغائبون ",null,null,"الحاضرون",null,null,null,null,null,"2020-06-27",null,null,null,null,null,null,null,null,null,null,"بوعلام سهلي"]
[null,null,null,null,null,182,null,40,null,null,{"$f":"F32-$H$32","v":142},null,null,null,null,null,"2020-06-28",null,null,null,null,null,null,null,null,null,null,"ام الخير تهامي "]
[null,null,null,null,null,null,null,null,null,null,null,null,null,null,null,null,"2020-06-29",null,null,null,null,null,null,null,null,null,null,"خديجة بدراني "]
[null,null,null,null,null,null,null,null,null,null,null,null,null,null,null,null,"2020-06-30",null,null,null,null,null,null,null,null,null,null,"بوشوشة امحمدي"]
[null,null,null,null,null,null,null,null,null,null,null,null,null,null,null,null,null,null,null,null,null,null,null,null,null,null,null,"يعقوب كواهي "]
[null,"مواظبة التلاميذ ",null,null,null,null,null,null,null,null,null,null,null,null,null,null,null,null,null,null,null,null,null,null,null,null,null,"إبراهيم زريفي "]
[null,null,null,null,null,null,null,null,null,null,null,null,null,null,null,null,null,null,null,null,null,null,null,null,null,null,null,"محمد مشارة "]
[null,null,null,null,null,null,null,null,null,null,null,null,null,null,null,null,null,null,null,null,null,null,null,null,null,null,null,"شريف بدراني "]
[null,"المستوى ",null,"المسجلون","ذكــور","إنــاث","الغائبون","نسبة الغياب %",null,"الحاضرون",null,"نسبة الحاضرين %",null,null,null,null,null,null,null,null,null,null,null,null,null,null,null,"عبد القادر حساني "]
[null,"السنة الاولي متوسط 1",null,22,15,7,0,{"$f":"G40/$D$40","v":0},null,{"$f":"D40-$G$40","v":22},null,{"$f":"J40/$D$40","v":1}]
[null,"السنة الاولي متوسط 2",null,21,12,9,0,{"$f":"G41/$D$41","v":0},null,{"$f":"D41-G41","v":21},null,{"$f":"J41/$D$41","v":1},null,null,null,null,null,null,null,null,null,null,null,null,null,null,null,"قدور بومقواس"]
[null,"السنة الاولي متوسط 3",null,23,11,12,0,{"$f":"G42/$D$41","v":0},null,23,null,{"$f":"J42/$D$42","v":1},null,null,null,null,null,null,null,null,null,null,null,null,null,null,null,"العربي قرمان "]
[null,"السنة الثانية متوسط 1",null,31,15,16,0,0,null,31,null,{"$f":"J43/$D$43","v":1},null,null,null,null,null,null,null,null,null,null,null,null,null,null,null,"عبد القادر طيبي "]
[null,"السنة الثانية متوسط 2",null,33,17,16,0,0,null,33,null,{"$f":"J44/$D$44","v":1},null,null,null,null,null,null,null,null,null,null,null,null,null,null,null,"ميلود داودي "]
[null,"السنة الثالثة متوسط1",null,28,12,16,0,0,null,28,null,{"$f":"J45/$D$45","v":1},null,null,null,null,null,null,null,null,null,null,null,null,null,null,null,"رشيدة حطاب"]
[null,"السنة الثالثة متوسط 2",null,27,9,18,0,0,null,27,null,{"$f":"J46/$D$46","v":1},null,null,null,null,null,null,null,null,null,null,null,null,null,null,null,"مجدوب طلحة "]
[null,"السنة الرابعة متوسط 1",null,{"$f":"E47+F47","v":20},9,11,0,0,null,20,null,{"$f":"J47/$D$47","v":1},null,null,null,null,null,null,null,null,null,null,null,null,null,null,null,"مليود جليد "]
[null,"السنة الرابعة متوسط 2",null,{"$f":"E48+F48","v":23},11,12,0,0,null,23,null,{"$f":"J48/$D$48","v":1},null,null,null,null,null,null,null,null,null,null,null,null,null,null,null,"البشير قرمان "]
[null,"ملاحظــــات :"]
[null,null,null,null,null,null,null,null,null,null,null,null,null,null,null,null,null,null,null,null,null,null,null,null,null,null,null,"2019/2020"]
[null,null,null,null,null,null,null,null,null,null,null,null,null,null,null,null,null,null,null,null,null,null,null,null,null,null,null,"2020/2021"]
[null,null,null,null,null,null,null,null,null,null,null,null,null,null,null,null,null,null,null,null,null,null,null,null,null,null,null,"2021/2022"]
[]
[null,"منجز من طرف المكلف بالاستشارة ",null,null,"بتاريخ ",{"$f":"NOW()","v":"2020-06-18T19:22:29.630"}]
[null,null,null,null,null,null,null,null,null,"مدير المؤسسة "]

{"sheet":"24","index":24,"n_rows":55,"n_cols":30,"rows_kept":55,"cut":false,"hidden":false,"merged":[[54,9,54,10],[47,1,47,2],[47,7,47,8],[47,9,47,10],[47,11,47,12],[48,1,51,12],[53,1,53,3],[53,5,53,7],[45,1,45,2],[45,7,45,8],[45,9,45,10],[45,11,45,12],[46,7,46,8],[46,9,46,10],[46,11,46,12],[43,1,43,2],[43,7,43,8],[43,9,43,10],[43,11,43,12],[44,1,44,2],[44,7,44,8],[44,9,44,10],[44,11,44,12],[41,1,41,2],[41,7,41,8],[41,9,41,10],[41,11,41,12],[42,1,42,2],[42,7,42,8],[42,9,42,10],[42,11,42,12],[39,1,39,2],[39,7,39,8],[39,9,39,10],[39,11,39,12],[40,1,40,2],[40,7,40,8],[40,9,40,10],[40,11,40,12],[35,1,36,3],[38,1,38,2],[38,7,38,8],[38,9,38,10],[38,11,38,12],[29,1,29,12],[30,1,33,4],[30,5,30,6],[30,7,30,9],[30,10,30,12],[31,5,33,6],[31,7,33,9],[31,10,33,12],[24,7,24,8],[24,11,24,12],[27,1,28,3],[28,7,28,8],[28,11,28,12],[21,7,21,8],[21,11,21,12],[22,7,22,8],[22,11,22,12],[23,7,23,8],[23,11,23,12],[7,1,7,7],[7,9,7,12],[15,1,17,12],[19,1,19,3],[20,7,20,8],[20,11,20,12],[4,4,4,8],[4,9,4,12],[6,1,6,3],[6,9,6,10],[3,1,3,4],[0,4,0,9],[1,4,1,9],[2,1,2,4],[2,9,2,10],[2,11,2,12]]}
[null,null,null,null,{"$f":"HYPERLINK(\"#'Main Screen'!a1\",\"الجمهورية الجزائرية الديمقراطية الشعبية \")","v":"الجمهورية الجزائرية الديمقراطية الشعبية "}]
[null,null,null,null,"وزارة التربية الوطنيـــة "]
[null,"مديرية التربية لولايـــة الاغواط ",null,null,null,null,null,null,null,"السنة الدراسية ",null,"2019/2020"]
[null,"متوسطة سماعيني معمر تاجرونة "]
[null,null,null,null,"التقرير اليومي للاستشارة ",null,null,null,null,"2020-06-26",null,null,null,null,null,null,"2020-06-01"]
[null,null,null,null,null,null,null,null,null,null,null,null,null,null,null,null,"2020-06-02"]
[null,"مواظبـــة الاساتذة ",null,null,null,null,null,null,null,null,null,null,null,null,null,null,"2020-06-03"]
[null,"الفترة الصباحيـــــــــــة ",null,null,null,null,null,null,null,"الفترة المسائيــــة ",null,null,null,null,null,null,"2020-06-04"]
[null,"الرقم","الاسم و اللقب","المادة ","9--8","10--9","11--10","12--11",null,"15--14","16--15","17--16","الملاحظات",null,null,null,"2020-06-05"]
[null,1,"قدور بومقواس",null,null,null,null,null,null,"1م3","1م2","2م1",null,null,null,null,"2020-06-06"]
[null,2,"العربي قرمان ",null,null,null,null,null,null,null,null,null,null,null,null,null,"2020-06-07"]
[null,3,null,null,null,null,null,null,null,null,null,null,null,null,null,null,"2020-06-08",null,null,null,null,null,null,null,null,null,null,null,null,"1م1"]
[null,4,null,null,null,null,null,null,null,null,null,"2م2",null,null,null,null,"2020-06-09",null,null,null,null,null,null,null,null,null,null,null,null,"1م2"]
[null,5,null,null,null,null,null,null,null,null,null,null,null,null,null,null,"2020-06-10",null,null,null,null,null,null,null,null,null,null,null,null,"1م3"]
[null,6,null,null,null,null,null,null,null,null,null,null,null,null,null,null,"2020-06-11",null,null,null,null,null,null,null,null,null,null,"العربية ",null,"2م1"]
[null,"الاجراءات المتخذة :",null,null,null,null,null,null,null,null,null,null,null,null,null,null,"2020-06-12",null,null,null,null,null,null,null,null,null,null,"الفرنسية ",null,"2م2"]
[null,null,null,null,null,null,null,null,null,null,null,null,null,null,null,null,"2020-06-13",null,null,null,null,null,null,null,null,null,null,"الانجليزية ",null,"3م1"]
[null,null,null,null,null,null,null,null,null,null,null,null,null,null,null,null,"2020-06-14",null,null,null,null,null,null,null,null,null,null,"التربية الاسلامية ",null,"4م1"]
[null,null,null,null,null,null,null,null,null,null,null,null,null,null,null,null,"2020-06-15",null,null,null,null,null,null,null,null,null,null,"التربية المدنية ",null,"4م2"]
[null,"مواظبة موظفي الاستشارة ",null,null,null,null,null,null,null,null,null,null,null,null,null,null,"2020-06-16",null,null,null,null,null,null,null,null,null,null,"التاريخ والجغرافيا "]
[null,"الرقم","الاسم و اللقب","مدة التأخير","السبب",null,"الرقم","الاسم و اللقب",null,"صباحا","مساءا","الملاحظات ",null,null,null,null,"2020-06-17",null,null,null,null,null,null,null,null,null,null,"الرياضيات ",null,"دهكل أحمد"]
[null,1,null,null,null,null,1,null,null,null,null,null,null,null,null,null,"2020-06-18",null,null,null,null,null,null,null,null,null,null,"العلوم /ط",null,"طيفوري محمد"]
[null,2,null,null,null,null,2,null,null,null,null,null,null,null,null,null,"2020-06-19",null,null,null,null,null,null,null,null,null,null,"الفيزياء ",null,"قمقام دربالي"]
[null,3,null,null,null,null,3,null,null,null,null,null,null,null,null,null,"2020-06-20",null,null,null,null,null,null,null,null,null,null,"التربية الفنية "]
[null,4,null,null,null,null,4,null,null,null,null,null,null,null,null,null,"2020-06-21",null,null,null,null,null,null,null,null,null,null,"التربية الرياضية "]
[null,null,null,null,null,null,null,null,null,null,null,null,null,null,null,null,"2020-06-22"]
[null,null,null,null,null,null,null,null,null,null,null,null,null,null,null,null,"2020-06-23"]
[null,"وجبة الاطعــــــــــام ",null,null,null,null,null,null,null,null,null,null,null,null,null,null,"2020-06-24"]
[null,null,null,null,null,null,null,null,null,null,null,null,null,null,null,null,"2020-06-25"]
[null,"وجبــة الاطعام اليوميـــــــة ",null,null,null,null,null,null,null,null,null,null,null,null,null,null,"2020-06-26",null,null,null,null,null,null,null,null,null,null,"مباركة العابد"]
[null,"الوجبـــة",null,null,null,"عدد ن/داخلي",null,"الغائبون ",null,null,"الحاضرون",null,null,null,null,null,"2020-06-27",null,null,null,null,null,null,null,null,null,null,"بوعلام سهلي"]
[null,null,null,null,null,182,null,40,null,null,{"$f":"F32-$H$32","v":142},null,null,null,null,null,"2020-06-28",null,null,null,null,null,null,null,null,null,null,"ام الخير تهامي "]
[null,null,null,null,null,null,null,null,null,null,null,null,null,null,null,null,"2020-06-29",null,null,null,null,null,null,null,null,null,null,"خديجة بدراني "]
[null,null,null,null,null,null,null,null,null,null,null,null,null,null,null,null,"2020-06-30",null,null,null,null,null,null,null,null,null,null,"بوشوشة امحمدي"]
[null,null,null,null,null,null,null,null,null,null,null,null,null,null,null,null,null,null,null,null,null,null,null,null,null,null,null,"يعقوب كواهي "]
[null,"مواظبة التلاميذ ",null,null,null,null,null,null,null,null,null,null,null,null,null,null,null,null,null,null,null,null,null,null,null,null,null,"إبراهيم زريفي "]
[null,null,null,null,null,null,null,null,null,null,null,null,null,null,null,null,null,null,null,null,null,null,null,null,null,null,null,"محمد مشارة "]
[null,null,null,null,null,null,null,null,null,null,null,null,null,null,null,null,null,null,null,null,null,null,null,null,null,null,null,"شريف بدراني "]
[null,"المستوى ",null,"المسجلون","ذكــور","إنــاث","الغائبون","نسبة الغياب %",null,"الحاضرون",null,"نسبة الحاضرين %",null,null,null,null,null,null,null,null,null,null,null,null,null,null,null,"عبد القادر حساني "]
[null,"السنة الاولي متوسط 1",null,22,15,7,0,{"$f":"G40/$D$40","v":0},null,{"$f":"D40-$G$40","v":22},null,{"$f":"J40/$D$40","v":1}]
[null,"السنة الاولي متوسط 2",null,21,12,9,0,{"$f":"G41/$D$41","v":0},null,{"$f":"D41-G41","v":21},null,{"$f":"J41/$D$41","v":1},null,null,null,null,null,null,null,null,null,null,null,null,null,null,null,"قدور بومقواس"]
[null,"السنة الاولي متوسط 3",null,23,11,12,0,{"$f":"G42/$D$41","v":0},null,23,null,{"$f":"J42/$D$42","v":1},null,null,null,null,null,null,null,null,null,null,null,null,null,null,null,"العربي قرمان "]
[null,"السنة الثانية متوسط 1",null,31,15,16,0,0,null,31,null,{"$f":"J43/$D$43","v":1},null,null,null,null,null,null,null,null,null,null,null,null,null,null,null,"عبد القادر طيبي "]
[null,"السنة الثانية متوسط 2",null,33,17,16,0,0,null,33,null,{"$f":"J44/$D$44","v":1},null,null,null,null,null,null,null,null,null,null,null,null,null,null,null,"ميلود داودي "]
[null,"السنة الثالثة متوسط1",null,28,12,16,0,0,null,28,null,{"$f":"J45/$D$45","v":1},null,null,null,null,null,null,null,null,null,null,null,null,null,null,null,"رشيدة حطاب"]
[null,"السنة الثالثة متوسط 2",null,27,9,18,0,0,null,27,null,{"$f":"J46/$D$46","v":1},null,null,null,null,null,null,null,null,null,null,null,null,null,null,null,"مجدوب طلحة "]
[null,"السنة الرابعة متوسط 1",null,{"$f":"E47+F47","v":20},9,11,0,0,null,20,null,{"$f":"J47/$D$47","v":1},null,null,null,null,null,null,null,null,null,null,null,null,null,null,null,"مليود جليد "]
[null,"السنة الرابعة متوسط 2",null,{"$f":"E48+F48","v":23},11,12,0,0,null,23,null,{"$f":"J48/$D$48","v":1},null,null,null,null,null,null,null,null,null,null,null,null,null,null,null,"البشير قرمان "]
[null,"ملاحظــــات :"]
[null,null,null,null,null,null,null,null,null,null,null,null,null,null,null,null,null,null,null,null,null,null,null,null,null,null,null,"2019/2020"]
[null,null,null,null,null,null,null,null,null,null,null,null,null,null,null,null,null,null,null,null,null,null,null,null,null,null,null,"2020/2021"]
[null,null,null,null,null,null,null,null,null,null,null,null,null,null,null,null,null,null,null,null,null,null,null,null,null,null,null,"2021/2022"]
[]
[null,"منجز من طرف المكلف بالاستشارة ",null,null,"بتاريخ ",{"$f":"NOW()","v":"2020-06-18T19:22:29.630"}]
[null,null,null,null,null,null,null,null,null,"مدير المؤسسة "]

{"sheet":"25","index":25,"n_rows":55,"n_cols":30,"rows_kept":55,"cut":false,"hidden":false,"merged":[[54,9,54,10],[47,1,47,2],[47,7,47,8],[47,9,47,10],[47,11,47,12],[48,1,51,12],[53,1,53,3],[53,5,53,7],[45,1,45,2],[45,7,45,8],[45,9,45,10],[45,11,45,12],[46,7,46,8],[46,9,46,10],[46,11,46,12],[43,1,43,2],[43,7,43,8],[43,9,43,10],[43,11,43,12],[44,1,44,2],[44,7,44,8],[44,9,44,10],[44,11,44,12],[41,1,41,2],[41,7,41,8],[41,9,41,10],[41,11,41,12],[42,1,42,2],[42,7,42,8],[42,9,42,10],[42,11,42,12],[39,1,39,2],[39,7,39,8],[39,9,39,10],[39,11,39,12],[40,1,40,2],[40,7,40,8],[40,9,40,10],[40,11,40,12],[35,1,36,3],[38,1,38,2],[38,7,38,8],[38,9,38,10],[38,11,38,12],[29,1,29,12],[30,1,33,4],[30,5,30,6],[30,7,30,9],[30,10,30,12],[31,5,33,6],[31,7,33,9],[31,10,33,12],[24,7,24,8],[24,11,24,12],[27,1,28,3],[28,7,28,8],[28,11,28,12],[21,7,21,8],[21,11,21,12],[22,7,22,8],[22,11,22,12],[23,7,23,8],[23,11,23,12],[7,1,7,7],[7,9,7,12],[15,1,17,12],[19,1,19,3],[20,7,20,8],[20,11,20,12],[4,4,4,8],[4,9,4,12],[6,1,6,3],[6,9,6,10],[3,1,3,4],[0,4,0,9],[1,4,1,9],[2,1,2,4],[2,9,2,10],[2,11,2,12]]}
[null,null,null,null,{"$f":"HYPERLINK(\"#'Main Screen'!a1\",\"الجمهورية الجزائرية الديمقراطية الشعبية \")","v":"الجمهورية الجزائرية الديمقراطية الشعبية "}]
[null,null,null,null,"وزارة التربية الوطنيـــة "]
[null,"مديرية التربية لولايـــة الاغواط ",null,null,null,null,null,null,null,"السنة الدراسية ",null,"2019/2020"]
[null,"متوسطة سماعيني معمر تاجرونة "]
[null,null,null,null,"التقرير اليومي للاستشارة ",null,null,null,null,"2020-06-26",null,null,null,null,null,null,"2020-06-01"]
[null,null,null,null,null,null,null,null,null,null,null,null,null,null,null,null,"2020-06-02"]
[null,"مواظبـــة الاساتذة ",null,null,null,null,null,null,null,null,null,null,null,null,null,null,"2020-06-03"]
[null,"الفترة الصباحيـــــــــــة ",null,null,null,null,null,null,null,"الفترة المسائيــــة ",null,null,null,null,null,null,"2020-06-04"]
[null,"الرقم","الاسم و اللقب","المادة ","9--8","10--9","11--10","12--11",null,"15--14","16--15","17--16","الملاحظات",null,null,null,"2020-06-05"]
[null,1,"قدور بومقواس",null,null,null,null,null,null,"1م3","1م2","2م1",null,null,null,null,"2020-06-06"]
[null,2,"العربي قرمان ",null,null,null,null,null,null,null,null,null,null,null,null,null,"2020-06-07"]
[null,3,null,null,null,null,null,null,null,null,null,null,null,null,null,null,"2020-06-08",null,null,null,null,null,null,null,null,null,null,null,null,"1م1"]
[null,4,null,null,null,null,null,null,null,null,null,"2م2",null,null,null,null,"2020-06-09",null,null,null,null,null,null,null,null,null,null,null,null,"1م2"]
[null,5,null,null,null,null,null,null,null,null,null,null,null,null,null,null,"2020-06-10",null,null,null,null,null,null,null,null,null,null,null,null,"1م3"]
[null,6,null,null,null,null,null,null,null,null,null,null,null,null,null,null,"2020-06-11",null,null,null,null,null,null,null,null,null,null,"العربية ",null,"2م1"]
[null,"الاجراءات المتخذة :",null,null,null,null,null,null,null,null,null,null,null,null,null,null,"2020-06-12",null,null,null,null,null,null,null,null,null,null,"الفرنسية ",null,"2م2"]
[null,null,null,null,null,null,null,null,null,null,null,null,null,null,null,null,"2020-06-13",null,null,null,null,null,null,null,null,null,null,"الانجليزية ",null,"3م1"]
[null,null,null,null,null,null,null,null,null,null,null,null,null,null,null,null,"2020-06-14",null,null,null,null,null,null,null,null,null,null,"التربية الاسلامية ",null,"4م1"]
[null,null,null,null,null,null,null,null,null,null,null,null,null,null,null,null,"2020-06-15",null,null,null,null,null,null,null,null,null,null,"التربية المدنية ",null,"4م2"]
[null,"مواظبة موظفي الاستشارة ",null,null,null,null,null,null,null,null,null,null,null,null,null,null,"2020-06-16",null,null,null,null,null,null,null,null,null,null,"التاريخ والجغرافيا "]
[null,"الرقم","الاسم و اللقب","مدة التأخير","السبب",null,"الرقم","الاسم و اللقب",null,"صباحا","مساءا","الملاحظات ",null,null,null,null,"2020-06-17",null,null,null,null,null,null,null,null,null,null,"الرياضيات ",null,"دهكل أحمد"]
[null,1,null,null,null,null,1,null,null,null,null,null,null,null,null,null,"2020-06-18",null,null,null,null,null,null,null,null,null,null,"العلوم /ط",null,"طيفوري محمد"]
[null,2,null,null,null,null,2,null,null,null,null,null,null,null,null,null,"2020-06-19",null,null,null,null,null,null,null,null,null,null,"الفيزياء ",null,"قمقام دربالي"]
[null,3,null,null,null,null,3,null,null,null,null,null,null,null,null,null,"2020-06-20",null,null,null,null,null,null,null,null,null,null,"التربية الفنية "]
[null,4,null,null,null,null,4,null,null,null,null,null,null,null,null,null,"2020-06-21",null,null,null,null,null,null,null,null,null,null,"التربية الرياضية "]
[null,null,null,null,null,null,null,null,null,null,null,null,null,null,null,null,"2020-06-22"]
[null,null,null,null,null,null,null,null,null,null,null,null,null,null,null,null,"2020-06-23"]
[null,"وجبة الاطعــــــــــام ",null,null,null,null,null,null,null,null,null,null,null,null,null,null,"2020-06-24"]
[null,null,null,null,null,null,null,null,null,null,null,null,null,null,null,null,"2020-06-25"]
[null,"وجبــة الاطعام اليوميـــــــة ",null,null,null,null,null,null,null,null,null,null,null,null,null,null,"2020-06-26",null,null,null,null,null,null,null,null,null,null,"مباركة العابد"]
[null,"الوجبـــة",null,null,null,"عدد ن/داخلي",null,"الغائبون ",null,null,"الحاضرون",null,null,null,null,null,"2020-06-27",null,null,null,null,null,null,null,null,null,null,"بوعلام سهلي"]
[null,null,null,null,null,182,null,40,null,null,{"$f":"F32-$H$32","v":142},null,null,null,null,null,"2020-06-28",null,null,null,null,null,null,null,null,null,null,"ام الخير تهامي "]
[null,null,null,null,null,null,null,null,null,null,null,null,null,null,null,null,"2020-06-29",null,null,null,null,null,null,null,null,null,null,"خديجة بدراني "]
[null,null,null,null,null,null,null,null,null,null,null,null,null,null,null,null,"2020-06-30",null,null,null,null,null,null,null,null,null,null,"بوشوشة امحمدي"]
[null,null,null,null,null,null,null,null,null,null,null,null,null,null,null,null,null,null,null,null,null,null,null,null,null,null,null,"يعقوب كواهي "]
[null,"مواظبة التلاميذ ",null,null,null,null,null,null,null,null,null,null,null,null,null,null,null,null,null,null,null,null,null,null,null,null,null,"إبراهيم زريفي "]
[null,null,null,null,null,null,null,null,null,null,null,null,null,null,null,null,null,null,null,null,null,null,null,null,null,null,null,"محمد مشارة "]
[null,null,null,null,null,null,null,null,null,null,null,null,null,null,null,null,null,null,null,null,null,null,null,null,null,null,null,"شريف بدراني "]
[null,"المستوى ",null,"المسجلون","ذكــور","إنــاث","الغائبون","نسبة الغياب %",null,"الحاضرون",null,"نسبة الحاضرين %",null,null,null,null,null,null,null,null,null,null,null,null,null,null,null,"عبد القادر حساني "]
[null,"السنة الاولي متوسط 1",null,22,15,7,0,{"$f":"G40/$D$40","v":0},null,{"$f":"D40-$G$40","v":22},null,{"$f":"J40/$D$40","v":1}]
[null,"السنة الاولي متوسط 2",null,21,12,9,0,{"$f":"G41/$D$41","v":0},null,{"$f":"D41-G41","v":21},null,{"$f":"J41/$D$41","v":1},null,null,null,null,null,null,null,null,null,null,null,null,null,null,null,"قدور بومقواس"]
[null,"السنة الاولي متوسط 3",null,23,11,12,0,{"$f":"G42/$D$41","v":0},null,23,null,{"$f":"J42/$D$42","v":1},null,null,null,null,null,null,null,null,null,null,null,null,null,null,null,"العربي قرمان "]
[null,"السنة الثانية متوسط 1",null,31,15,16,0,0,null,31,null,{"$f":"J43/$D$43","v":1},null,null,null,null,null,null,null,null,null,null,null,null,null,null,null,"عبد القادر طيبي "]
[null,"السنة الثانية متوسط 2",null,33,17,16,0,0,null,33,null,{"$f":"J44/$D$44","v":1},null,null,null,null,null,null,null,null,null,null,null,null,null,null,null,"ميلود داودي "]
[null,"السنة الثالثة متوسط1",null,28,12,16,0,0,null,28,null,{"$f":"J45/$D$45","v":1},null,null,null,null,null,null,null,null,null,null,null,null,null,null,null,"رشيدة حطاب"]
[null,"السنة الثالثة متوسط 2",null,27,9,18,0,0,null,27,null,{"$f":"J46/$D$46","v":1},null,null,null,null,null,null,null,null,null,null,null,null,null,null,null,"مجدوب طلحة "]
[null,"السنة الرابعة متوسط 1",null,{"$f":"E47+F47","v":20},9,11,0,0,null,20,null,{"$f":"J47/$D$47","v":1},null,null,null,null,null,null,null,null,null,null,null,null,null,null,null,"مليود جليد "]
[null,"السنة الرابعة متوسط 2",null,{"$f":"E48+F48","v":23},11,12,0,0,null,23,null,{"$f":"J48/$D$48","v":1},null,null,null,null,null,null,null,null,null,null,null,null,null,null,null,"البشير قرمان "]
[null,"ملاحظــــات :"]
[null,null,null,null,null,null,null,null,null,null,null,null,null,null,null,null,null,null,null,null,null,null,null,null,null,null,null,"2019/2020"]
[null,null,null,null,null,null,null,null,null,null,null,null,null,null,null,null,null,null,null,null,null,null,null,null,null,null,null,"2020/2021"]
[null,null,null,null,null,null,null,null,null,null,null,null,null,null,null,null,null,null,null,null,null,null,null,null,null,null,null,"2021/2022"]
[]
[null,"منجز من طرف المكلف بالاستشارة ",null,null,"بتاريخ ",{"$f":"NOW()","v":"2020-06-18T19:22:29.630"}]
[null,null,null,null,null,null,null,null,null,"مدير المؤسسة "]

{"sheet":"26","index":26,"n_rows":55,"n_cols":30,"rows_kept":55,"cut":false,"hidden":false,"merged":[[54,9,54,10],[47,1,47,2],[47,7,47,8],[47,9,47,10],[47,11,47,12],[48,1,51,12],[53,1,53,3],[53,5,53,7],[45,1,45,2],[45,7,45,8],[45,9,45,10],[45,11,45,12],[46,7,46,8],[46,9,46,10],[46,11,46,12],[43,1,43,2],[43,7,43,8],[43,9,43,10],[43,11,43,12],[44,1,44,2],[44,7,44,8],[44,9,44,10],[44,11,44,12],[41,1,41,2],[41,7,41,8],[41,9,41,10],[41,11,41,12],[42,1,42,2],[42,7,42,8],[42,9,42,10],[42,11,42,12],[39,1,39,2],[39,7,39,8],[39,9,39,10],[39,11,39,12],[40,1,40,2],[40,7,40,8],[40,9,40,10],[40,11,40,12],[35,1,36,3],[38,1,38,2],[38,7,38,8],[38,9,38,10],[38,11,38,12],[29,1,29,12],[30,1,33,4],[30,5,30,6],[30,7,30,9],[30,10,30,12],[31,5,33,6],[31,7,33,9],[31,10,33,12],[24,7,24,8],[24,11,24,12],[27,1,28,3],[28,7,28,8],[28,11,28,12],[21,7,21,8],[21,11,21,12],[22,7,22,8],[22,11,22,12],[23,7,23,8],[23,11,23,12],[7,1,7,7],[7,9,7,12],[15,1,17,12],[19,1,19,3],[20,7,20,8],[20,11,20,12],[4,4,4,8],[4,9,4,12],[6,1,6,3],[6,9,6,10],[3,1,3,4],[0,4,0,9],[1,4,1,9],[2,1,2,4],[2,9,2,10],[2,11,2,12]]}
[null,null,null,null,{"$f":"HYPERLINK(\"#'Main Screen'!a1\",\"الجمهورية الجزائرية الديمقراطية الشعبية \")","v":"الجمهورية الجزائرية الديمقراطية الشعبية "}]
[null,null,null,null,"وزارة التربية الوطنيـــة "]
[null,"مديرية التربية لولايـــة الاغواط ",null,null,null,null,null,null,null,"السنة الدراسية ",null,"2019/2020"]
[null,"متوسطة سماعيني معمر تاجرونة "]
[null,null,null,null,"التقرير اليومي للاستشارة ",null,null,null,null,"2020-06-26",null,null,null,null,null,null,"2020-06-01"]
[null,null,null,null,null,null,null,null,null,null,null,null,null,null,null,null,"2020-06-02"]
[null,"مواظبـــة الاساتذة ",null,null,null,null,null,null,null,null,null,null,null,null,null,null,"2020-06-03"]
[null,"الفترة الصباحيـــــــــــة ",null,null,null,null,null,null,null,"الفترة المسائيــــة ",null,null,null,null,null,null,"2020-06-04"]
[null,"الرقم","الاسم و اللقب","المادة ","9--8","10--9","11--10","12--11",null,"15--14","16--15","17--16","الملاحظات",null,null,null,"2020-06-05"]
[null,1,"قدور بومقواس",null,null,null,null,null,null,"1م3","1م2","2م1",null,null,null,null,"2020-06-06"]
[null,2,"العربي قرمان ",null,null,null,null,null,null,null,null,null,null,null,null,null,"2020-06-07"]
[null,3,null,null,null,null,null,null,null,null,null,null,null,null,null,null,"2020-06-08",null,null,null,null,null,null,null,null,null,null,null,null,"1م1"]
[null,4,null,null,null,null,null,null,null,null,null,"2م2",null,null,null,null,"2020-06-09",null,null,null,null,null,null,null,null,null,null,null,null,"1م2"]
[null,5,null,null,null,null,null,null,null,null,null,null,null,null,null,null,"2020-06-10",null,null,null,null,null,null,null,null,null,null,null,null,"1م3"]
[null,6,null,null,null,null,null,null,null,null,null,null,null,null,null,null,"2020-06-11",null,null,null,null,null,null,null,null,null,null,"العربية ",null,"2م1"]
[null,"الاجراءات المتخذة :",null,null,null,null,null,null,null,null,null,null,null,null,null,null,"2020-06-12",null,null,null,null,null,null,null,null,null,null,"الفرنسية ",null,"2م2"]
[null,null,null,null,null,null,null,null,null,null,null,null,null,null,null,null,"2020-06-13",null,null,null,null,null,null,null,null,null,null,"الانجليزية ",null,"3م1"]
[null,null,null,null,null,null,null,null,null,null,null,null,null,null,null,null,"2020-06-14",null,null,null,null,null,null,null,null,null,null,"التربية الاسلامية ",null,"4م1"]
[null,null,null,null,null,null,null,null,null,null,null,null,null,null,null,null,"2020-06-15",null,null,null,null,null,null,null,null,null,null,"التربية المدنية ",null,"4م2"]
[null,"مواظبة موظفي الاستشارة ",null,null,null,null,null,null,null,null,null,null,null,null,null,null,"2020-06-16",null,null,null,null,null,null,null,null,null,null,"التاريخ والجغرافيا "]
[null,"الرقم","الاسم و اللقب","مدة التأخير","السبب",null,"الرقم","الاسم و اللقب",null,"صباحا","مساءا","الملاحظات ",null,null,null,null,"2020-06-17",null,null,null,null,null,null,null,null,null,null,"الرياضيات ",null,"دهكل أحمد"]
[null,1,null,null,null,null,1,null,null,null,null,null,null,null,null,null,"2020-06-18",null,null,null,null,null,null,null,null,null,null,"العلوم /ط",null,"طيفوري محمد"]
[null,2,null,null,null,null,2,null,null,null,null,null,null,null,null,null,"2020-06-19",null,null,null,null,null,null,null,null,null,null,"الفيزياء ",null,"قمقام دربالي"]
[null,3,null,null,null,null,3,null,null,null,null,null,null,null,null,null,"2020-06-20",null,null,null,null,null,null,null,null,null,null,"التربية الفنية "]
[null,4,null,null,null,null,4,null,null,null,null,null,null,null,null,null,"2020-06-21",null,null,null,null,null,null,null,null,null,null,"التربية الرياضية "]
[null,null,null,null,null,null,null,null,null,null,null,null,null,null,null,null,"2020-06-22"]
[null,null,null,null,null,null,null,null,null,null,null,null,null,null,null,null,"2020-06-23"]
[null,"وجبة الاطعــــــــــام ",null,null,null,null,null,null,null,null,null,null,null,null,null,null,"2020-06-24"]
[null,null,null,null,null,null,null,null,null,null,null,null,null,null,null,null,"2020-06-25"]
[null,"وجبــة الاطعام اليوميـــــــة ",null,null,null,null,null,null,null,null,null,null,null,null,null,null,"2020-06-26",null,null,null,null,null,null,null,null,null,null,"مباركة العابد"]
[null,"الوجبـــة",null,null,null,"عدد ن/داخلي",null,"الغائبون ",null,null,"الحاضرون",null,null,null,null,null,"2020-06-27",null,null,null,null,null,null,null,null,null,null,"بوعلام سهلي"]
[null,null,null,null,null,182,null,40,null,null,{"$f":"F32-$H$32","v":142},null,null,null,null,null,"2020-06-28",null,null,null,null,null,null,null,null,null,null,"ام الخير تهامي "]
[null,null,null,null,null,null,null,null,null,null,null,null,null,null,null,null,"2020-06-29",null,null,null,null,null,null,null,null,null,null,"خديجة بدراني "]
[null,null,null,null,null,null,null,null,null,null,null,null,null,null,null,null,"2020-06-30",null,null,null,null,null,null,null,null,null,null,"بوشوشة امحمدي"]
[null,null,null,null,null,null,null,null,null,null,null,null,null,null,null,null,null,null,null,null,null,null,null,null,null,null,null,"يعقوب كواهي "]
[null,"مواظبة التلاميذ ",null,null,null,null,null,null,null,null,null,null,null,null,null,null,null,null,null,null,null,null,null,null,null,null,null,"إبراهيم زريفي "]
[null,null,null,null,null,null,null,null,null,null,null,null,null,null,null,null,null,null,null,null,null,null,null,null,null,null,null,"محمد مشارة "]
[null,null,null,null,null,null,null,null,null,null,null,null,null,null,null,null,null,null,null,null,null,null,null,null,null,null,null,"شريف بدراني "]
[null,"المستوى ",null,"المسجلون","ذكــور","إنــاث","الغائبون","نسبة الغياب %",null,"الحاضرون",null,"نسبة الحاضرين %",null,null,null,null,null,null,null,null,null,null,null,null,null,null,null,"عبد القادر حساني "]
[null,"السنة الاولي متوسط 1",null,22,15,7,0,{"$f":"G40/$D$40","v":0},null,{"$f":"D40-$G$40","v":22},null,{"$f":"J40/$D$40","v":1}]
[null,"السنة الاولي متوسط 2",null,21,12,9,0,{"$f":"G41/$D$41","v":0},null,{"$f":"D41-G41","v":21},null,{"$f":"J41/$D$41","v":1},null,null,null,null,null,null,null,null,null,null,null,null,null,null,null,"قدور بومقواس"]
[null,"السنة الاولي متوسط 3",null,23,11,12,0,{"$f":"G42/$D$41","v":0},null,23,null,{"$f":"J42/$D$42","v":1},null,null,null,null,null,null,null,null,null,null,null,null,null,null,null,"العربي قرمان "]
[null,"السنة الثانية متوسط 1",null,31,15,16,0,0,null,31,null,{"$f":"J43/$D$43","v":1},null,null,null,null,null,null,null,null,null,null,null,null,null,null,null,"عبد القادر طيبي "]
[null,"السنة الثانية متوسط 2",null,33,17,16,0,0,null,33,null,{"$f":"J44/$D$44","v":1},null,null,null,null,null,null,null,null,null,null,null,null,null,null,null,"ميلود داودي "]
[null,"السنة الثالثة متوسط1",null,28,12,16,0,0,null,28,null,{"$f":"J45/$D$45","v":1},null,null,null,null,null,null,null,null,null,null,null,null,null,null,null,"رشيدة حطاب"]
[null,"السنة الثالثة متوسط 2",null,27,9,18,0,0,null,27,null,{"$f":"J46/$D$46","v":1},null,null,null,null,null,null,null,null,null,null,null,null,null,null,null,"مجدوب طلحة "]
[null,"السنة الرابعة متوسط 1",null,{"$f":"E47+F47","v":20},9,11,0,0,null,20,null,{"$f":"J47/$D$47","v":1},null,null,null,null,null,null,null,null,null,null,null,null,null,null,null,"مليود جليد "]
[null,"السنة الرابعة متوسط 2",null,{"$f":"E48+F48","v":23},11,12,0,0,null,23,null,{"$f":"J48/$D$48","v":1},null,null,null,null,null,null,null,null,null,null,null,null,null,null,null,"البشير قرمان "]
[null,"ملاحظــــات :"]
[null,null,null,null,null,null,null,null,null,null,null,null,null,null,null,null,null,null,null,null,null,null,null,null,null,null,null,"2019/2020"]
[null,null,null,null,null,null,null,null,null,null,null,null,null,null,null,null,null,null,null,null,null,null,null,null,null,null,null,"2020/2021"]
[null,null,null,null,null,null,null,null,null,null,null,null,null,null,null,null,null,null,null,null,null,null,null,null,null,null,null,"2021/2022"]
[]
[null,"منجز من طرف المكلف بالاستشارة ",null,null,"بتاريخ ",{"$f":"NOW()","v":"2020-06-18T19:22:29.630"}]
[null,null,null,null,null,null,null,null,null,"مدير المؤسسة "]

{"sheet":"27","index":27,"n_rows":55,"n_cols":30,"rows_kept":55,"cut":false,"hidden":false,"merged":[[54,9,54,10],[47,1,47,2],[47,7,47,8],[47,9,47,10],[47,11,47,12],[48,1,51,12],[53,1,53,3],[53,5,53,7],[45,1,45,2],[45,7,45,8],[45,9,45,10],[45,11,45,12],[46,7,46,8],[46,9,46,10],[46,11,46,12],[43,1,43,2],[43,7,43,8],[43,9,43,10],[43,11,43,12],[44,1,44,2],[44,7,44,8],[44,9,44,10],[44,11,44,12],[41,1,41,2],[41,7,41,8],[41,9,41,10],[41,11,41,12],[42,1,42,2],[42,7,42,8],[42,9,42,10],[42,11,42,12],[39,1,39,2],[39,7,39,8],[39,9,39,10],[39,11,39,12],[40,1,40,2],[40,7,40,8],[40,9,40,10],[40,11,40,12],[35,1,36,3],[38,1,38,2],[38,7,38,8],[38,9,38,10],[38,11,38,12],[29,1,29,12],[30,1,33,4],[30,5,30,6],[30,7,30,9],[30,10,30,12],[31,5,33,6],[31,7,33,9],[31,10,33,12],[24,7,24,8],[24,11,24,12],[27,1,28,3],[28,7,28,8],[28,11,28,12],[21,7,21,8],[21,11,21,12],[22,7,22,8],[22,11,22,12],[23,7,23,8],[23,11,23,12],[7,1,7,7],[7,9,7,12],[15,1,17,12],[19,1,19,3],[20,7,20,8],[20,11,20,12],[4,4,4,8],[4,9,4,12],[6,1,6,3],[6,9,6,10],[3,1,3,4],[0,4,0,9],[1,4,1,9],[2,1,2,4],[2,9,2,10],[2,11,2,12]]}
[null,null,null,null,{"$f":"HYPERLINK(\"#'Main Screen'!a1\",\"الجمهورية الجزائرية الديمقراطية الشعبية \")","v":"الجمهورية الجزائرية الديمقراطية الشعبية "}]
[null,null,null,null,"وزارة التربية الوطنيـــة "]
[null,"مديرية التربية لولايـــة الاغواط ",null,null,null,null,null,null,null,"السنة الدراسية ",null,"2019/2020"]
[null,"متوسطة سماعيني معمر تاجرونة "]
[null,null,null,null,"التقرير اليومي للاستشارة ",null,null,null,null,"2020-06-26",null,null,null,null,null,null,"2020-06-01"]
[null,null,null,null,null,null,null,null,null,null,null,null,null,null,null,null,"2020-06-02"]
[null,"مواظبـــة الاساتذة ",null,null,null,null,null,null,null,null,null,null,null,null,null,null,"2020-06-03"]
[null,"الفترة الصباحيـــــــــــة ",null,null,null,null,null,null,null,"الفترة المسائيــــة ",null,null,null,null,null,null,"2020-06-04"]
[null,"الرقم","الاسم و اللقب","المادة ","9--8","10--9","11--10","12--11",null,"15--14","16--15","17--16","الملاحظات",null,null,null,"2020-06-05"]
[null,1,"قدور بومقواس",null,null,null,null,null,null,"1م3","1م2","2م1",null,null,null,null,"2020-06-06"]
[null,2,"العربي قرمان ",null,null,null,null,null,null,null,null,null,null,null,null,null,"2020-06-07"]
[null,3,null,null,null,null,null,null,null,null,null,null,null,null,null,null,"2020-06-08",null,null,null,null,null,null,null,null,null,null,null,null,"1م1"]
[null,4,null,null,null,null,null,null,null,null,null,"2م2",null,null,null,null,"2020-06-09",null,null,null,null,null,null,null,null,null,null,null,null,"1م2"]
[null,5,null,null,null,null,null,null,null,null,null,null,null,null,null,null,"2020-06-10",null,null,null,null,null,null,null,null,null,null,null,null,"1م3"]
[null,6,null,null,null,null,null,null,null,null,null,null,null,null,null,null,"2020-06-11",null,null,null,null,null,null,null,null,null,null,"العربية ",null,"2م1"]
[null,"الاجراءات المتخذة :",null,null,null,null,null,null,null,null,null,null,null,null,null,null,"2020-06-12",null,null,null,null,null,null,null,null,null,null,"الفرنسية ",null,"2م2"]
[null,null,null,null,null,null,null,null,null,null,null,null,null,null,null,null,"2020-06-13",null,null,null,null,null,null,null,null,null,null,"الانجليزية ",null,"3م1"]
[null,null,null,null,null,null,null,null,null,null,null,null,null,null,null,null,"2020-06-14",null,null,null,null,null,null,null,null,null,null,"التربية الاسلامية ",null,"4م1"]
[null,null,null,null,null,null,null,null,null,null,null,null,null,null,null,null,"2020-06-15",null,null,null,null,null,null,null,null,null,null,"التربية المدنية ",null,"4م2"]
[null,"مواظبة موظفي الاستشارة ",null,null,null,null,null,null,null,null,null,null,null,null,null,null,"2020-06-16",null,null,null,null,null,null,null,null,null,null,"التاريخ والجغرافيا "]
[null,"الرقم","الاسم و اللقب","مدة التأخير","السبب",null,"الرقم","الاسم و اللقب",null,"صباحا","مساءا","الملاحظات ",null,null,null,null,"2020-06-17",null,null,null,null,null,null,null,null,null,null,"الرياضيات ",null,"دهكل أحمد"]
[null,1,null,null,null,null,1,null,null,null,null,null,null,null,null,null,"2020-06-18",null,null,null,null,null,null,null,null,null,null,"العلوم /ط",null,"طيفوري محمد"]
[null,2,null,null,null,null,2,null,null,null,null,null,null,null,null,null,"2020-06-19",null,null,null,null,null,null,null,null,null,null,"الفيزياء ",null,"قمقام دربالي"]
[null,3,null,null,null,null,3,null,null,null,null,null,null,null,null,null,"2020-06-20",null,null,null,null,null,null,null,null,null,null,"التربية الفنية "]
[null,4,null,null,null,null,4,null,null,null,null,null,null,null,null,null,"2020-06-21",null,null,null,null,null,null,null,null,null,null,"التربية الرياضية "]
[null,null,null,null,null,null,null,null,null,null,null,null,null,null,null,null,"2020-06-22"]
[null,null,null,null,null,null,null,null,null,null,null,null,null,null,null,null,"2020-06-23"]
[null,"وجبة الاطعــــــــــام ",null,null,null,null,null,null,null,null,null,null,null,null,null,null,"2020-06-24"]
[null,null,null,null,null,null,null,null,null,null,null,null,null,null,null,null,"2020-06-25"]
[null,"وجبــة الاطعام اليوميـــــــة ",null,null,null,null,null,null,null,null,null,null,null,null,null,null,"2020-06-26",null,null,null,null,null,null,null,null,null,null,"مباركة العابد"]
[null,"الوجبـــة",null,null,null,"عدد ن/داخلي",null,"الغائبون ",null,null,"الحاضرون",null,null,null,null,null,"2020-06-27",null,null,null,null,null,null,null,null,null,null,"بوعلام سهلي"]
[null,null,null,null,null,182,null,40,null,null,{"$f":"F32-$H$32","v":142},null,null,null,null,null,"2020-06-28",null,null,null,null,null,null,null,null,null,null,"ام الخير تهامي "]
[null,null,null,null,null,null,null,null,null,null,null,null,null,null,null,null,"2020-06-29",null,null,null,null,null,null,null,null,null,null,"خديجة بدراني "]
[null,null,null,null,null,null,null,null,null,null,null,null,null,null,null,null,"2020-06-30",null,null,null,null,null,null,null,null,null,null,"بوشوشة امحمدي"]
[null,null,null,null,null,null,null,null,null,null,null,null,null,null,null,null,null,null,null,null,null,null,null,null,null,null,null,"يعقوب كواهي "]
[null,"مواظبة التلاميذ ",null,null,null,null,null,null,null,null,null,null,null,null,null,null,null,null,null,null,null,null,null,null,null,null,null,"إبراهيم زريفي "]
[null,null,null,null,null,null,null,null,null,null,null,null,null,null,null,null,null,null,null,null,null,null,null,null,null,null,null,"محمد مشارة "]
[null,null,null,null,null,null,null,null,null,null,null,null,null,null,null,null,null,null,null,null,null,null,null,null,null,null,null,"شريف بدراني "]
[null,"المستوى ",null,"المسجلون","ذكــور","إنــاث","الغائبون","نسبة الغياب %",null,"الحاضرون",null,"نسبة الحاضرين %",null,null,null,null,null,null,null,null,null,null,null,null,null,null,null,"عبد القادر حساني "]
[null,"السنة الاولي متوسط 1",null,22,15,7,0,{"$f":"G40/$D$40","v":0},null,{"$f":"D40-$G$40","v":22},null,{"$f":"J40/$D$40","v":1}]
[null,"السنة الاولي متوسط 2",null,21,12,9,0,{"$f":"G41/$D$41","v":0},null,{"$f":"D41-G41","v":21},null,{"$f":"J41/$D$41","v":1},null,null,null,null,null,null,null,null,null,null,null,null,null,null,null,"قدور بومقواس"]
[null,"السنة الاولي متوسط 3",null,23,11,12,0,{"$f":"G42/$D$41","v":0},null,23,null,{"$f":"J42/$D$42","v":1},null,null,null,null,null,null,null,null,null,null,null,null,null,null,null,"العربي قرمان "]
[null,"السنة الثانية متوسط 1",null,31,15,16,0,0,null,31,null,{"$f":"J43/$D$43","v":1},null,null,null,null,null,null,null,null,null,null,null,null,null,null,null,"عبد القادر طيبي "]
[null,"السنة الثانية متوسط 2",null,33,17,16,0,0,null,33,null,{"$f":"J44/$D$44","v":1},null,null,null,null,null,null,null,null,null,null,null,null,null,null,null,"ميلود داودي "]
[null,"السنة الثالثة متوسط1",null,28,12,16,0,0,null,28,null,{"$f":"J45/$D$45","v":1},null,null,null,null,null,null,null,null,null,null,null,null,null,null,null,"رشيدة حطاب"]
[null,"السنة الثالثة متوسط 2",null,27,9,18,0,0,null,27,null,{"$f":"J46/$D$46","v":1},null,null,null,null,null,null,null,null,null,null,null,null,null,null,null,"مجدوب طلحة "]
[null,"السنة الرابعة متوسط 1",null,{"$f":"E47+F47","v":20},9,11,0,0,null,20,null,{"$f":"J47/$D$47","v":1},null,null,null,null,null,null,null,null,null,null,null,null,null,null,null,"مليود جليد "]
[null,"السنة الرابعة متوسط 2",null,{"$f":"E48+F48","v":23},11,12,0,0,null,23,null,{"$f":"J48/$D$48","v":1},null,null,null,null,null,null,null,null,null,null,null,null,null,null,null,"البشير قرمان "]
[null,"ملاحظــــات :"]
[null,null,null,null,null,null,null,null,null,null,null,null,null,null,null,null,null,null,null,null,null,null,null,null,null,null,null,"2019/2020"]
[null,null,null,null,null,null,null,null,null,null,null,null,null,null,null,null,null,null,null,null,null,null,null,null,null,null,null,"2020/2021"]
[null,null,null,null,null,null,null,null,null,null,null,null,null,null,null,null,null,null,null,null,null,null,null,null,null,null,null,"2021/2022"]
[]
[null,"منجز من طرف المكلف بالاستشارة ",null,null,"بتاريخ ",{"$f":"NOW()","v":"2020-06-18T19:22:29.630"}]
[null,null,null,null,null,null,null,null,null,"مدير المؤسسة "]

{"sheet":"28","index":28,"n_rows":55,"n_cols":30,"rows_kept":55,"cut":false,"hidden":false,"merged":[[54,9,54,10],[47,1,47,2],[47,7,47,8],[47,9,47,10],[47,11,47,12],[48,1,51,12],[53,1,53,3],[53,5,53,7],[45,1,45,2],[45,7,45,8],[45,9,45,10],[45,11,45,12],[46,7,46,8],[46,9,46,10],[46,11,46,12],[43,1,43,2],[43,7,43,8],[43,9,43,10],[43,11,43,12],[44,1,44,2],[44,7,44,8],[44,9,44,10],[44,11,44,12],[41,1,41,2],[41,7,41,8],[41,9,41,10],[41,11,41,12],[42,1,42,2],[42,7,42,8],[42,9,42,10],[42,11,42,12],[39,1,39,2],[39,7,39,8],[39,9,39,10],[39,11,39,12],[40,1,40,2],[40,7,40,8],[40,9,40,10],[40,11,40,12],[35,1,36,3],[38,1,38,2],[38,7,38,8],[38,9,38,10],[38,11,38,12],[29,1,29,12],[30,1,33,4],[30,5,30,6],[30,7,30,9],[30,10,30,12],[31,5,33,6],[31,7,33,9],[31,10,33,12],[24,7,24,8],[24,11,24,12],[27,1,28,3],[28,7,28,8],[28,11,28,12],[21,7,21,8],[21,11,21,12],[22,7,22,8],[22,11,22,12],[23,7,23,8],[23,11,23,12],[7,1,7,7],[7,9,7,12],[15,1,17,12],[19,1,19,3],[20,7,20,8],[20,11,20,12],[4,4,4,8],[4,9,4,12],[6,1,6,3],[6,9,6,10],[3,1,3,4],[0,4,0,9],[1,4,1,9],[2,1,2,4],[2,9,2,10],[2,11,2,12]]}
[null,null,null,null,{"$f":"HYPERLINK(\"#'Main Screen'!a1\",\"الجمهورية الجزائرية الديمقراطية الشعبية \")","v":"الجمهورية الجزائرية الديمقراطية الشعبية "}]
[null,null,null,null,"وزارة التربية الوطنيـــة "]
[null,"مديرية التربية لولايـــة الاغواط ",null,null,null,null,null,null,null,"السنة الدراسية ",null,"2019/2020"]
[null,"متوسطة سماعيني معمر تاجرونة "]
[null,null,null,null,"التقرير اليومي للاستشارة ",null,null,null,null,"2020-06-26",null,null,null,null,null,null,"2020-06-01"]
[null,null,null,null,null,null,null,null,null,null,null,null,null,null,null,null,"2020-06-02"]
[null,"مواظبـــة الاساتذة ",null,null,null,null,null,null,null,null,null,null,null,null,null,null,"2020-06-03"]
[null,"الفترة الصباحيـــــــــــة ",null,null,null,null,null,null,null,"الفترة المسائيــــة ",null,null,null,null,null,null,"2020-06-04"]
[null,"الرقم","الاسم و اللقب","المادة ","9--8","10--9","11--10","12--11",null,"15--14","16--15","17--16","الملاحظات",null,null,null,"2020-06-05"]
[null,1,"قدور بومقواس",null,null,null,null,null,null,"1م3","1م2","2م1",null,null,null,null,"2020-06-06"]
[null,2,"العربي قرمان ",null,null,null,null,null,null,null,null,null,null,null,null,null,"2020-06-07"]
[null,3,null,null,null,null,null,null,null,null,null,null,null,null,null,null,"2020-06-08",null,null,null,null,null,null,null,null,null,null,null,null,"1م1"]
[null,4,null,null,null,null,null,null,null,null,null,"2م2",null,null,null,null,"2020-06-09",null,null,null,null,null,null,null,null,null,null,null,null,"1م2"]
[null,5,null,null,null,null,null,null,null,null,null,null,null,null,null,null,"2020-06-10",null,null,null,null,null,null,null,null,null,null,null,null,"1م3"]
[null,6,null,null,null,null,null,null,null,null,null,null,null,null,null,null,"2020-06-11",null,null,null,null,null,null,null,null,null,null,"العربية ",null,"2م1"]
[null,"الاجراءات المتخذة :",null,null,null,null,null,null,null,null,null,null,null,null,null,null,"2020-06-12",null,null,null,null,null,null,null,null,null,null,"الفرنسية ",null,"2م2"]
[null,null,null,null,null,null,null,null,null,null,null,null,null,null,null,null,"2020-06-13",null,null,null,null,null,null,null,null,null,null,"الانجليزية ",null,"3م1"]
[null,null,null,null,null,null,null,null,null,null,null,null,null,null,null,null,"2020-06-14",null,null,null,null,null,null,null,null,null,null,"التربية الاسلامية ",null,"4م1"]
[null,null,null,null,null,null,null,null,null,null,null,null,null,null,null,null,"2020-06-15",null,null,null,null,null,null,null,null,null,null,"التربية المدنية ",null,"4م2"]
[null,"مواظبة موظفي الاستشارة ",null,null,null,null,null,null,null,null,null,null,null,null,null,null,"2020-06-16",null,null,null,null,null,null,null,null,null,null,"التاريخ والجغرافيا "]
[null,"الرقم","الاسم و اللقب","مدة التأخير","السبب",null,"الرقم","الاسم و اللقب",null,"صباحا","مساءا","الملاحظات ",null,null,null,null,"2020-06-17",null,null,null,null,null,null,null,null,null,null,"الرياضيات ",null,"دهكل أحمد"]
[null,1,null,null,null,null,1,null,null,null,null,null,null,null,null,null,"2020-06-18",null,null,null,null,null,null,null,null,null,null,"العلوم /ط",null,"طيفوري محمد"]
[null,2,null,null,null,null,2,null,null,null,null,null,null,null,null,null,"2020-06-19",null,null,null,null,null,null,null,null,null,null,"الفيزياء ",null,"قمقام دربالي"]
[null,3,null,null,null,null,3,null,null,null,null,null,null,null,null,null,"2020-06-20",null,null,null,null,null,null,null,null,null,null,"التربية الفنية "]
[null,4,null,null,null,null,4,null,null,null,null,null,null,null,null,null,"2020-06-21",null,null,null,null,null,null,null,null,null,null,"التربية الرياضية "]
[null,null,null,null,null,null,null,null,null,null,null,null,null,null,null,null,"2020-06-22"]
[null,null,null,null,null,null,null,null,null,null,null,null,null,null,null,null,"2020-06-23"]
[null,"وجبة الاطعــــــــــام ",null,null,null,null,null,null,null,null,null,null,null,null,null,null,"2020-06-24"]
[null,null,null,null,null,null,null,null,null,null,null,null,null,null,null,null,"2020-06-25"]
[null,"وجبــة الاطعام اليوميـــــــة ",null,null,null,null,null,null,null,null,null,null,null,null,null,null,"2020-06-26",null,null,null,null,null,null,null,null,null,null,"مباركة العابد"]
[null,"الوجبـــة",null,null,null,"عدد ن/داخلي",null,"الغائبون ",null,null,"الحاضرون",null,null,null,null,null,"2020-06-27",null,null,null,null,null,null,null,null,null,null,"بوعلام سهلي"]
[null,null,null,null,null,182,null,40,null,null,{"$f":"F32-$H$32","v":142},null,null,null,null,null,"2020-06-28",null,null,null,null,null,null,null,null,null,null,"ام الخير تهامي "]
[null,null,null,null,null,null,null,null,null,null,null,null,null,null,null,null,"2020-06-29",null,null,null,null,null,null,null,null,null,null,"خديجة بدراني "]
[null,null,null,null,null,null,null,null,null,null,null,null,null,null,null,null,"2020-06-30",null,null,null,null,null,null,null,null,null,null,"بوشوشة امحمدي"]
[null,null,null,null,null,null,null,null,null,null,null,null,null,null,null,null,null,null,null,null,null,null,null,null,null,null,null,"يعقوب كواهي "]
[null,"مواظبة التلاميذ ",null,null,null,null,null,null,null,null,null,null,null,null,null,null,null,null,null,null,null,null,null,null,null,null,null,"إبراهيم زريفي "]
[null,null,null,null,null,null,null,null,null,null,null,null,null,null,null,null,null,null,null,null,null,null,null,null,null,null,null,"محمد مشارة "]
[null,null,null,null,null,null,null,null,null,null,null,null,null,null,null,null,null,null,null,null,null,null,null,null,null,null,null,"شريف بدراني "]
[null,"المستوى ",null,"المسجلون","ذكــور","إنــاث","الغائبون","نسبة الغياب %",null,"الحاضرون",null,"نسبة الحاضرين %",null,null,null,null,null,null,null,null,null,null,null,null,null,null,null,"عبد القادر حساني "]
[null,"السنة الاولي متوسط 1",null,22,15,7,0,{"$f":"G40/$D$40","v":0},null,{"$f":"D40-$G$40","v":22},null,{"$f":"J40/$D$40","v":1}]
[null,"السنة الاولي متوسط 2",null,21,12,9,0,{"$f":"G41/$D$41","v":0},null,{"$f":"D41-G41","v":21},null,{"$f":"J41/$D$41","v":1},null,null,null,null,null,null,null,null,null,null,null,null,null,null,null,"قدور بومقواس"]
[null,"السنة الاولي متوسط 3",null,23,11,12,0,{"$f":"G42/$D$41","v":0},null,23,null,{"$f":"J42/$D$42","v":1},null,null,null,null,null,null,null,null,null,null,null,null,null,null,null,"العربي قرمان "]
[null,"السنة الثانية متوسط 1",null,31,15,16,0,0,null,31,null,{"$f":"J43/$D$43","v":1},null,null,null,null,null,null,null,null,null,null,null,null,null,null,null,"عبد القادر طيبي "]
[null,"السنة الثانية متوسط 2",null,33,17,16,0,0,null,33,null,{"$f":"J44/$D$44","v":1},null,null,null,null,null,null,null,null,null,null,null,null,null,null,null,"ميلود داودي "]
[null,"السنة الثالثة متوسط1",null,28,12,16,0,0,null,28,null,{"$f":"J45/$D$45","v":1},null,null,null,null,null,null,null,null,null,null,null,null,null,null,null,"رشيدة حطاب"]
[null,"السنة الثالثة متوسط 2",null,27,9,18,0,0,null,27,null,{"$f":"J46/$D$46","v":1},null,null,null,null,null,null,null,null,null,null,null,null,null,null,null,"مجدوب طلحة "]
[null,"السنة الرابعة متوسط 1",null,{"$f":"E47+F47","v":20},9,11,0,0,null,20,null,{"$f":"J47/$D$47","v":1},null,null,null,null,null,null,null,null,null,null,null,null,null,null,null,"مليود جليد "]
[null,"السنة الرابعة متوسط 2",null,{"$f":"E48+F48","v":23},11,12,0,0,null,23,null,{"$f":"J48/$D$48","v":1},null,null,null,null,null,null,null,null,null,null,null,null,null,null,null,"البشير قرمان "]
[null,"ملاحظــــات :"]
[null,null,null,null,null,null,null,null,null,null,null,null,null,null,null,null,null,null,null,null,null,null,null,null,null,null,null,"2019/2020"]
[null,null,null,null,null,null,null,null,null,null,null,null,null,null,null,null,null,null,null,null,null,null,null,null,null,null,null,"2020/2021"]
[null,null,null,null,null,null,null,null,null,null,null,null,null,null,null,null,null,null,null,null,null,null,null,null,null,null,null,"2021/2022"]
[]
[null,"منجز من طرف المكلف بالاستشارة ",null,null,"بتاريخ ",{"$f":"NOW()","v":"2020-06-18T19:22:29.630"}]
[null,null,null,null,null,null,null,null,null,"مدير المؤسسة "]

{"sheet":"29","index":29,"n_rows":55,"n_cols":30,"rows_kept":55,"cut":false,"hidden":false,"merged":[[54,9,54,10],[47,1,47,2],[47,7,47,8],[47,9,47,10],[47,11,47,12],[48,1,51,12],[53,1,53,3],[53,5,53,7],[45,1,45,2],[45,7,45,8],[45,9,45,10],[45,11,45,12],[46,7,46,8],[46,9,46,10],[46,11,46,12],[43,1,43,2],[43,7,43,8],[43,9,43,10],[43,11,43,12],[44,1,44,2],[44,7,44,8],[44,9,44,10],[44,11,44,12],[41,1,41,2],[41,7,41,8],[41,9,41,10],[41,11,41,12],[42,1,42,2],[42,7,42,8],[42,9,42,10],[42,11,42,12],[39,1,39,2],[39,7,39,8],[39,9,39,10],[39,11,39,12],[40,1,40,2],[40,7,40,8],[40,9,40,10],[40,11,40,12],[35,1,36,3],[38,1,38,2],[38,7,38,8],[38,9,38,10],[38,11,38,12],[29,1,29,12],[30,1,33,4],[30,5,30,6],[30,7,30,9],[30,10,30,12],[31,5,33,6],[31,7,33,9],[31,10,33,12],[24,7,24,8],[24,11,24,12],[27,1,28,3],[28,7,28,8],[28,11,28,12],[21,7,21,8],[21,11,21,12],[22,7,22,8],[22,11,22,12],[23,7,23,8],[23,11,23,12],[7,1,7,7],[7,9,7,12],[15,1,17,12],[19,1,19,3],[20,7,20,8],[20,11,20,12],[4,4,4,8],[4,9,4,12],[6,1,6,3],[6,9,6,10],[3,1,3,4],[0,4,0,9],[1,4,1,9],[2,1,2,4],[2,9,2,10],[2,11,2,12]]}
[null,null,null,null,{"$f":"HYPERLINK(\"#'Main Screen'!a1\",\"الجمهورية الجزائرية الديمقراطية الشعبية \")","v":"الجمهورية الجزائرية الديمقراطية الشعبية "}]
[null,null,null,null,"وزارة التربية الوطنيـــة "]
[null,"مديرية التربية لولايـــة الاغواط ",null,null,null,null,null,null,null,"السنة الدراسية ",null,"2019/2020"]
[null,"متوسطة سماعيني معمر تاجرونة "]
[null,null,null,null,"التقرير اليومي للاستشارة ",null,null,null,null,"2020-06-26",null,null,null,null,null,null,"2020-06-01"]
[null,null,null,null,null,null,null,null,null,null,null,null,null,null,null,null,"2020-06-02"]
[null,"مواظبـــة الاساتذة ",null,null,null,null,null,null,null,null,null,null,null,null,null,null,"2020-06-03"]
[null,"الفترة الصباحيـــــــــــة ",null,null,null,null,null,null,null,"الفترة المسائيــــة ",null,null,null,null,null,null,"2020-06-04"]
[null,"الرقم","الاسم و اللقب","المادة ","9--8","10--9","11--10","12--11",null,"15--14","16--15","17--16","الملاحظات",null,null,null,"2020-06-05"]
[null,1,"قدور بومقواس",null,null,null,null,null,null,"1م3","1م2","2م1",null,null,null,null,"2020-06-06"]
[null,2,"العربي قرمان ",null,null,null,null,null,null,null,null,null,null,null,null,null,"2020-06-07"]
[null,3,null,null,null,null,null,null,null,null,null,null,null,null,null,null,"2020-06-08",null,null,null,null,null,null,null,null,null,null,null,null,"1م1"]
[null,4,null,null,null,null,null,null,null,null,null,"2م2",null,null,null,null,"2020-06-09",null,null,null,null,null,null,null,null,null,null,null,null,"1م2"]
[null,5,null,null,null,null,null,null,null,null,null,null,null,null,null,null,"2020-06-10",null,null,null,null,null,null,null,null,null,null,null,null,"1م3"]
[null,6,null,null,null,null,null,null,null,null,null,null,null,null,null,null,"2020-06-11",null,null,null,null,null,null,null,null,null,null,"العربية ",null,"2م1"]
[null,"الاجراءات المتخذة :",null,null,null,null,null,null,null,null,null,null,null,null,null,null,"2020-06-12",null,null,null,null,null,null,null,null,null,null,"الفرنسية ",null,"2م2"]
[null,null,null,null,null,null,null,null,null,null,null,null,null,null,null,null,"2020-06-13",null,null,null,null,null,null,null,null,null,null,"الانجليزية ",null,"3م1"]
[null,null,null,null,null,null,null,null,null,null,null,null,null,null,null,null,"2020-06-14",null,null,null,null,null,null,null,null,null,null,"التربية الاسلامية ",null,"4م1"]
[null,null,null,null,null,null,null,null,null,null,null,null,null,null,null,null,"2020-06-15",null,null,null,null,null,null,null,null,null,null,"التربية المدنية ",null,"4م2"]
[null,"مواظبة موظفي الاستشارة ",null,null,null,null,null,null,null,null,null,null,null,null,null,null,"2020-06-16",null,null,null,null,null,null,null,null,null,null,"التاريخ والجغرافيا "]
[null,"الرقم","الاسم و اللقب","مدة التأخير","السبب",null,"الرقم","الاسم و اللقب",null,"صباحا","مساءا","الملاحظات ",null,null,null,null,"2020-06-17",null,null,null,null,null,null,null,null,null,null,"الرياضيات ",null,"دهكل أحمد"]
[null,1,null,null,null,null,1,null,null,null,null,null,null,null,null,null,"2020-06-18",null,null,null,null,null,null,null,null,null,null,"العلوم /ط",null,"طيفوري محمد"]
[null,2,null,null,null,null,2,null,null,null,null,null,null,null,null,null,"2020-06-19",null,null,null,null,null,null,null,null,null,null,"الفيزياء ",null,"قمقام دربالي"]
[null,3,null,null,null,null,3,null,null,null,null,null,null,null,null,null,"2020-06-20",null,null,null,null,null,null,null,null,null,null,"التربية الفنية "]
[null,4,null,null,null,null,4,null,null,null,null,null,null,null,null,null,"2020-06-21",null,null,null,null,null,null,null,null,null,null,"التربية الرياضية "]
[null,null,null,null,null,null,null,null,null,null,null,null,null,null,null,null,"2020-06-22"]
[null,null,null,null,null,null,null,null,null,null,null,null,null,null,null,null,"2020-06-23"]
[null,"وجبة الاطعــــــــــام ",null,null,null,null,null,null,null,null,null,null,null,null,null,null,"2020-06-24"]
[null,null,null,null,null,null,null,null,null,null,null,null,null,null,null,null,"2020-06-25"]
[null,"وجبــة الاطعام اليوميـــــــة ",null,null,null,null,null,null,null,null,null,null,null,null,null,null,"2020-06-26",null,null,null,null,null,null,null,null,null,null,"مباركة العابد"]
[null,"الوجبـــة",null,null,null,"عدد ن/داخلي",null,"الغائبون ",null,null,"الحاضرون",null,null,null,null,null,"2020-06-27",null,null,null,null,null,null,null,null,null,null,"بوعلام سهلي"]
[null,null,null,null,null,182,null,40,null,null,{"$f":"F32-$H$32","v":142},null,null,null,null,null,"2020-06-28",null,null,null,null,null,null,null,null,null,null,"ام الخير تهامي "]
[null,null,null,null,null,null,null,null,null,null,null,null,null,null,null,null,"2020-06-29",null,null,null,null,null,null,null,null,null,null,"خديجة بدراني "]
[null,null,null,null,null,null,null,null,null,null,null,null,null,null,null,null,"2020-06-30",null,null,null,null,null,null,null,null,null,null,"بوشوشة امحمدي"]
[null,null,null,null,null,null,null,null,null,null,null,null,null,null,null,null,null,null,null,null,null,null,null,null,null,null,null,"يعقوب كواهي "]
[null,"مواظبة التلاميذ ",null,null,null,null,null,null,null,null,null,null,null,null,null,null,null,null,null,null,null,null,null,null,null,null,null,"إبراهيم زريفي "]
[null,null,null,null,null,null,null,null,null,null,null,null,null,null,null,null,null,null,null,null,null,null,null,null,null,null,null,"محمد مشارة "]
[null,null,null,null,null,null,null,null,null,null,null,null,null,null,null,null,null,null,null,null,null,null,null,null,null,null,null,"شريف بدراني "]
[null,"المستوى ",null,"المسجلون","ذكــور","إنــاث","الغائبون","نسبة الغياب %",null,"الحاضرون",null,"نسبة الحاضرين %",null,null,null,null,null,null,null,null,null,null,null,null,null,null,null,"عبد القادر حساني "]
[null,"السنة الاولي متوسط 1",null,22,15,7,0,{"$f":"G40/$D$40","v":0},null,{"$f":"D40-$G$40","v":22},null,{"$f":"J40/$D$40","v":1}]
[null,"السنة الاولي متوسط 2",null,21,12,9,0,{"$f":"G41/$D$41","v":0},null,{"$f":"D41-G41","v":21},null,{"$f":"J41/$D$41","v":1},null,null,null,null,null,null,null,null,null,null,null,null,null,null,null,"قدور بومقواس"]
[null,"السنة الاولي متوسط 3",null,23,11,12,0,{"$f":"G42/$D$41","v":0},null,23,null,{"$f":"J42/$D$42","v":1},null,null,null,null,null,null,null,null,null,null,null,null,null,null,null,"العربي قرمان "]
[null,"السنة الثانية متوسط 1",null,31,15,16,0,0,null,31,null,{"$f":"J43/$D$43","v":1},null,null,null,null,null,null,null,null,null,null,null,null,null,null,null,"عبد القادر طيبي "]
[null,"السنة الثانية متوسط 2",null,33,17,16,0,0,null,33,null,{"$f":"J44/$D$44","v":1},null,null,null,null,null,null,null,null,null,null,null,null,null,null,null,"ميلود داودي "]
[null,"السنة الثالثة متوسط1",null,28,12,16,0,0,null,28,null,{"$f":"J45/$D$45","v":1},null,null,null,null,null,null,null,null,null,null,null,null,null,null,null,"رشيدة حطاب"]
[null,"السنة الثالثة متوسط 2",null,27,9,18,0,0,null,27,null,{"$f":"J46/$D$46","v":1},null,null,null,null,null,null,null,null,null,null,null,null,null,null,null,"مجدوب طلحة "]
[null,"السنة الرابعة متوسط 1",null,{"$f":"E47+F47","v":20},9,11,0,0,null,20,null,{"$f":"J47/$D$47","v":1},null,null,null,null,null,null,null,null,null,null,null,null,null,null,null,"مليود جليد "]
[null,"السنة الرابعة متوسط 2",null,{"$f":"E48+F48","v":23},11,12,0,0,null,23,null,{"$f":"J48/$D$48","v":1},null,null,null,null,null,null,null,null,null,null,null,null,null,null,null,"البشير قرمان "]
[null,"ملاحظــــات :"]
[null,null,null,null,null,null,null,null,null,null,null,null,null,null,null,null,null,null,null,null,null,null,null,null,null,null,null,"2019/2020"]
[null,null,null,null,null,null,null,null,null,null,null,null,null,null,null,null,null,null,null,null,null,null,null,null,null,null,null,"2020/2021"]
[null,null,null,null,null,null,null,null,null,null,null,null,null,null,null,null,null,null,null,null,null,null,null,null,null,null,null,"2021/2022"]
[]
[null,"منجز من طرف المكلف بالاستشارة ",null,null,"بتاريخ ",{"$f":"NOW()","v":"2020-06-18T19:22:29.630"}]
[null,null,null,null,null,null,null,null,null,"مدير المؤسسة "]

{"sheet":"30","index":30,"n_rows":55,"n_cols":30,"rows_kept":55,"cut":false,"hidden":false,"merged":[[54,9,54,10],[47,1,47,2],[47,7,47,8],[47,9,47,10],[47,11,47,12],[48,1,51,12],[53,1,53,3],[53,5,53,7],[45,1,45,2],[45,7,45,8],[45,9,45,10],[45,11,45,12],[46,7,46,8],[46,9,46,10],[46,11,46,12],[43,1,43,2],[43,7,43,8],[43,9,43,10],[43,11,43,12],[44,1,44,2],[44,7,44,8],[44,9,44,10],[44,11,44,12],[41,1,41,2],[41,7,41,8],[41,9,41,10],[41,11,41,12],[42,1,42,2],[42,7,42,8],[42,9,42,10],[42,11,42,12],[39,1,39,2],[39,7,39,8],[39,9,39,10],[39,11,39,12],[40,1,40,2],[40,7,40,8],[40,9,40,10],[40,11,40,12],[35,1,36,3],[38,1,38,2],[38,7,38,8],[38,9,38,10],[38,11,38,12],[29,1,29,12],[30,1,33,4],[30,5,30,6],[30,7,30,9],[30,10,30,12],[31,5,33,6],[31,7,33,9],[31,10,33,12],[24,7,24,8],[24,11,24,12],[27,1,28,3],[28,7,28,8],[28,11,28,12],[21,7,21,8],[21,11,21,12],[22,7,22,8],[22,11,22,12],[23,7,23,8],[23,11,23,12],[7,1,7,7],[7,9,7,12],[15,1,17,12],[19,1,19,3],[20,7,20,8],[20,11,20,12],[4,4,4,8],[4,9,4,12],[6,1,6,3],[6,9,6,10],[3,1,3,4],[0,4,0,9],[1,4,1,9],[2,1,2,4],[2,9,2,10],[2,11,2,12]]}
[null,null,null,null,{"$f":"HYPERLINK(\"#'Main Screen'!a1\",\"الجمهورية الجزائرية الديمقراطية الشعبية \")","v":"الجمهورية الجزائرية الديمقراطية الشعبية "}]
[null,null,null,null,"وزارة التربية الوطنيـــة "]
[null,"مديرية التربية لولايـــة الاغواط ",null,null,null,null,null,null,null,"السنة الدراسية ",null,"2019/2020"]
[null,"متوسطة سماعيني معمر تاجرونة "]
[null,null,null,null,"التقرير اليومي للاستشارة ",null,null,null,null,"2020-06-26",null,null,null,null,null,null,"2020-06-01"]
[null,null,null,null,null,null,null,null,null,null,null,null,null,null,null,null,"2020-06-02"]
[null,"مواظبـــة الاساتذة ",null,null,null,null,null,null,null,null,null,null,null,null,null,null,"2020-06-03"]
[null,"الفترة الصباحيـــــــــــة ",null,null,null,null,null,null,null,"الفترة المسائيــــة ",null,null,null,null,null,null,"2020-06-04"]
[null,"الرقم","الاسم و اللقب","المادة ","9--8","10--9","11--10","12--11",null,"15--14","16--15","17--16","الملاحظات",null,null,null,"2020-06-05"]
[null,1,"قدور بومقواس",null,null,null,null,null,null,"1م3","1م2","2م1",null,null,null,null,"2020-06-06"]
[null,2,"العربي قرمان ",null,null,null,null,null,null,null,null,null,null,null,null,null,"2020-06-07"]
[null,3,null,null,null,null,null,null,null,null,null,null,null,null,null,null,"2020-06-08",null,null,null,null,null,null,null,null,null,null,null,null,"1م1"]
[null,4,null,null,null,null,null,null,null,null,null,"2م2",null,null,null,null,"2020-06-09",null,null,null,null,null,null,null,null,null,null,null,null,"1م2"]
[null,5,null,null,null,null,null,null,null,null,null,null,null,null,null,null,"2020-06-10",null,null,null,null,null,null,null,null,null,null,null,null,"1م3"]
[null,6,null,null,null,null,null,null,null,null,null,null,null,null,null,null,"2020-06-11",null,null,null,null,null,null,null,null,null,null,"العربية ",null,"2م1"]
[null,"الاجراءات المتخذة :",null,null,null,null,null,null,null,null,null,null,null,null,null,null,"2020-06-12",null,null,null,null,null,null,null,null,null,null,"الفرنسية ",null,"2م2"]
[null,null,null,null,null,null,null,null,null,null,null,null,null,null,null,null,"2020-06-13",null,null,null,null,null,null,null,null,null,null,"الانجليزية ",null,"3م1"]
[null,null,null,null,null,null,null,null,null,null,null,null,null,null,null,null,"2020-06-14",null,null,null,null,null,null,null,null,null,null,"التربية الاسلامية ",null,"4م1"]
[null,null,null,null,null,null,null,null,null,null,null,null,null,null,null,null,"2020-06-15",null,null,null,null,null,null,null,null,null,null,"التربية المدنية ",null,"4م2"]
[null,"مواظبة موظفي الاستشارة ",null,null,null,null,null,null,null,null,null,null,null,null,null,null,"2020-06-16",null,null,null,null,null,null,null,null,null,null,"التاريخ والجغرافيا "]
[null,"الرقم","الاسم و اللقب","مدة التأخير","السبب",null,"الرقم","الاسم و اللقب",null,"صباحا","مساءا","الملاحظات ",null,null,null,null,"2020-06-17",null,null,null,null,null,null,null,null,null,null,"الرياضيات ",null,"دهكل أحمد"]
[null,1,null,null,null,null,1,null,null,null,null,null,null,null,null,null,"2020-06-18",null,null,null,null,null,null,null,null,null,null,"العلوم /ط",null,"طيفوري محمد"]
[null,2,null,null,null,null,2,null,null,null,null,null,null,null,null,null,"2020-06-19",null,null,null,null,null,null,null,null,null,null,"الفيزياء ",null,"قمقام دربالي"]
[null,3,null,null,null,null,3,null,null,null,null,null,null,null,null,null,"2020-06-20",null,null,null,null,null,null,null,null,null,null,"التربية الفنية "]
[null,4,null,null,null,null,4,null,null,null,null,null,null,null,null,null,"2020-06-21",null,null,null,null,null,null,null,null,null,null,"التربية الرياضية "]
[null,null,null,null,null,null,null,null,null,null,null,null,null,null,null,null,"2020-06-22"]
[null,null,null,null,null,null,null,null,null,null,null,null,null,null,null,null,"2020-06-23"]
[null,"وجبة الاطعــــــــــام ",null,null,null,null,null,null,null,null,null,null,null,null,null,null,"2020-06-24"]
[null,null,null,null,null,null,null,null,null,null,null,null,null,null,null,null,"2020-06-25"]
[null,"وجبــة الاطعام اليوميـــــــة ",null,null,null,null,null,null,null,null,null,null,null,null,null,null,"2020-06-26",null,null,null,null,null,null,null,null,null,null,"مباركة العابد"]
[null,"الوجبـــة",null,null,null,"عدد ن/داخلي",null,"الغائبون ",null,null,"الحاضرون",null,null,null,null,null,"2020-06-27",null,null,null,null,null,null,null,null,null,null,"بوعلام سهلي"]
[null,null,null,null,null,182,null,40,null,null,{"$f":"F32-$H$32","v":142},null,null,null,null,null,"2020-06-28",null,null,null,null,null,null,null,null,null,null,"ام الخير تهامي "]
[null,null,null,null,null,null,null,null,null,null,null,null,null,null,null,null,"2020-06-29",null,null,null,null,null,null,null,null,null,null,"خديجة بدراني "]
[null,null,null,null,null,null,null,null,null,null,null,null,null,null,null,null,"2020-06-30",null,null,null,null,null,null,null,null,null,null,"بوشوشة امحمدي"]
[null,null,null,null,null,null,null,null,null,null,null,null,null,null,null,null,null,null,null,null,null,null,null,null,null,null,null,"يعقوب كواهي "]
[null,"مواظبة التلاميذ ",null,null,null,null,null,null,null,null,null,null,null,null,null,null,null,null,null,null,null,null,null,null,null,null,null,"إبراهيم زريفي "]
[null,null,null,null,null,null,null,null,null,null,null,null,null,null,null,null,null,null,null,null,null,null,null,null,null,null,null,"محمد مشارة "]
[null,null,null,null,null,null,null,null,null,null,null,null,null,null,null,null,null,null,null,null,null,null,null,null,null,null,null,"شريف بدراني "]
[null,"المستوى ",null,"المسجلون","ذكــور","إنــاث","الغائبون","نسبة الغياب %",null,"الحاضرون",null,"نسبة الحاضرين %",null,null,null,null,null,null,null,null,null,null,null,null,null,null,null,"عبد القادر حساني "]
[null,"السنة الاولي متوسط 1",null,22,15,7,0,{"$f":"G40/$D$40","v":0},null,{"$f":"D40-$G$40","v":22},null,{"$f":"J40/$D$40","v":1}]
[null,"السنة الاولي متوسط 2",null,21,12,9,0,{"$f":"G41/$D$41","v":0},null,{"$f":"D41-G41","v":21},null,{"$f":"J41/$D$41","v":1},null,null,null,null,null,null,null,null,null,null,null,null,null,null,null,"قدور بومقواس"]
[null,"السنة الاولي متوسط 3",null,23,11,12,0,{"$f":"G42/$D$41","v":0},null,23,null,{"$f":"J42/$D$42","v":1},null,null,null,null,null,null,null,null,null,null,null,null,null,null,null,"العربي قرمان "]
[null,"السنة الثانية متوسط 1",null,31,15,16,0,0,null,31,null,{"$f":"J43/$D$43","v":1},null,null,null,null,null,null,null,null,null,null,null,null,null,null,null,"عبد القادر طيبي "]
[null,"السنة الثانية متوسط 2",null,33,17,16,0,0,null,33,null,{"$f":"J44/$D$44","v":1},null,null,null,null,null,null,null,null,null,null,null,null,null,null,null,"ميلود داودي "]
[null,"السنة الثالثة متوسط1",null,28,12,16,0,0,null,28,null,{"$f":"J45/$D$45","v":1},null,null,null,null,null,null,null,null,null,null,null,null,null,null,null,"رشيدة حطاب"]
[null,"السنة الثالثة متوسط 2",null,27,9,18,0,0,null,27,null,{"$f":"J46/$D$46","v":1},null,null,null,null,null,null,null,null,null,null,null,null,null,null,null,"مجدوب طلحة "]
[null,"السنة الرابعة متوسط 1",null,{"$f":"E47+F47","v":20},9,11,0,0,null,20,null,{"$f":"J47/$D$47","v":1},null,null,null,null,null,null,null,null,null,null,null,null,null,null,null,"مليود جليد "]
[null,"السنة الرابعة متوسط 2",null,{"$f":"E48+F48","v":23},11,12,0,0,null,23,null,{"$f":"J48/$D$48","v":1},null,null,null,null,null,null,null,null,null,null,null,null,null,null,null,"البشير قرمان "]
[null,"ملاحظــــات :"]
[null,null,null,null,null,null,null,null,null,null,null,null,null,null,null,null,null,null,null,null,null,null,null,null,null,null,null,"2019/2020"]
[null,null,null,null,null,null,null,null,null,null,null,null,null,null,null,null,null,null,null,null,null,null,null,null,null,null,null,"2020/2021"]
[null,null,null,null,null,null,null,null,null,null,null,null,null,null,null,null,null,null,null,null,null,null,null,null,null,null,null,"2021/2022"]
[]
[null,"منجز من طرف المكلف بالاستشارة ",null,null,"بتاريخ ",{"$f":"NOW()","v":"2020-06-18T19:22:29.630"}]
[null,null,null,null,null,null,null,null,null,"مدير المؤسسة "]

{"sheet":"31","index":31,"n_rows":55,"n_cols":30,"rows_kept":55,"cut":false,"hidden":false,"merged":[[54,9,54,10],[47,1,47,2],[47,7,47,8],[47,9,47,10],[47,11,47,12],[48,1,51,12],[53,1,53,3],[53,5,53,7],[45,1,45,2],[45,7,45,8],[45,9,45,10],[45,11,45,12],[46,7,46,8],[46,9,46,10],[46,11,46,12],[43,1,43,2],[43,7,43,8],[43,9,43,10],[43,11,43,12],[44,1,44,2],[44,7,44,8],[44,9,44,10],[44,11,44,12],[41,1,41,2],[41,7,41,8],[41,9,41,10],[41,11,41,12],[42,1,42,2],[42,7,42,8],[42,9,42,10],[42,11,42,12],[39,1,39,2],[39,7,39,8],[39,9,39,10],[39,11,39,12],[40,1,40,2],[40,7,40,8],[40,9,40,10],[40,11,40,12],[35,1,36,3],[38,1,38,2],[38,7,38,8],[38,9,38,10],[38,11,38,12],[29,1,29,12],[30,1,33,4],[30,5,30,6],[30,7,30,9],[30,10,30,12],[31,5,33,6],[31,7,33,9],[31,10,33,12],[24,7,24,8],[24,11,24,12],[27,1,28,3],[28,7,28,8],[28,11,28,12],[21,7,21,8],[21,11,21,12],[22,7,22,8],[22,11,22,12],[23,7,23,8],[23,11,23,12],[7,1,7,7],[7,9,7,12],[15,1,17,12],[19,1,19,3],[20,7,20,8],[20,11,20,12],[4,4,4,8],[4,9,4,12],[6,1,6,3],[6,9,6,10],[3,1,3,4],[0,4,0,9],[1,4,1,9],[2,1,2,4],[2,9,2,10],[2,11,2,12]]}
[null,null,null,null,{"$f":"HYPERLINK(\"#'Main Screen'!a1\",\"الجمهورية الجزائرية الديمقراطية الشعبية \")","v":"الجمهورية الجزائرية الديمقراطية الشعبية "}]
[null,null,null,null,"وزارة التربية الوطنيـــة "]
[null,"مديرية التربية لولايـــة الاغواط ",null,null,null,null,null,null,null,"السنة الدراسية ",null,"2019/2020"]
[null,"متوسطة سماعيني معمر تاجرونة "]
[null,null,null,null,"التقرير اليومي للاستشارة ",null,null,null,null,"2020-06-11",null,null,null,null,null,null,"2020-06-01"]
[null,null,null,null,null,null,null,null,null,null,null,null,null,null,null,null,"2020-06-02"]
[null,"مواظبـــة الاساتذة ",null,null,null,null,null,null,null,null,null,null,null,null,null,null,"2020-06-03"]
[null,"الفترة الصباحيـــــــــــة ",null,null,null,null,null,null,null,"الفترة المسائيــــة ",null,null,null,null,null,null,"2020-06-04"]
[null,"الرقم","الاسم و اللقب","المادة ","9--8","10--9","11--10","12--11",null,"15--14","16--15","17--16","الملاحظات",null,null,null,"2020-06-05"]
[null,1,"قدور بومقواس",null,null,null,null,null,null,"1م3","1م2","2م1",null,null,null,null,"2020-06-06"]
[null,2,"العربي قرمان ",null,null,null,null,null,null,null,null,null,null,null,null,null,"2020-06-07"]
[null,3,null,null,null,null,null,null,null,null,null,null,null,null,null,null,"2020-06-08",null,null,null,null,null,null,null,null,null,null,null,null,"1م1"]
[null,4,null,null,null,null,null,null,null,null,null,"2م2",null,null,null,null,"2020-06-09",null,null,null,null,null,null,null,null,null,null,null,null,"1م2"]
[null,5,null,null,null,null,null,null,null,null,null,null,null,null,null,null,"2020-06-10",null,null,null,null,null,null,null,null,null,null,null,null,"1م3"]
[null,6,null,null,null,null,null,null,null,null,null,null,null,null,null,null,"2020-06-11",null,null,null,null,null,null,null,null,null,null,"العربية ",null,"2م1"]
[null,"الاجراءات المتخذة :",null,null,null,null,null,null,null,null,null,null,null,null,null,null,"2020-06-12",null,null,null,null,null,null,null,null,null,null,"الفرنسية ",null,"2م2"]
[null,null,null,null,null,null,null,null,null,null,null,null,null,null,null,null,"2020-06-13",null,null,null,null,null,null,null,null,null,null,"الانجليزية ",null,"3م1"]
[null,null,null,null,null,null,null,null,null,null,null,null,null,null,null,null,"2020-06-14",null,null,null,null,null,null,null,null,null,null,"التربية الاسلامية ",null,"4م1"]
[null,null,null,null,null,null,null,null,null,null,null,null,null,null,null,null,"2020-06-15",null,null,null,null,null,null,null,null,null,null,"التربية المدنية ",null,"4م2"]
[null,"مواظبة موظفي الاستشارة ",null,null,null,null,null,null,null,null,null,null,null,null,null,null,"2020-06-16",null,null,null,null,null,null,null,null,null,null,"التاريخ والجغرافيا "]
[null,"الرقم","الاسم و اللقب","مدة التأخير","السبب",null,"الرقم","الاسم و اللقب",null,"صباحا","مساءا","الملاحظات ",null,null,null,null,"2020-06-17",null,null,null,null,null,null,null,null,null,null,"الرياضيات ",null,"دهكل أحمد"]
[null,1,null,null,null,null,1,null,null,null,null,null,null,null,null,null,"2020-06-18",null,null,null,null,null,null,null,null,null,null,"العلوم /ط",null,"طيفوري محمد"]
[null,2,null,null,null,null,2,null,null,null,null,null,null,null,null,null,"2020-06-19",null,null,null,null,null,null,null,null,null,null,"الفيزياء ",null,"قمقام دربالي"]
[null,3,null,null,null,null,3,null,null,null,null,null,null,null,null,null,"2020-06-20",null,null,null,null,null,null,null,null,null,null,"التربية الفنية "]
[null,4,null,null,null,null,4,null,null,null,null,null,null,null,null,null,"2020-06-21",null,null,null,null,null,null,null,null,null,null,"التربية الرياضية "]
[null,null,null,null,null,null,null,null,null,null,null,null,null,null,null,null,"2020-06-22"]
[null,null,null,null,null,null,null,null,null,null,null,null,null,null,null,null,"2020-06-23"]
[null,"وجبة الاطعــــــــــام ",null,null,null,null,null,null,null,null,null,null,null,null,null,null,"2020-06-24"]
[null,null,null,null,null,null,null,null,null,null,null,null,null,null,null,null,"2020-06-25"]
[null,"وجبــة الاطعام اليوميـــــــة ",null,null,null,null,null,null,null,null,null,null,null,null,null,null,"2020-06-26",null,null,null,null,null,null,null,null,null,null,"مباركة العابد"]
[null,"الوجبـــة",null,null,null,"عدد ن/داخلي",null,"الغائبون ",null,null,"الحاضرون",null,null,null,null,null,"2020-06-27",null,null,null,null,null,null,null,null,null,null,"بوعلام سهلي"]
[null,null,null,null,null,182,null,40,null,null,{"$f":"F32-$H$32","v":142},null,null,null,null,null,"2020-06-28",null,null,null,null,null,null,null,null,null,null,"ام الخير تهامي "]
[null,null,null,null,null,null,null,null,null,null,null,null,null,null,null,null,"2020-06-29",null,null,null,null,null,null,null,null,null,null,"خديجة بدراني "]
[null,null,null,null,null,null,null,null,null,null,null,null,null,null,null,null,"2020-06-30",null,null,null,null,null,null,null,null,null,null,"بوشوشة امحمدي"]
[null,null,null,null,null,null,null,null,null,null,null,null,null,null,null,null,null,null,null,null,null,null,null,null,null,null,null,"يعقوب كواهي "]
[null,"مواظبة التلاميذ ",null,null,null,null,null,null,null,null,null,null,null,null,null,null,null,null,null,null,null,null,null,null,null,null,null,"إبراهيم زريفي "]
[null,null,null,null,null,null,null,null,null,null,null,null,null,null,null,null,null,null,null,null,null,null,null,null,null,null,null,"محمد مشارة "]
[null,null,null,null,null,null,null,null,null,null,null,null,null,null,null,null,null,null,null,null,null,null,null,null,null,null,null,"شريف بدراني "]
[null,"المستوى ",null,"المسجلون","ذكــور","إنــاث","الغائبون","نسبة الغياب %",null,"الحاضرون",null,"نسبة الحاضرين %",null,null,null,null,null,null,null,null,null,null,null,null,null,null,null,"عبد القادر حساني "]
[null,"السنة الاولي متوسط 1",null,22,15,7,0,{"$f":"G40/$D$40","v":0},null,{"$f":"D40-$G$40","v":22},null,{"$f":"J40/$D$40","v":1}]
[null,"السنة الاولي متوسط 2",null,21,12,9,0,{"$f":"G41/$D$41","v":0},null,{"$f":"D41-G41","v":21},null,{"$f":"J41/$D$41","v":1},null,null,null,null,null,null,null,null,null,null,null,null,null,null,null,"قدور بومقواس"]
[null,"السنة الاولي متوسط 3",null,23,11,12,0,{"$f":"G42/$D$41","v":0},null,23,null,{"$f":"J42/$D$42","v":1},null,null,null,null,null,null,null,null,null,null,null,null,null,null,null,"العربي قرمان "]
[null,"السنة الثانية متوسط 1",null,31,15,16,0,0,null,31,null,{"$f":"J43/$D$43","v":1},null,null,null,null,null,null,null,null,null,null,null,null,null,null,null,"عبد القادر طيبي "]
[null,"السنة الثانية متوسط 2",null,33,17,16,0,0,null,33,null,{"$f":"J44/$D$44","v":1},null,null,null,null,null,null,null,null,null,null,null,null,null,null,null,"ميلود داودي "]
[null,"السنة الثالثة متوسط1",null,28,12,16,0,0,null,28,null,{"$f":"J45/$D$45","v":1},null,null,null,null,null,null,null,null,null,null,null,null,null,null,null,"رشيدة حطاب"]
[null,"السنة الثالثة متوسط 2",null,27,9,18,0,0,null,27,null,{"$f":"J46/$D$46","v":1},null,null,null,null,null,null,null,null,null,null,null,null,null,null,null,"مجدوب طلحة "]
[null,"السنة الرابعة متوسط 1",null,{"$f":"E47+F47","v":20},9,11,0,0,null,20,null,{"$f":"J47/$D$47","v":1},null,null,null,null,null,null,null,null,null,null,null,null,null,null,null,"مليود جليد "]
[null,"السنة الرابعة متوسط 2",null,{"$f":"E48+F48","v":23},11,12,0,0,null,23,null,{"$f":"J48/$D$48","v":1},null,null,null,null,null,null,null,null,null,null,null,null,null,null,null,"البشير قرمان "]
[null,"ملاحظــــات :"]
[null,null,null,null,null,null,null,null,null,null,null,null,null,null,null,null,null,null,null,null,null,null,null,null,null,null,null,"2019/2020"]
[null,null,null,null,null,null,null,null,null,null,null,null,null,null,null,null,null,null,null,null,null,null,null,null,null,null,null,"2020/2021"]
[null,null,null,null,null,null,null,null,null,null,null,null,null,null,null,null,null,null,null,null,null,null,null,null,null,null,null,"2021/2022"]
[]
[null,"منجز من طرف المكلف بالاستشارة ",null,null,"بتاريخ ",{"$f":"NOW()","v":"2020-06-18T19:22:29.630"}]
[null,null,null,null,null,null,null,null,null,"مدير المؤسسة "]

{"sheet":"Report","index":32,"n_rows":62,"n_cols":10,"rows_kept":62,"cut":false,"hidden":false,"merged":[[61,6,61,7],[2,0,2,3],[25,0,25,3],[47,0,47,2],[48,0,52,7],[54,0,54,2],[55,0,58,7]]}
[]
[]
[{"$f":"HYPERLINK(\"#'Main Screen'!a1\",\"التلاميذ الغائبـــــــــــــون و الاجراءات المتخذة \")","v":"التلاميذ الغائبـــــــــــــون و الاجراءات المتخذة "}]
["الرقم","الاسم و اللقب","الصفــة ","مدة الغياب","السبب","التبرير","الاجراء المتخذة","الملاحظات "]
[1,null,"ن/ داخلي",null,null,"مبرر ","الاتصال بالولي للتبرير الغياب"]
[2,null,null,null,null,null,null,null,null,"ن/ داخلي"]
[3,null,null,null,null,null,null,null,null,"خارجي "]
[4]
[5,null,null,null,null,null,null,null,null,"شهادة طبية"]
[6,null,null,null,null,null,null,null,null,"مبرر "]
[7,null,null,null,null,null,null,null,null,"غير مبرر"]
[8,null,null,null,null,"غير مبرر"]
[9,null,null,null,null,null,null,null,null,"حضور الولي للتبرير الغياب"]
[10,null,null,null,null,null,null,null,null,"إحضار ش طبية "]
[11,null,null,null,null,null,null,null,null," ظرف شخصي "]
[12,null,null,null,null,null,null,null,null,"السماح له بزيارة المستشفي "]
[13,null,null,null,null,null,null,null,null,"الاتصال بالولي للتبرير الغياب"]
[14]
[15]
[16]
[17]
[18]
[19]
[]
[]
["مراسلـــة الاوليـــــاء "]
[null,null,null,null,null,null,null,null,null,"1م1"]
["الرقم","اللقب و الاسم","القســم","تاريخ الغياب","الاشعار الاول","الاشعار الثاني","الاعذار المضمون","الملاحظات ",null,"1م2"]
[1,null,null,null,null,null,null,null,null,"1م3"]
[2,null,null,null,null,null,null,null,null,"2م1"]
[3,null,null,null,null,null,null,null,null,"2م2"]
[4,null,null,null,null,null,null,null,null,"3م1"]
[5,null,null,null,null,null,null,null,null,"3م2"]
[6,null,null,null,null,null,null,null,null,"4م1"]
[7,null,null,null,null,null,null,null,null,"4م2"]
[8]
[9]
[10]
[11]
[12]
[13]
[14]
[15]
[16]
[17]
[]
[]
["النشاطات المختلفـــــــة "]
[]
[]
[]
[]
[]
[]
["الملاحظات و الاقتراحات "]
[]
[]
[]
[]
[]
[null,null,null,null,null,"تاجرونة في ",{"$f":"NOW()","v":"2020-06-18T19:22:29.630"}]
[null,null,null,null,null,null,"توقيع المكلف بالاستشارة "]